Workbook

Sheet Inhoudsopgave
B4: Inhoudsopgave

Sheet Werkinstructies
B4: Cultuurbarometer 2024 & 2026
B7: Interpretatie van de tabellen
B8: In deze tabellen in de bijlage presenteren we de bevindingen met behulp van percentages en gemiddelden. Vervolgens geven we uitsplitsingen voor de verschillende bevindingen. We presenteren de cijfers op basis van verschillen in gemiddelden. Het gaat hierbij om het gemiddelde op een schaal van 1 tot 5. Het gemiddelde staat onderaan in de tabellen. Waarden hoger dan het gemiddelde zijn vetgedrukt weergegeven. Dit betekent dat respondenten uit die categorie het bijvoorbeeld vaker dan gemiddeld eens zijn met een uitspraak. De tabellen bevatten gegevens uit de jaren 2024 en 2026, zodat u vergelijkingen kunt maken.
B11: Gebruik van de slicer
F12: Met de slicer (filterknop) kunt u bepalen welke onderdelen in de tabel worden weergegeven. Blauw = geselecteerd → het onderdeel wordt getoond. Wit = niet geselecteerd → het onderdeel wordt niet getoond. Ook kunt u met de andere slicer bepalen voor welk jaartal u de gegevens wilt tonen.
B18: Navigatie via de knoppen
C19: Gebruik de linker knop (zoals links in beeld weergegeven) om meerdere onderdelen tegelijk aan te kunnen vinken. Gebruik de rechter knop om terug te gaan naar de beginsituatie waarbij alle onderdelen geselecteerd zijn.

Sheet Achtergrondkenmerken
B5: Achtergrondkenmerken
B7: Instellingscategorie
C17: 2024 | E17: 2026 | G17: Verschil
B18: Instellingscategorie | C18: Aandeel | D18: Aantal | E18: Aandeel | F18: Aantal | G18: Aandeel | H18: Aantal
B19: Universiteiten | C19: 0.4926102043 | D19: 3833 | E19: 0.512305296 | F19: 3289 | G19: 0.01969509161 | H19: -544
B20: Umc's | C20: 0.2723300347 | D20: 2119 | E20: 0.2559190031 | F20: 1643 | G20: -0.01641103158 | H20: -476
B21: Technische universiteiten | C21: 0.2007454055 | D21: 1562 | E21: 0.1795950156 | F21: 1153 | G21: -0.0211503899 | H21: -409
B22: NWO- en KNAW-instituten | C22: 0.02518956432 | D22: 196 | E22: 0.0453271028 | F22: 291 | G22: 0.02013753848 | H22: 95
B23: Levensbeschouwelijke universiteiten | C23: 0.009124791158 | D23: 71 | E23: 0.006853582555 | F23: 44 | G23: -0.002271208603 | H23: -27
B24: Totaal | D24: =SUBTOTAL(109,Tabel4[Aantal]) -> 7781 | F24: =SUBTOTAL(109,Tabel4[[Aantal ]]) -> 6420 | H24: =SUBTOTAL(109,Tabel4[[Aantal ]]) -> -1361
B26: Vakgebied
C38: 2024 | E38: 2026 | G38: Verschil
B39: Vakgebied | C39: Aandeel | D39: Aantal | E39: Aandeel | F39: Aantal | G39: Aandeel | H39: Aantal
B40: Landbouw / toegepaste levenswetenschappen | C40: 0.01617285548 | D40: 125 | E40: 0.01286072773 | F40: 82 | G40: -0.00331212775 | H40: -43
B41: Natuur- en levenswetenschappen | C41: 0.1935567344 | D41: 1496 | E41: 0.1792659975 | F41: 1143 | G41: -0.01429073689 | H41: -353
B42: Techniek | C42: 0.1278302497 | D42: 988 | E42: 0.1231179423 | F42: 785 | G42: -0.004712307425 | H42: -203
B43: Gezondheid | C43: 0.2541079053 | D43: 1964 | E43: 0.2476474279 | F43: 1579 | G43: -0.006460477437 | H43: -385
B44: Economie | C44: 0.06223314788 | D44: 481 | E44: 0.05944165621 | F44: 379 | G44: -0.002791491674 | H44: -102
B45: Recht | C45: 0.04386078406 | D45: 339 | E45: 0.04830614806 | F45: 308 | G45: 0.004445363995 | H45: -31
B46: Gedrag en maatschappij | C46: 0.1798421529 | D46: 1390 | E46: 0.2067126725 | F46: 1318 | G46: 0.02687051959 | H46: -72
B47: Taal en cultuur | C47: 0.08603959115 | D47: 665 | E47: 0.08500627353 | F47: 542 | G47: -0.001033317624 | H47: -123
B48: Onderwijs (als wetenschapsgebied) | C48: 0.02704101436 | D48: 209 | E48: 0.02964240903 | F48: 189 | G48: 0.002601394672 | H48: -20
B49: Anders, namelijk… | C49: 0.009315564756 | D49: 72 | E49: 0.007998745295 | F49: 51 | G49: -0.001316819461 | H49: -21
B50: Totaal | D50: =SUBTOTAL(109,Tabel2[Aantal]) -> 7729 | F50: =SUBTOTAL(109,Tabel2[[Aantal ]]) -> 6376 | H50: =SUBTOTAL(109,Tabel2[[Aantal ]]) -> -1353
B52: Huidige functie
C64: 2024 | E64: 2026 | G64: Verschil
B65: Huidige functie | C65: Aandeel | D65: Aantal | E65: Aandeel | F65: Aantal | G65: Aandeel | H65: Aantal
B66: Hoogleraar | C66: 0.1508659397 | D66: 1176 | E66: 0.1557275542 | F66: 1006 | G66: 0.004861614475 | H66: -170
B67: Hoogleraar-Medisch specialist | C67: 0.01885824246 | D67: 147 | E67: 0.01718266254 | F67: 111 | G67: -0.001675579924 | H67: -36
B68: Universitair hoofddocent (UHD) | C68: 0.1692110327 | D68: 1319 | E68: 0.1743034056 | F68: 1126 | G68: 0.005092372859 | H68: -193
B69: Universitair docent (UD) | C69: 0.2699166132 | D69: 2104 | E69: 0.2825077399 | F69: 1825 | G69: 0.01259112672 | H69: -279
B70: Onderzoeker (inclusief postdoc) | C70: 0.1089159718 | D70: 849 | E70: 0.1139318885 | F70: 736 | G70: 0.005015916768 | H70: -113
B71: Docent (inclusief wetenschappelijk docent) | C71: 0.07453495831 | D71: 581 | E71: 0.07910216718 | F71: 511 | G71: 0.004567208876 | H71: -70
B72: Promovendus | C72: 0.1666452854 | D72: 1299 | E72: 0.139628483 | F72: 902 | G72: -0.02701680247 | H72: -397
B73: Medisch specialist, zonder een van bovenstaande academische functies | C73: 0.03117382938 | D73: 243 | E73: 0.02817337461 | F73: 182 | G73: -0.003000454765 | H73: -61
B74: Anders, namelijk... | C74: 0.009878127004 | D74: 77 | E74: 0.009442724458 | F74: 61 | G74: -0.0004354025463 | H74: -16
B75: Totaal | D75: =SUBTOTAL(109,Tabel1[Aantal]) -> 7795 | F75: =SUBTOTAL(109,Tabel1[[Aantal ]]) -> 6460 | H75: =SUBTOTAL(109,Tabel1[[Aantal ]]) -> -1335
B77: Gender
C85: 2024 | E85: 2026 | G85: Verschil
B86: Gender | C86: Aandeel | D86: Aantal | E86: Aandeel | F86: Aantal | G86: Aandeel | H86: Aantal
B87: Man | C87: 0.4707474227 | D87: 3653 | E87: 0.4464646465 | F87: 2873 | G87: -0.02428277622 | H87: -780
B88: Vrouw | C88: 0.4706185567 | D88: 3652 | E88: 0.4885780886 | F88: 3144 | G88: 0.01795953188 | H88: -508
B89: Non-binair of geen van bovenstaande | C89: 0.005798969072 | D89: 45 | E89: 0.006682206682 | F89: 43 | G89: 0.00088323761 | H89: -2
B90: Wil ik liever niet zeggen | C90: 0.05283505155 | D90: 410 | E90: 0.05827505828 | F90: 375 | G90: 0.005440006729 | H90: -35
B91: Totaal | D91: =SUBTOTAL(109,Tabel5[Aantal]) -> 7760 | F91: =SUBTOTAL(109,Tabel5[[Aantal ]]) -> 6435 | H91: =Tabel5[[#Totals],[Aantal ]]-Tabel5[[#Totals],[Aantal]] -> -1325
B93: Leeftijd
C104: 2024 | E104: 2026 | G104: Verschil
B105: Leeftijd | C105: Aandeel | D105: Aantal | E105: Aandeel | F105: Aantal | G105: Aandeel | H105: Aantal
B106: 24 jaar of jonger | C106: 0.01246065058 | D106: 95 | E106: 0.01046290425 | F106: 66 | G106: -0.001997746329 | H106: -29
B107: 25 t/m 29 jaar | C107: 0.1375918153 | D107: 1049 | E107: 0.1079581484 | F107: 681 | G107: -0.02963366694 | H107: -368
B108: 30 t/m 34 jaar | C108: 0.1362801679 | D108: 1039 | E108: 0.1274571972 | F108: 804 | G108: -0.008822970681 | H108: -235
B109: 35 t/m 39 jaar | C109: 0.1462486884 | D109: 1115 | E109: 0.1467977172 | F109: 926 | G109: 0.000549028832 | H109: -189
B110: 40 t/m 44 jaar | C110: 0.1558237146 | D110: 1188 | E110: 0.1615409004 | F110: 1019 | G110: 0.005717185858 | H110: -169
B111: 45 t/m 49 jaar | C111: 0.1173924449 | D111: 895 | E111: 0.1374445149 | F111: 867 | G111: 0.02005206999 | H111: -28
B112: 50 t/m 54 jaar | C112: 0.1048006296 | D112: 799 | E112: 0.1100190235 | F112: 694 | G112: 0.005218393872 | H112: -105
B113: 55 t/m 59 jaar | C113: 0.08407660021 | D113: 641 | E113: 0.09575142676 | F113: 604 | G113: 0.01167482655 | H113: -37
B114: 60 t/m 64 jaar | C114: 0.07817418678 | D114: 596 | E114: 0.07530120482 | F114: 475 | G114: -0.002872981959 | H114: -121
B115: 65 jaar of ouder | C115: 0.02715110178 | D115: 207 | E115: 0.02726696259 | F115: 172 | G115: 0.0001158608034 | H115: -35
B116: Totaal | D116: =SUBTOTAL(109,Tabel6[Aantal]) -> 7624 | F116: =SUBTOTAL(109,F106:F115) -> 6308 | H116: =SUBTOTAL(109,Tabel6[[Aantal ]]) -> -1316
B118: Leidinggevende rol
C125: 2024 | E125: 2026 | G125: Verschil
B126: Heeft een leidinggevende rol | C126: Aandeel | D126: Aantal | E126: Aandeel | F126: Aantal | G126: Aandeel | H126: Aantal
B127: Ja | C127: 0.5015078012 | D127: 3825 | E127: 0.5214921707 | F127: 3397 | G127: 0.01998436948 | H127: -428
B128: Nee | C128: 0.4984921988 | D128: 3802 | E128: 0.4785078293 | F128: 3117 | G128: -0.01998436948 | H128: -685
B129: Totaal | D129: =SUBTOTAL(109,Tabel7[Aantal]) -> 7627 | F129: =SUBTOTAL(109,F127:F128) -> 6514 | H129: =SUBTOTAL(109,Tabel7[[Aantal ]]) -> -1113
B131: Arts
C137: 2024 | E137: 2026 | G137: Verschil
B138: Ben je arts? | C138: Aandeel | D138: Aantal | E138: Aandeel | F138: Aantal | G138: Aandeel | H138: Aantal
B139: Ja | C139: 0.3958930277 | D139: 829 | E139: 0.374272786 | F139: 579 | G139: -0.02162024166 | H139: -250
B140: Nee | C140: 0.6041069723 | D140: 1265 | E140: 0.625727214 | F140: 968 | G140: 0.02162024166 | H140: -297
B141: Totaal | D141: =SUBTOTAL(109,Tabel8[Aantal]) -> 2094 | F141: =SUBTOTAL(109,F139:F140) -> 1547 | H141: =SUBTOTAL(109,Tabel8[[Aantal ]]) -> -547
B143: Dienstverband
C150: 2024 | E150: 2026 | G150: Verschil
B151: Type dienstverband | C151: Aandeel | D151: Aantal | E151: Aandeel | F151: Aantal | G151: Aandeel | H151: Aantal
B152: Vast dienstverband | C152: 0.7210316951 | D152: 5619 | E152: 0.7660891089 | F152: 4952 | G152: 0.0450574138 | H152: -667
B153: Tijdelijk dienstverband | C153: 0.2789683049 | D153: 2174 | E153: 0.2339108911 | F153: 1512 | G153: -0.0450574138 | H153: -662
B154: Totaal | D154: =SUBTOTAL(109,Tabel10[Aantal]) -> 7793 | F154: =SUBTOTAL(109,Tabel10[[Aantal ]]) -> 6464 | H154: =SUBTOTAL(109,Tabel10[[Aantal ]]) -> -1329
B156: Nationaliteit
C163: 2024 | E163: 2026 | G163: Verschil
B164: Nationaliteit | C164: Aandeel | D164: Aantal | E164: Aandeel | F164: Aantal | G164: Aandeel | H164: Aantal
B165: Nederlands | C165: 0.7180285344 | D165: 5536 | E165: 0.7177356124 | F165: 4577 | G165: -0.000292922014 | H165: -959
B166: Nationaliteit binnen Europese Unie | C166: 0.1858625162 | D166: 1433 | E166: 0.1936647326 | F166: 1235 | G166: 0.00780221642 | H166: -198
B167: Buiten Europese Unie (EU) | C167: 0.09610894942 | D167: 741 | E167: 0.08859965501 | F167: 565 | G167: -0.007509294406 | H167: -176
B168: Totaal | D168: =SUBTOTAL(109,Tabel13[Aantal]) -> 7710 | F168: =SUBTOTAL(109,Tabel13[[Aantal ]]) -> 6377 | H168: =SUBTOTAL(109,Tabel13[[Aantal ]]) -> -1333

Sheet H2.1
B5: H 2.1 Ambities van het programma Erkennen & Waarderen
B7: Was je – vóórdat je de informatie in deze vragenlijst hebt gelezen – op de hoogte van het landelijke Erkennen & Waarderen programma van universiteiten, umc’s, onderzoeksinstituten, wetenschapsfinanciers en de KNAW dat gaat over het breder erkennen en waarderen van wetenschappers?
B9: Bekendheid met programma Erkennen & Waarderen, vóór deze vragenlijst | C9: 2024 | E9: 2026 | G9: Verschil
C10: Percentage | D10: Aantal | E10: Percentage | F10: Aantal | G10: Percentage | H10: Aantal
B11: Helemaal niet | C11: 0.2486165474 | D11: 1842 | E11: =Tabel15[[#This Row],[Aantal ]]/Tabel15[[#Totals],[Aantal ]] -> 0.2022600721 | F11: 1235 | G11: =Tabel15[[#This Row],[Percentage ]]-Tabel15[[#This Row],[Percentage]] -> -0.04635647538 | H11: =Tabel15[[#This Row],[Aantal ]]-Tabel15[[#This Row],[Aantal]] -> -607
B12: Nauwelijks | C12: 0.1306519098 | D12: 968 | E12: =Tabel15[[#This Row],[Aantal ]]/Tabel15[[#Totals],[Aantal ]] -> 0.1233213233 | F12: 753 | G12: =Tabel15[[#This Row],[Percentage ]]-Tabel15[[#This Row],[Percentage]] -> -0.007330586551 | H12: =Tabel15[[#This Row],[Aantal ]]-Tabel15[[#This Row],[Aantal]] -> -215
B13: Enigszins | C13: 0.230260494 | D13: 1705 | E13: =Tabel15[[#This Row],[Aantal ]]/Tabel15[[#Totals],[Aantal ]] -> 0.2335407796 | F13: 1426 | G13: =Tabel15[[#This Row],[Percentage ]]-Tabel15[[#This Row],[Percentage]] -> 0.003280285567 | H13: =Tabel15[[#This Row],[Aantal ]]-Tabel15[[#This Row],[Aantal]] -> -279
B14: Grotendeels | C14: 0.287623161 | D14: 2130 | E14: =Tabel15[[#This Row],[Aantal ]]/Tabel15[[#Totals],[Aantal ]] -> 0.3250900753 | F14: 1985 | G14: =Tabel15[[#This Row],[Percentage ]]-Tabel15[[#This Row],[Percentage]] -> 0.03746691432 | H14: =Tabel15[[#This Row],[Aantal ]]-Tabel15[[#This Row],[Aantal]] -> -145
B15: Volledig | C15: 0.1028478877 | D15: 762 | E15: =Tabel15[[#This Row],[Aantal ]]/Tabel15[[#Totals],[Aantal ]] -> 0.1157877498 | F15: 707 | G15: =Tabel15[[#This Row],[Percentage ]]-Tabel15[[#This Row],[Percentage]] -> 0.01293986205 | H15: =Tabel15[[#This Row],[Aantal ]]-Tabel15[[#This Row],[Aantal]] -> -55
B16: Totaal | D16: =SUBTOTAL(109,Tabel15[Aantal]) -> 7407 | F16: =SUBTOTAL(109,Tabel15[[Aantal ]]) -> 6106 | H16: =SUBTOTAL(109,Tabel15[[Aantal ]]) -> -1301
B18: Uitgesplitst naar functiegroep
B30: Bekendheid met programma Erkennen & Waarderen, vóór deze vragenlijst
B31: Functiegroep | C31: Jaar | D31: Aantal | E31: Helemaal niet | F31: Nauwelijks | G31: Enigszins | H31: Grotendeels | I31: Volledig
B32: Hoogleraar | C32: 2024 | D32: 1117 | E32: 0.06177260519 | F32: 0.07430617726 | G32: 0.1763652641 | H32: 0.4324082363 | I32: 0.2551477171
B33: Hoogleraar | C33: 2026 | D33: 941 | E33: 0.04675876727 | F33: 0.05100956429 | G33: 0.1551540914 | H33: 0.4569606801 | I33: 0.2901168969
B34: Hoogleraar | C34: Verschil | D34: =D33-D32 -> -176 | E34: =E33-E32 -> -0.01501383792 | F34: -0.02329661297 | G34: -0.02121117271 | H34: 0.02455244378 | I34: 0.03496917982
B35: Hoogleraar-Medisch specialist | C35: 2024 | D35: 134 | E35: 0.2164179104 | F35: 0.2313432836 | G35: 0.2388059701 | H35: 0.2835820896 | I35: 0.02985074627
B36: Hoogleraar-Medisch specialist | C36: 2026 | D36: 97 | E36: 0.206185567 | F36: 0.1340206186 | G36: 0.2474226804 | H36: 0.3195876289 | I36: 0.09278350515
B37: Hoogleraar-Medisch specialist | C37: Verschil | D37: =D36-D35 -> -37 | E37: =E36-E35 -> -0.01023234344 | F37: =F36-F35 -> -0.09732266503 | G37: =G36-G35 -> 0.008616710263 | H37: =H36-H35 -> 0.03600553931 | I37: =I36-I35 -> 0.06293275889
B38: Universitair hoofddocent (UHD) | C38: 2024 | D38: 1225 | E38: 0.1020408163 | F38: 0.1044897959 | G38: 0.2310204082 | H38: 0.4097959184 | I38: 0.1526530612
B39: Universitair hoofddocent (UHD) | C39: 2026 | D39: 1038 | E39: 0.06936416185 | F39: 0.08959537572 | G39: 0.2341040462 | H39: 0.4402697495 | I39: 0.1666666667
B40: Universitair hoofddocent (UHD) | C40: Verschil | D40: =D39-D38 -> -187 | E40: =E39-E38 -> -0.03267665448 | F40: =F39-F38 -> -0.0148944202 | G40: =G39-G38 -> 0.00308363808 | H40: =H39-H38 -> 0.03047383115 | I40: =I39-I38 -> 0.01401360544
B41: Universitair docent (UD) | C41: 2024 | D41: 2001 | E41: 0.1704147926 | F41: 0.1244377811 | G41: 0.283858071 | H41: 0.327836082 | I41: 0.09345327336
B42: Universitair docent (UD) | C42: 2026 | D42: 1711 | E42: 0.1350087668 | F42: 0.1168907072 | G42: 0.2776154296 | H42: 0.3728813559 | I42: 0.0976037405
B43: Universitair docent (UD) | C43: Verschil | D43: =D42-D41 -> -290 | E43: =E42-E41 -> -0.0354060258 | F43: =F42-F41 -> -0.007547073921 | G43: =G42-G41 -> -0.006242641391 | H43: =H42-H41 -> 0.04504527397 | I43: =I42-I41 -> 0.004150467139
B44: Onderzoeker (inclusief postdoc) | C44: 2024 | D44: 808 | E44: 0.3972772277 | F44: 0.1547029703 | G44: 0.2462871287 | H44: 0.1683168317 | I44: 0.03341584158
B45: Onderzoeker (inclusief postdoc) | C45: 2026 | D45: 683 | E45: 0.3250366032 | F45: 0.1786237189 | G45: 0.2562225476 | H45: 0.2005856515 | I45: 0.03953147877
B46: Onderzoeker (inclusief postdoc) | C46: Verschil | D46: =D45-D44 -> -125 | E46: =E45-E44 -> -0.0722406245 | F46: =F45-F44 -> 0.02392074859 | G46: =G45-G44 -> 0.009935418871 | H46: =H45-H44 -> 0.03226881985 | I46: =I45-I44 -> 0.006115637186
B47: Docent (inclusief wetenschappelijk docent) | C47: 2024 | D47: 547 | E47: 0.2851919561 | F47: 0.1590493601 | G47: 0.2650822669 | H47: 0.2413162706 | I47: 0.04936014625
B48: Docent (inclusief wetenschappelijk docent) | C48: 2026 | D48: 487 | E48: 0.2217659138 | F48: 0.1396303901 | G48: 0.3121149897 | H48: 0.2833675565 | I48: 0.0431211499
B49: Docent (inclusief wetenschappelijk docent) | C49: Verschil | D49: =D48-D47 -> -60 | E49: =E48-E47 -> -0.06342604237 | F49: =F48-F47 -> -0.01941897 | G49: =G48-G47 -> 0.04703272282 | H49: =H48-H47 -> 0.0420512859 | I49: =I48-I47 -> -0.006238996355
B50: Promovendus | C50: 2024 | D50: 1217 | E50: 0.525061627 | F50: 0.1577649959 | G50: 0.175842235 | H50: 0.1150369762 | I50: 0.02629416598
B51: Promovendus | C51: 2026 | D51: 860 | E51: 0.4941860465 | F51: 0.1790697674 | G51: 0.1848837209 | H51: 0.1186046512 | I51: 0.02325581395
B52: Promovendus | C52: Verschil | D52: =D51-D50 -> -357 | E52: =E51-E50 -> -0.03087558044 | F52: =F51-F50 -> 0.02130477155 | G52: =G51-G50 -> 0.009041485926 | H52: =H51-H50 -> 0.003567674992 | I52: =I51-I50 -> -0.003038352028
B53: Medisch specialist, zonder een van bovenstaande academische functies | C53: 2024 | D53: 224 | E53: 0.5892857143 | F53: 0.2053571429 | G53: 0.1651785714 | H53: 0.03571428571 | I53: 0.004464285714
B54: Medisch specialist, zonder een van bovenstaande academische functies | C54: 2026 | D54: 168 | E54: 0.5297619048 | F54: 0.244047619 | G54: 0.1428571429 | H54: 0.07142857143 | I54: 0.0119047619
B55: Medisch specialist, zonder een van bovenstaande academische functies | C55: Verschil | D55: =D54-D53 -> -56 | E55: =E54-E53 -> -0.05952380952 | F55: =F54-F53 -> 0.03869047619 | G55: =G54-G53 -> -0.02232142857 | H55: =H54-H53 -> 0.03571428571 | I55: =I54-I53 -> 0.00744047619
B56: Anders, namelijk… | C56: 2024 | D56: 71 | E56: 0.2253521127 | F56: 0.1690140845 | G56: 0.2676056338 | H56: 0.2112676056 | I56: 0.1267605634
B57: Anders, namelijk… | C57: 2026 | D57: 60 | E57: 0.1833333333 | F57: 0.1333333333 | G57: 0.2333333333 | H57: 0.35 | I57: 0.1
B58: Anders, namelijk… | C58: Verschil | D58: =D57-D56 -> -11 | E58: =E57-E56 -> -0.04201877934 | F58: =F57-F56 -> -0.03568075117 | G58: =G57-G56 -> -0.03427230047 | H58: =H57-H56 -> 0.1387323944 | I58: =I57-I56 -> -0.02676056338
B59: Totaal | C59: 2024 | D59: =SUM(D56,D53,D50,D47,D44,D41,D38,D35,D32) -> 7344
B60: Totaal | C60: 2026 | D60: =SUM(D57,D54,D51,D48,D45,D42,D39,D36,D33) -> 6045
B63: Uitgesplitst naar vakgebied
B77: Bekendheid met programma Erkennen & Waarderen, vóór deze vragenlijst
B78: Vakgebied | C78: Jaar | D78: Aantal | E78: Helemaal niet | F78: Nauwelijks | G78: Enigszins | H78: Grotendeels | I78: Volledig
B79: Landbouw / toegepaste levenswetenschappen | C79: 2024 | D79: 116 | E79: 0.1724137931 | F79: 0.1293103448 | G79: 0.275862069 | H79: 0.3620689655 | I79: 0.06034482759
B80: Landbouw / toegepaste levenswetenschappen | C80: 2026 | D80: 74 | E80: 0.2297297297 | F80: 0.1081081081 | G80: 0.2702702703 | H80: 0.2702702703 | I80: 0.1216216216
B81: Landbouw / toegepaste levenswetenschappen | C81: Verschil | D81: =D80-D79 -> -42 | E81: =E80-E79 -> 0.05731593663 | F81: =F80-F79 -> -0.02120223672 | G81: =G80-G79 -> -0.005591798695 | H81: =H80-H79 -> -0.09179869525 | I81: =I80-I79 -> 0.06127679404
B82: Natuur- en levenswetenschappen | C82: 2024 | D82: 1425 | E82: 0.2414035088 | F82: 0.1305263158 | G82: 0.2161403509 | H82: 0.3157894737 | I82: 0.09614035088
B83: Natuur- en levenswetenschappen | C83: 2026 | D83: 1076 | E83: 0.1979553903 | F83: 0.1217472119 | G83: 0.2304832714 | H83: 0.3382899628 | I83: 0.1115241636
B84: Natuur- en levenswetenschappen | C84: Verschil | D84: =D83-D82 -> -349 | E84: =E83-E82 -> -0.04344811844 | F84: =F83-F82 -> -0.008779103894 | G84: =G83-G82 -> 0.0143429205 | H84: =H83-H82 -> 0.02250048914 | I84: =I83-I82 -> 0.01538381269
B85: Techniek | C85: 2024 | D85: 931 | E85: 0.3609022556 | F85: 0.141783029 | G85: 0.2244897959 | H85: 0.2094522019 | I85: 0.06337271751
B86: Techniek | C86: 2026 | D86: 740 | E86: 0.2878378378 | F86: 0.1540540541 | G86: 0.2310810811 | H86: 0.2594594595 | I86: 0.06756756757
B87: Techniek | C87: Verschil | D87: =D86-D85 -> -191 | E87: =E86-E85 -> -0.0730644178 | F87: =F86-F85 -> 0.01227102505 | G87: =G86-G85 -> 0.006591285163 | H87: =H86-H85 -> 0.05000725753 | I87: =I86-I85 -> 0.00419485006
B88: Gezondheid | C88: 2024 | D88: 1817 | E88: 0.3632361035 | F88: 0.1623555311 | G88: 0.195376995 | H88: 0.214089158 | I88: 0.06494221244
B89: Gezondheid | C89: 2026 | D89: 1456 | E89: 0.2918956044 | F89: 0.1559065934 | G89: 0.2163461538 | H89: 0.2568681319 | I89: 0.07898351648
B90: Gezondheid | C90: Verschil | D90: =D89-D88 -> -361 | E90: =E89-E88 -> -0.07134049907 | F90: =F89-F88 -> -0.006448937689 | G90: =G89-G88 -> 0.0209691588 | H90: =H89-H88 -> 0.04277897392 | I90: =I89-I88 -> 0.01404130405
B91: Economie | C91: 2024 | D91: 450 | E91: 0.1555555556 | F91: 0.1111111111 | G91: 0.2533333333 | H91: 0.3488888889 | I91: 0.1311111111
B92: Economie | C92: 2026 | D92: 360 | E92: 0.1277777778 | F92: 0.1222222222 | G92: 0.2111111111 | H92: 0.3638888889 | I92: 0.175
B93: Economie | C93: Verschil | D93: =D92-D91 -> -90 | E93: =E92-E91 -> -0.02777777778 | F93: =F92-F91 -> 0.01111111111 | G93: =G92-G91 -> -0.04222222222 | H93: =H92-H91 -> 0.015 | I93: =I92-I91 -> 0.04388888889
B94: Recht | C94: 2024 | D94: 331 | E94: 0.1510574018 | F94: 0.1359516616 | G94: 0.2598187311 | H94: 0.3141993958 | I94: 0.1389728097
B95: Recht | C95: 2026 | D95: 286 | E95: 0.1223776224 | F95: 0.1188811189 | G95: 0.2447552448 | H95: 0.3951048951 | I95: 0.1188811189
B96: Recht | C96: Verschil | D96: =D95-D94 -> -45 | E96: =E95-E94 -> -0.02867977944 | F96: =F95-F94 -> -0.01707054275 | G96: =G95-G94 -> -0.01506348636 | H96: =H95-H94 -> 0.08090549933 | I96: =I95-I94 -> -0.02009169079
B97: Gedrag en maatschappij | C97: 2024 | D97: 1311 | E97: 0.1319603356 | F97: 0.1052631579 | G97: 0.2562929062 | H97: 0.355453852 | I97: 0.1510297483
B98: Gedrag en maatschappij | C98: 2026 | D98: 1235 | E98: 0.1303643725 | F98: 0.08178137652 | G98: 0.2469635628 | H98: 0.3789473684 | I98: 0.1619433198
B99: Gedrag en maatschappij | C99: Verschil | D99: =D98-D97 -> -76 | E99: =E98-E97 -> -0.001595963152 | F99: =F98-F97 -> -0.02348178138 | G99: =G98-G97 -> -0.009329343425 | H99: =H98-H97 -> 0.0234935164 | I99: =I98-I97 -> 0.01091357155
B100: Taal en cultuur | C100: 2024 | D100: 635 | E100: 0.1716535433 | F100: 0.1023622047 | G100: 0.2724409449 | H100: 0.3149606299 | I100: 0.1385826772
B101: Taal en cultuur | C101: 2026 | D101: 519 | E101: 0.119460501 | F101: 0.09826589595 | G101: 0.2504816956 | H101: 0.3930635838 | I101: 0.1387283237
B102: Taal en cultuur | C102: Verschil | D102: =D101-D100 -> -116 | E102: =E101-E100 -> -0.05219304234 | F102: =F101-F100 -> -0.004096308771 | G102: =G101-G100 -> -0.02195924931 | H102: =H101-H100 -> 0.07810295389 | I102: =I101-I100 -> 0.0001456465341
B103: Onderwijs (als wetenschapsgebied) | C103: 2024 | D103: 195 | E103: 0.1897435897 | F103: 0.1076923077 | G103: 0.241025641 | H103: 0.3333333333 | I103: 0.1282051282
B104: Onderwijs (als wetenschapsgebied) | C104: 2026 | D104: 173 | E104: 0.1676300578 | F104: 0.1156069364 | G104: 0.2485549133 | H104: 0.3352601156 | I104: 0.1329479769
B105: Onderwijs (als wetenschapsgebied) | C105: Verschil | D105: =D104-D103 -> -22 | E105: =E104-E103 -> -0.02211353194 | F105: =F104-F103 -> 0.007914628724 | G105: =G104-G103 -> 0.007529272269 | H105: =H104-H103 -> 0.001926782274 | I105: =I104-I103 -> 0.004742848673
B106: Anders, namelijk… | C106: 2024 | D106: 69 | E106: 0.2463768116 | F106: 0.115942029 | G106: 0.2753623188 | H106: 0.2753623188 | I106: 0.08695652174
B107: Anders, namelijk… | C107: 2026 | D107: 47 | E107: 0.2340425532 | F107: 0.1063829787 | G107: 0.3191489362 | H107: 0.2553191489 | I107: 0.08510638298
B108: Anders, namelijk… | C108: Verschil | D108: =D107-D106 -> -22 | E108: =E107-E106 -> -0.0123342584 | F108: =F107-F106 -> -0.009559050262 | G108: =G107-G106 -> 0.04378661733 | H108: =H107-H106 -> -0.0200431699 | I108: =I107-I106 -> -0.00185013876
B109: Totaal | C109: 2024 | D109: =SUM(D106,D103,D100,D97,D94,D91,D88,D85,D82,D79) -> 7280
B110: Totaal | C110: 2026 | D110: =SUM(D107,D104,D101,D98,D95,D92,D89,D86,D83,D80) -> 5966
B112: Uitgesplitst naar nationaliteit
B122: Bekendheid met programma Erkennen & Waarderen, vóór deze vragenlijst
B123: Nationaliteit | C123: Jaar | D123: Aantal | E123: Helemaal niet | F123: Nauwelijks | G123: Enigszins | H123: Grotendeels | I123: Volledig
B124: Nederlands | C124: 2024 | D124: 5204 | E124: 0.2175249808 | F124: 0.1222136818 | G124: 0.2327056111 | H124: 0.3166794773 | I124: 0.110876249
B125: Nederlands | C125: 2026 | D125: 4274 | E125: 0.1722040243 | F125: 0.1102012167 | G125: 0.2356106692 | H125: 0.352129153 | I125: 0.1298549368
B126: Nederlands | C126: Verschil | D126: =D125-D124 -> -930 | E126: =E125-E124 -> -0.04532095645 | F126: -0.01201246512 | G126: 0.002905058094 | H126: 0.03544967569 | I126: 0.01897868779
B127: Nationaliteit binnen Europese Unie | C127: 2024 | D127: 1364 | E127: 0.3086510264 | F127: 0.1282991202 | G127: 0.2177419355 | H127: 0.2478005865 | I127: 0.09750733138
B128: Nationaliteit binnen Europese Unie | C128: 2026 | D128: 1159 | E128: 0.2329594478 | F128: 0.1553062985 | G128: 0.2251941329 | H128: 0.2873166523 | I128: 0.09922346851
B129: Nationaliteit binnen Europese Unie | C129: Verschil | D129: =D128-D127 -> -205 | E129: =E128-E127 -> -0.07569157859 | F129: 0.0270071783 | G129: 0.007452197389 | H129: 0.03951606578 | I129: 0.001716137129
B130: Buiten Europese Unie (EU) | C130: 2024 | D130: 693 | E130: 0.3665223665 | F130: 0.1919191919 | G130: 0.2467532468 | H130: 0.1471861472 | I130: 0.04761904762
B131: Buiten Europese Unie (EU) | C131: 2026 | D131: 527 | E131: 0.3908918406 | F131: 0.1574952562 | G131: 0.229601518 | H131: 0.1821631879 | I131: 0.03984819734
B132: Buiten Europese Unie (EU) | C132: Verschil | D132: =D131-D130 -> -166 | E132: =E131-E130 -> 0.02436947408 | F132: -0.03442393575 | G132: -0.01715172873 | H132: 0.03497704067 | I132: -0.007770850276
B133: Totaal | C133: 2024 | D133: =SUM(D124,D127,D130) -> 7261
B134: Totaal | C134: 2026 | D134: =SUM(D125,D128,D131) -> 5960
B138: Was je – vóór deze vragenlijst – op de hoogte van deze onderstaande ambities?
B148: Bekendheid met de ambities van het programma Erkennen & Waarderen
B149: Ambities | C149: Jaar | D149: Aantal | E149: Gemiddelde*
B150: Loopbaanpaden diversifiëren en dynamiseren | C150: 2024 | D150: 7847 | E150: 2.923802243
B151: Loopbaanpaden diversifiëren en dynamiseren | C151: 2026 | D151: 6505 | E151: 3.044888547
B152: Loopbaanpaden diversifiëren en dynamiseren | C152: Verschil | D152: =D151-D150 -> -1342 | E152: =E151-E150 -> 0.1210863047
B153: Balans tussen individu en collectief bereiken | C153: 2024 | D153: 7838 | E153: 2.622783518
B154: Balans tussen individu en collectief bereiken | C154: 2026 | D154: 6500 | E154: 2.732307692
B155: Balans tussen individu en collectief bereiken | C155: Verschil | D155: =D154-D153 -> -1338 | E155: =E154-E153 -> 0.109524174
B156: Focus op kwaliteit (en minder nadruk op kwantiteit) | C156: 2024 | D156: 7835 | E156: 3.060745278
B157: Focus op kwaliteit (en minder nadruk op kwantiteit) | C157: 2026 | D157: 6492 | E157: 3.166666667
B158: Focus op kwaliteit (en minder nadruk op kwantiteit) | C158: Verschil | D158: =D157-D156 -> -1343 | E158: =E157-E156 -> 0.1059213885
B159: Alle aspecten van Open Science stimuleren | C159: 2024 | D159: 7839 | E159: 3.059311224
B160: Alle aspecten van Open Science stimuleren | C160: 2026 | D160: 6499 | E160: 3.131250962
B161: Alle aspecten van Open Science stimuleren | C161: Verschil | D161: =D160-D159 -> -1340 | E161: =E160-E159 -> 0.0719397372
B162: Leiderschap (in de academie) stimuleren | C162: 2024 | D162: 7840 | E162: 2.778727203
B163: Leiderschap (in de academie) stimuleren | C163: 2026 | D163: 6502 | E163: 2.912949862
B164: Leiderschap (in de academie) stimuleren | C164: Verschil | D164: =D163-D162 -> -1338 | E164: =E163-E162 -> 0.1342226584
B166: *Antwoordcategorieën 1. Helemaal niet, 2. Nauwelijks, 3. Enigszins, 4. Grotendeels, 5. Volledig
B176: Bekendheid met de ambities van het programma Erkennen & Waarderen
B177: Ambities | C177: Jaar | D177: Aantal | E177: Helemaal niet | F177: Nauwelijks | G177: Enigszins | H177: Grotendeels | I177: Volledig
B178: Loopbaanpaden diversifiëren en dynamiseren | C178: 2024 | D178: 7863 | E178: 0.2418450561 | F178: 0.1335372069 | G178: 0.2110091743 | H178: 0.2861875637 | I178: 0.127420999
B179: Loopbaanpaden diversifiëren en dynamiseren | C179: 2026 | D179: 6505 | E179: 0.2121445042 | F179: 0.1423520369 | G179: 0.1883166795 | H179: 0.3028439662 | I179: 0.1543428132
B180: Loopbaanpaden diversifiëren en dynamiseren | C180: Verschil | D180: =D179-D178 -> -1358 | E180: =E179-E178 -> -0.02970055184 | F180: =F179-F178 -> 0.008814829963 | G180: =G179-G178 -> -0.02269249483 | H180: =H179-H178 -> 0.01665640247 | I180: =I179-I178 -> 0.02692181424
B181: Balans tussen individu en collectief bereiken | C181: 2024 | D181: 7863 | E181: 0.275035081 | F181: 0.2001530808 | G181: 0.2339584131 | H181: 0.2087000893 | I181: 0.08215333588
B182: Balans tussen individu en collectief bereiken | C182: 2026 | D182: 6500 | E182: 0.2418461538 | F182: 0.2058461538 | G182: 0.2255384615 | H182: 0.2316923077 | I182: 0.09507692308
B183: Balans tussen individu en collectief bereiken | C183: Verschil | D183: =D182-D181 -> -1363 | E183: =E182-E181 -> -0.03318892716 | F183: =F182-F181 -> 0.005693073096 | G183: =G182-G181 -> -0.008419951524 | H183: =H182-H181 -> 0.0229922184 | I183: =I182-I181 -> 0.01292358719
B184: Focus op kwaliteit (en minder nadruk op kwantiteit) | C184: 2024 | D184: 7863 | E184: 0.2066105156 | F184: 0.121107708 | G184: 0.2152884125 | H184: 0.3189127106 | I184: 0.1380806534
B185: Focus op kwaliteit (en minder nadruk op kwantiteit) | C185: 2026 | D185: 6492 | E185: 0.1817621688 | F185: 0.12030191 | G185: 0.2084103512 | H185: 0.3285582255 | I185: 0.1609673444
B186: Focus op kwaliteit (en minder nadruk op kwantiteit) | C186: Verschil | D186: =D185-D184 -> -1371 | E186: =E185-E184 -> -0.02484834675 | F186: =F185-F184 -> -0.0008057979712 | G186: =G185-G184 -> -0.006878061254 | H186: =H185-H184 -> 0.009645514942 | I186: =I185-I184 -> 0.02288669103
B187: Alle aspecten van Open Science stimuleren | C187: 2024 | D187: 7863 | E187: 0.1952806122 | F187: 0.1321428571 | G187: 0.2229591837 | H187: 0.3172193878 | I187: 0.1323979592
B188: Alle aspecten van Open Science stimuleren | C188: 2026 | D188: 6499 | E188: 0.1738729035 | F188: 0.1315587013 | G188: 0.2281889521 | H188: 0.3222034159 | I188: 0.1441760271
B189: Alle aspecten van Open Science stimuleren | C189: Verschil | D189: =D188-D187 -> -1364 | E189: =E188-E187 -> -0.02140770872 | F189: =F188-F187 -> -0.0005841558042 | G189: =G188-G187 -> 0.005229768473 | H189: =H188-H187 -> 0.004984028155 | I189: =I188-I187 -> 0.0117780679
B190: Leiderschap (in de academie) stimuleren | C190: 2024 | D190: 7863 | E190: 0.2358117587 | F190: 0.179824002 | G190: 0.2509883943 | H190: 0.2365769672 | I190: 0.09679887769
B191: Leiderschap (in de academie) stimuleren | C191: 2026 | D191: 6502 | E191: 0.2053214396 | F191: 0.1710243002 | G191: 0.2391571824 | H191: 0.2743771147 | I191: 0.1101199631
B192: Leiderschap (in de academie) stimuleren | C192: Verschil | D192: =D191-D190 -> -1361 | E192: =E191-E190 -> -0.03049031915 | F192: =F191-F190 -> -0.008799701825 | G192: =G191-G190 -> -0.01183121193 | H192: =H191-H190 -> 0.03780014751 | I192: =I191-I190 -> 0.01332108539
B195: Uitgesplitst naar vakgebied
B204: Bekendheid met de ambities van het programma Erkennen & Waarderen*** | E204: Loopbaanpaden diversifiëren en dynamiseren | G204: Balans tussen individu en collectief bereiken | I204: Focus op kwaliteit (en minder nadruk op kwantiteit) | K204: Alle aspecten van Open Science stimuleren | M204: Leiderschap (in de academie) stimuleren
B205: Vakgebied | C205: Jaar | D205: Aantal | E205: Gemiddelde* | F205: sd** | G205: Gemiddelde | H205: sd | I205: Gemiddelde | J205: sd | K205: Gemiddelde | L205: sd | M205: Gemiddelde | N205: sd
B206: Landbouw / toegepaste levenswetenschappen | C206: 2024 | E206: 2.816 | F206: 1.266083624 | G206: 3.2 | H206: 1.313699529 | I206: 3.264 | J206: 1.283543482 | K206: 3.024 | L206: 1.328739398 | M206: 2.76 | N206: 1.285150926
B207: Landbouw / toegepaste levenswetenschappen | C207: 2026 | E207: 3.3125 | F207: 1.336855843 | G207: 2.987341772 | H207: 1.285956402 | I207: 3.455696203 | J207: 1.318482698 | K207: 3.037974684 | L207: 1.324745142 | M207: 2.9625 | N207: 1.296965787
B208: Landbouw / toegepaste levenswetenschappen | C208: Verschil | E208: =E207-E206 -> 0.4965 | F208: =F207-F206 -> 0.07077221916 | G208: =G207-G206 -> -0.2126582278 | H208: =H207-H206 -> -0.02774312626 | I208: =I207-I206 -> 0.1916962025 | J208: =J207-J206 -> 0.03493921552 | K208: =K207-K206 -> 0.01397468354 | L208: =L207-L206 -> -0.003994255583 | M208: =M207-M206 -> 0.2025 | N208: =N207-N206 -> 0.01181486095
B209: Natuur- en levenswetenschappen | C209: 2024 | E209: 2.686077644 | F209: 1.290848414 | G209: 2.971868721 | H209: 1.342444473 | I209: 3.095238095 | J209: 1.324137351 | K209: 3.141326189 | L209: 1.293720701 | M209: 2.807769591 | N209: 1.277205256
B210: Natuur- en levenswetenschappen | C210: 2026 | E210: 3.089395267 | F210: 1.334719132 | G210: 2.816827344 | H210: 1.284426596 | I210: 3.205623902 | J210: 1.307539872 | K210: 3.240350877 | L210: 1.285477696 | M210: 2.969298246 | N210: 1.277867736
B211: Natuur- en levenswetenschappen | C211: Verschil | E211: =E210-E209 -> 0.4033176234 | F211: =F210-F209 -> 0.04387071748 | G211: =G210-G209 -> -0.1550413763 | H211: =H210-H209 -> -0.05801787701 | I211: =I210-I209 -> 0.1103858063 | J211: =J210-J209 -> -0.01659747954 | K211: =K210-K209 -> 0.09902468831 | L211: =L210-L209 -> -0.008243005937 | M211: =M210-M209 -> 0.1615286542 | N211: =N210-N209 -> 0.0006624802703
B212: Techniek | C212: 2024 | E212: 2.471544715 | F212: 1.263463909 | G212: 2.72893401 | H212: 1.366195157 | I212: 2.815228426 | J212: 1.326087364 | K212: 2.903455285 | L212: 1.316546336 | M212: 2.622583927 | N212: 1.28795874
B213: Techniek | C213: 2026 | E213: 2.840616967 | F213: 1.348165494 | G213: 2.546272494 | H213: 1.263706928 | I213: 2.935732648 | J213: 1.302797027 | K213: 2.949871465 | L213: 1.274966872 | M213: 2.72622108 | N213: 1.261592368
B214: Techniek | C214: Verschil | E214: =E213-E212 -> 0.3690722511 | F214: =F213-F212 -> 0.08470158434 | G214: =G213-G212 -> -0.1826615166 | H214: =H213-H212 -> -0.1024882294 | I214: =I213-I212 -> 0.1205042214 | J214: =J213-J212 -> -0.02329033707 | K214: =K213-K212 -> 0.04641618074 | L214: =L213-L212 -> -0.04157946409 | M214: =M213-M212 -> 0.1036371529 | N214: =N213-N212 -> -0.02636637214
B215: Gezondheid | C215: 2024 | E215: 2.263157895 | F215: 1.231296406 | G215: 2.447220806 | H215: 1.326493643 | I215: 2.752424706 | J215: 1.384823251 | K215: 2.874361593 | L215: 1.380774066 | M215: 2.552093973 | N215: 1.291097305
B216: Gezondheid | C216: 2026 | E216: 2.6 | F216: 1.375036097 | G216: 2.405972046 | H216: 1.271123831 | I216: 2.908455181 | J216: 1.385773212 | K216: 3.006979695 | L216: 1.378502344 | M216: 2.712563452 | N216: 1.325402902
B217: Gezondheid | C217: Verschil | E217: =E216-E215 -> 0.3368421053 | F217: =F216-F215 -> 0.143739691 | G217: =G216-G215 -> -0.04124875997 | H217: =H216-H215 -> -0.05536981199 | I217: =I216-I215 -> 0.1560304747 | J217: =J216-J215 -> 0.0009499616058 | K217: =K216-K215 -> 0.132618102 | L217: =L216-L215 -> -0.002271721929 | M217: =M216-M215 -> 0.1604694783 | N217: =N216-N215 -> 0.03430559727
B218: Economie | C218: 2024 | E218: 2.804166667 | F218: 1.285531877 | G218: 3.341666667 | H218: 1.314736347 | I218: 3.166666667 | J218: 1.288026331 | K218: 3.097916667 | L218: 1.243268234 | M218: 2.9625 | N218: 1.277168221
B219: Economie | C219: 2026 | E219: 3.427440633 | F219: 1.343960247 | G219: 2.91292876 | H219: 1.297256618 | I219: 3.185676393 | J219: 1.29339839 | K219: 3.08994709 | L219: 1.262541119 | M219: 3.044854881 | N219: 1.295328876
B220: Economie | C220: Verschil | E220: =E219-E218 -> 0.6232739666 | F220: =F219-F218 -> 0.05842837071 | G220: =G219-G218 -> -0.4287379068 | H220: =H219-H218 -> -0.01747972938 | I220: =I219-I218 -> 0.01900972591 | J220: =J219-J218 -> 0.005372058571 | K220: =K219-K218 -> -0.00796957672 | L220: =L219-L218 -> 0.01927288504 | M220: =M219-M218 -> 0.08235488127 | N220: =N219-N218 -> 0.01816065528
B221: Recht | C221: 2024 | E221: 2.873156342 | F221: 1.327392027 | G221: 3.138643068 | H221: 1.380853625 | I221: 3.183431953 | J221: 1.314862788 | K221: 2.920118343 | L221: 1.319611483 | M221: 2.997050147 | N221: 1.355459103
B222: Recht | C222: 2026 | E222: 3.13961039 | F222: 1.322563833 | G222: 2.814935065 | H222: 1.324353814 | I222: 3.191558442 | J222: 1.32588616 | K222: 2.896103896 | L222: 1.277052955 | M222: 3.032467532 | N222: 1.291005371
B223: Recht | C223: Verschil | E223: =E222-E221 -> 0.2664540474 | F223: =F222-F221 -> -0.004828194315 | G223: =G222-G221 -> -0.3237080029 | H223: =H222-H221 -> -0.05649981065 | I223: =I222-I221 -> 0.008126488896 | J223: =J222-J221 -> 0.01102337254 | K223: =K222-K221 -> -0.02401444709 | L223: =L222-L221 -> -0.04255852827 | M223: =M222-M221 -> 0.03541738497 | N223: =N222-N221 -> -0.06445373145
B224: Gedrag en maatschappij | C224: 2024 | E224: 2.917087239 | F224: 1.308066382 | G224: 3.321582734 | H224: 1.300949838 | I224: 3.432080925 | J224: 1.241924207 | K224: 3.348954578 | L224: 1.261190809 | M224: 2.991354467 | N224: 1.278055404
B225: Gedrag en maatschappij | C225: 2026 | E225: 3.381749049 | F225: 1.353264832 | G225: 2.977929985 | H225: 1.321323153 | I225: 3.450875857 | J225: 1.288753384 | K225: 3.326484018 | L225: 1.269760296 | M225: 3.070722433 | N225: 1.299344998
B226: Gedrag en maatschappij | C226: Verschil | E226: =E225-E224 -> 0.4646618108 | F226: =F225-F224 -> 0.04519845043 | G226: =G225-G224 -> -0.343652749 | H226: =H225-H224 -> 0.02037331462 | I226: =I225-I224 -> 0.01879493196 | J226: =J225-J224 -> 0.0468291764 | K226: =K225-K224 -> -0.02247055996 | L226: =L225-L224 -> 0.008569486093 | M226: =M225-M224 -> 0.0793679666 | N226: =N225-N224 -> 0.02128959404
B227: Taal en cultuur | C227: 2024 | E227: 2.766214178 | F227: 1.288317949 | G227: 3.093373494 | H227: 1.357739028 | I227: 3.236445783 | J227: 1.318094294 | K227: 3.039156627 | L227: 1.321011272 | M227: 2.840361446 | N227: 1.321066296
B228: Taal en cultuur | C228: 2026 | E228: 3.261111111 | F228: 1.336086366 | G228: 2.923791822 | H228: 1.293066645 | I228: 3.373605948 | J228: 1.315928208 | K228: 3.186219739 | L228: 1.26916504 | M228: 3.068901304 | N228: 1.306164097
B229: Taal en cultuur | C229: Verschil | E229: =E228-E227 -> 0.4948969331 | F229: =F228-F227 -> 0.04776841697 | G229: =G228-G227 -> -0.1695816724 | H229: =H228-H227 -> -0.0646723829 | I229: =I228-I227 -> 0.1371601648 | J229: =J228-J227 -> -0.002166086195 | K229: =K228-K227 -> 0.1470631128 | L229: =L228-L227 -> -0.05184623179 | M229: =M228-M227 -> 0.2285398578 | N229: =N228-N227 -> -0.01490219892
B230: Onderwijs (als wetenschapsgebied) | C230: 2024 | E230: 2.697115385 | F230: 1.318611239 | G230: 3.110047847 | H230: 1.330971485 | I230: 3.206730769 | J230: 1.337151376 | K230: 3.129186603 | L230: 1.288842582 | M230: 2.866028708 | N230: 1.30503611
B231: Onderwijs (als wetenschapsgebied) | C231: 2026 | E231: 3.26984127 | F231: 1.303102058 | G231: 2.82010582 | H231: 1.271378038 | I231: 3.26984127 | J231: 1.294912499 | K231: 3.238095238 | L231: 1.238319285 | M231: 2.973544974 | N231: 1.25237588
B232: Onderwijs (als wetenschapsgebied) | C232: Verschil | E232: =E231-E230 -> 0.5727258852 | F232: =F231-F230 -> -0.01550918078 | G232: =G231-G230 -> -0.2899420268 | H232: =H231-H230 -> -0.05959344664 | I232: =I231-I230 -> 0.06311050061 | J232: =J231-J230 -> -0.04223887715 | K232: =K231-K230 -> 0.1089086352 | L232: =L231-L230 -> -0.05052329724 | M232: =M231-M230 -> 0.1075162654 | N232: =N231-N230 -> -0.0526602302
B233: Anders, namelijk… | C233: 2024 | E233: 2.652777778 | F233: 1.312558218 | G233: 2.958333333 | H233: 1.378277145 | I233: 2.763888889 | J233: 1.389021903 | K233: 2.986111111 | L233: 1.326788514 | M233: 2.736111111 | N233: 1.289098993
B234: Anders, namelijk… | C234: 2026 | E234: 2.980392157 | F234: 1.318941941 | G234: 2.764705882 | H234: 1.274177936 | I234: 2.94 | J234: 1.315682488 | K234: 3.039215686 | L234: 1.182552905 | M234: 2.784313725 | N234: 1.171558372
B235: Anders, namelijk… | C235: Verschil | E235: =E234-E233 -> 0.3276143791 | F235: =F234-F233 -> 0.006383722378 | G235: =G234-G233 -> -0.193627451 | H235: =H234-H233 -> -0.1040992089 | I235: =I234-I233 -> 0.1761111111 | J235: =J234-J233 -> -0.07333941527 | K235: =K234-K233 -> 0.05310457516 | L235: =L234-L233 -> -0.1442356097 | M235: =M234-M233 -> 0.04820261438 | N235: =N234-N233 -> -0.1175406204
B236: Totaal | C236: 2024 | D236: 7706 - 7718 | E236: 2.617669953 | F236: 1.299672751 | G236: 2.918621226 | H236: 1.374473561 | I236: 3.056067489 | J236: 1.345918933 | K236: 3.055649241 | L236: 1.325135553 | M236: 2.773411154 | N236: 1.301143977
B237: Totaal | C237: 2026 | D237: 6343 - 6356 | E237: 3.042636879 | F237: 1.382676079 | G237: 2.731695796 | H237: 1.308049557 | I237: 3.164906196 | J237: 1.339753629 | K237: 3.13023622 | L237: 1.307338691 | M237: 2.91138045 | N237: 1.303400126
B238: Totaal | C238: Verschil | E238: =G237-E236 -> 0.1140258426 | F238: =H237-F236 -> 0.008376805582 | G238: =E237-G236 -> 0.1240156527 | H238: =F237-H236 -> 0.008202518244 | I238: =I237-I236 -> 0.1088387072 | J238: -0.006165304004 | K238: 0.07458697933 | L238: -0.01779686184 | M238: 0.1379692958 | N238: 0.002256148409
B239: * Cijfers boven gemiddelde van dat jaar vet gedrukt
B240: ** Standaarddeviatie
B241: ***Antwoordcategorieën 1. Helemaal niet, 2. Nauwelijks, 3. Enigszins, 4. Grotendeels, 5. Volledig
B243: Uitgesplitst naar functiegroep
B253: Bekendheid met de ambities van het programma Erkennen & Waarderen*** | E253: Loopbaanpaden diversifiëren en dynamiseren | G253: Balans tussen individu en collectief bereiken | I253: Focus op kwaliteit (en minder nadruk op kwantiteit) | K253: Alle aspecten van Open Science stimuleren | M253: Leiderschap (in de academie) stimuleren
B254: Functiegroep | C254: Jaar | D254: Aantal | E254: Gemiddelde* | F254: sd** | G254: Gemiddelde | H254: sd | I254: Gemiddelde | J254: sd | K254: Gemiddelde | L254: sd | M254: Gemiddelde | N254: sd
B255: Hoogleraar | C255: 2024 | E255: 3.532367973 | F255: 1.165089672 | G255: 3.809361702 | H255: 1.114904837 | I255: 3.877133106 | J255: 1.084912117 | K255: 3.780238501 | L255: 1.099988969 | M255: 3.622978723 | N255: 1.166679491
B256: Hoogleraar | C256: 2026 | E256: 3.931 | F256: 1.113318678 | G256: 3.668 | H256: 1.147646763 | I256: 3.966 | J256: 1.071443882 | K256: 3.835 | L256: 1.115804651 | M256: 3.773453094 | N256: 1.119071727
B257: Hoogleraar | C257: Verschil | E257: =E256-E255 -> 0.3986320273 | F257: -0.05177099449 | G257: -0.1413617021 | H257: 0.03274192648 | I257: 0.0888668942 | J257: -0.01346823515 | K257: 0.05476149915 | L257: 0.0158156825 | M257: 0.1504743704 | N257: -0.04760776363
B258: Hoogleraar-Medisch specialist | C258: 2024 | E258: 2.671232877 | F258: 1.163286599 | G258: 2.719178082 | H258: 1.247027642 | I258: 3.157534247 | J258: 1.300866322 | K258: 3.262068966 | L258: 1.247334322 | M258: 3.054794521 | N258: 1.213605753
B259: Hoogleraar-Medisch specialist | C259: 2026 | E259: 2.792792793 | F259: 1.321962158 | G259: 2.738738739 | H259: 1.270015832 | I259: 3.243243243 | J259: 1.280739958 | K259: 3.315315315 | L259: 1.327896368 | M259: 3.198198198 | N259: 1.292072471
B260: Hoogleraar-Medisch specialist | C260: Verschil | E260: =E259-E258 -> 0.1215599161 | F260: 0.1586755594 | G260: 0.01956065655 | H260: 0.02298818954 | I260: 0.08570899667 | J260: -0.02012636418 | K260: 0.0532463498 | L260: 0.08056204527 | M260: 0.1434036777 | N260: 0.07846671796
B261: Universitair hoofddocent (UHD) | C261: 2024 | E261: 3.125475285 | F261: 1.222660403 | G261: 3.472685888 | H261: 1.200644187 | I261: 3.491628615 | J261: 1.173588477 | K261: 3.416730038 | L261: 1.159184074 | M261: 3.278326996 | N261: 1.17564462
B262: Universitair hoofddocent (UHD) | C262: 2026 | E262: 3.604630454 | F262: 1.167159021 | G262: 3.196969697 | H262: 1.198225605 | I262: 3.610516934 | J262: 1.14855372 | K262: 3.479500891 | L262: 1.137327305 | M262: 3.401960784 | N262: 1.129333042
B263: Universitair hoofddocent (UHD) | C263: Verschil | E263: =E262-E261 -> 0.479155169 | F263: -0.05550138229 | G263: -0.2757161907 | H263: -0.002418581797 | I263: 0.1188883191 | J263: -0.02503475688 | K263: 0.06277085324 | L263: -0.02185676828 | M263: 0.1236337881 | N263: -0.0463115788
B264: Universitair docent (UD) | C264: 2024 | E264: 2.675881792 | F264: 1.218518613 | G264: 3.100904331 | H264: 1.284821329 | I264: 3.146806482 | J264: 1.262568403 | K264: 3.09861839 | L264: 1.251231232 | M264: 2.833809524 | N264: 1.210758412
B265: Universitair docent (UD) | C265: 2026 | E265: 3.19791094 | F265: 1.275725825 | G265: 2.758392955 | H265: 1.222254747 | I265: 3.221854305 | J265: 1.241384349 | K265: 3.14592511 | L265: 1.202918821 | M265: 2.94438326 | N265: 1.207730542
B266: Universitair docent (UD) | C266: Verschil | E266: =E265-E264 -> 0.5220291479 | F266: 0.05720721236 | G266: -0.3425113758 | H266: -0.06256658218 | I266: 0.07504782227 | J266: -0.02118405376 | K266: 0.04730672042 | L266: -0.04831241152 | M266: 0.1105737361 | N266: -0.003027870046
B267: Onderzoeker (inclusief postdoc) | C267: 2024 | E267: 2.185360094 | F267: 1.191931318 | G267: 2.366745283 | H267: 1.294898488 | I267: 2.637971698 | J267: 1.325085225 | K267: 2.842167256 | L267: 1.351384559 | M267: 2.338443396 | N267: 1.203851777
B268: Onderzoeker (inclusief postdoc) | C268: 2026 | E268: 2.473469388 | F268: 1.266435628 | G268: 2.249658936 | H268: 1.175403904 | I268: 2.777626194 | J268: 1.314459866 | K268: 2.85675307 | L268: 1.32646407 | M268: 2.4420191 | N268: 1.207210697
B269: Onderzoeker (inclusief postdoc) | C269: Verschil | E269: =E268-E267 -> 0.2881092933 | F269: 0.07450431004 | G269: -0.1170863471 | H269: -0.1194945843 | I269: 0.1396544956 | J269: -0.01062535917 | K269: 0.01458581398 | L269: -0.02492048887 | M269: 0.1035757034 | N269: 0.003358919685
B270: Docent (inclusief wetenschappelijk docent) | C270: 2024 | E270: 2.215517241 | F270: 1.133612948 | G270: 2.575862069 | H270: 1.284733038 | I270: 2.635578584 | J270: 1.272620299 | K270: 2.467241379 | L270: 1.23868111 | M270: 2.34083045 | N270: 1.156592438
B271: Docent (inclusief wetenschappelijk docent) | C271: 2026 | E271: 2.691552063 | F271: 1.32404599 | G271: 2.367387033 | H271: 1.182465915 | I271: 2.683070866 | J271: 1.303896761 | K271: 2.564705882 | L271: 1.273397684 | M271: 2.400785855 | N271: 1.200590148
B272: Docent (inclusief wetenschappelijk docent) | C272: Verschil | E272: =E271-E270 -> 0.4760348215 | F272: 0.1904330419 | G272: -0.2084750356 | H272: -0.1022671235 | I272: 0.04749228238 | J272: 0.03127646282 | K272: 0.09746450304 | L272: 0.03471657438 | M272: 0.05995540479 | N272: 0.04399770997
B273: Promovendus | C273: 2024 | E273: 1.852509653 | F273: 1.07192259 | G273: 2.040123457 | H273: 1.206774181 | I273: 2.405405405 | J273: 1.348237777 | K273: 2.549459042 | L273: 1.379984706 | M273: 2.006949807 | N273: 1.150545013
B274: Promovendus | C274: 2026 | E274: 1.992213571 | F274: 1.175542094 | G274: 1.868743048 | H274: 1.056590137 | I274: 2.437152392 | J274: 1.345287539 | K274: 2.601336303 | L274: 1.365802428 | M274: 2.061111111 | N274: 1.141608105
B275: Promovendus | C275: Verschil | E275: =E274-E273 -> 0.1397039181 | F275: 0.1036195036 | G275: -0.171380409 | H275: -0.150184044 | I275: 0.03174698614 | J275: -0.002950237177 | K275: 0.05187726116 | L275: -0.01418227805 | M275: 0.05416130416 | N275: -0.008936908334
B276: Medisch specialist, zonder een van bovenstaande academische functies | C276: 2024 | E276: 1.661157025 | F276: 0.8453310286 | G276: 1.785123967 | H276: 0.9263913978 | I276: 2.012396694 | J276: 1.083567969 | K276: 2.095041322 | L276: 1.192671345 | M276: 2.066115702 | N276: 1.10626685
B277: Medisch specialist, zonder een van bovenstaande academische functies | C277: 2026 | E277: 1.82967033 | F277: 1.066101952 | G277: 1.697802198 | H277: 0.9295015027 | I277: 1.927777778 | J277: 1.093559385 | K277: 2.131868132 | L277: 1.271956697 | M277: 2.120879121 | N277: 1.237848471
B278: Medisch specialist, zonder een van bovenstaande academische functies | C278: Verschil | E278: =E277-E276 -> 0.1685133049 | F278: 0.2207709231 | G278: -0.08732176914 | H278: 0.003110104908 | I278: -0.08461891644 | J278: 0.00999141637 | K278: 0.03682680955 | L278: 0.07928535241 | M278: 0.0547634184 | N278: 0.1315816206
B279: Anders, namelijk... | C279: 2024 | E279: 2.592105263 | F279: 1.36799251 | G279: 2.802631579 | H279: 1.404941155 | I279: 2.973684211 | J279: 1.375729472 | K279: 3.013157895 | L279: 1.361307421 | M279: 2.815789474 | N279: 1.313626292
B280: Anders, namelijk... | C280: 2026 | E280: 3.081967213 | F280: 1.332855105 | G280: 2.803278689 | H280: 1.288664323 | I280: 3.262295082 | J280: 1.302582555 | K280: 3.229508197 | L280: 1.296063818 | M280: 3.114754098 | N280: 1.21241303
B281: Anders, namelijk... | C281: Verschil | E281: =E280-E279 -> 0.48986195 | F281: -0.035137405 | G281: 0.0006471095772 | H281: -0.1162768319 | I281: 0.2886108714 | J281: -0.073146917 | K281: 0.216350302 | L281: -0.06524360293 | M281: 0.2989646247 | N281: -0.1012132621
B282: Totaal | C282: 2024 | D282: 7770 - 7782 | E282: 2.624034997 | F282: 1.301802313 | G282: 2.924045752 | H282: 1.375329409 | I282: 3.061397863 | J282: 1.346970569 | K282: 3.059822462 | L282: 1.32599328 | M282: 2.780164651 | N282: 1.302715221
B283: Totaal | C283: 2026 | D283: 6426 - 6439 | E283: 3.044882746 | F283: 1.381884127 | G283: 2.733136463 | H283: 1.30876081 | I283: 3.166977902 | J283: 1.338785832 | K283: 3.131198508 | L283: 1.306750821 | M283: 2.912212554 | N283: 1.303715335
B284: Totaal | C284: Verschil | E284: =E283-E282 -> 0.4208477483 | F284: =F283-F282 -> 0.08008181399 | G284: =G283-G282 -> -0.1909092899 | H284: =H283-H282 -> -0.06656859817 | I284: =I283-I282 -> 0.105580039 | J284: =J283-J282 -> -0.008184737255 | K284: =K283-K282 -> 0.07137604532 | L284: =L283-L282 -> -0.01924245853 | M284: =M283-M282 -> 0.132047903 | N284: =N283-N282 -> 0.001000113293
B285: * Cijfers boven gemiddelde van dat jaar vet gedrukt
... 152 more rows

Sheet H2.2
B5: H 2.2 Uitwisseling en communicatie over het programma Erkennen & Waarderen
B7: Communicatie over het programma Erkennen & Waarderen
B16: Communicatie over het programma Erkennen & Waarderen
B17: Communicatie | C17: Jaar | D17: Aantal | E17: Nooit | F17: Zelden | G17: Soms | H17: Vaak | I17: Heel vaak | J17: Niet van toepassing
B18: Ik praat met mijn collega’s over het programma Erkennen & Waarderen. | C18: 2024 | D18: 7830 | E18: 0.3832694764 | F18: 0.2117496807 | G18: 0.2569604087 | H18: 0.1071519796 | I18: 0.0312899106 | J18: 0.009706257982
B19: Ik praat met mijn collega’s over het programma Erkennen & Waarderen. | C19: 2026 | D19: 6444 | E19: 0.3620422098 | F19: 0.241930478 | G19: 0.2594661701 | H19: 0.1049037865 | I19: 0.03165735568 | J19: x
B20: Ik praat met mijn collega’s over het programma Erkennen & Waarderen. | C20: Verschil | D20: =D19-D18 -> -1386 | E20: =E19-E18 -> -0.02122726657 | F20: 0.03018079725 | G20: 0.002505761396 | H20: -0.002248193098 | I20: 0.0003674450794 | J20: x
B21: Er wordt vanuit mijn instelling gecommuniceerd over het programma Erkennen & Waarderen. | C21: 2024 | D21: 7248 | E21: 0.2254104014 | F21: 0.2656918196 | G21: 0.3440474548 | H21: 0.1346392606 | I21: 0.02717616223 | J21: 0.003034901366
B22: Er wordt vanuit mijn instelling gecommuniceerd over het programma Erkennen & Waarderen. | C22: 2026 | D22: 5982 | E22: 0.1909060515 | F22: 0.2676362421 | G22: 0.3798060849 | H22: 0.1359077232 | I22: 0.02574389836 | J22: x
B23: Er wordt vanuit mijn instelling gecommuniceerd over het programma Erkennen & Waarderen. | C23: Verschil | D23: =D22-D21 -> -1266 | E23: =E22-E21 -> -0.03450434995 | F23: 0.001944422498 | G23: 0.0357586301 | H23: 0.001268462582 | I23: -0.001432263868 | J23: x
B26: Uitgesplitst naar vakgebied
B37: Communicatie over het programma Erkennen & Waarderen *** | E37: Ik praat met mijn collega’s over het Erkennen & Waarderen programma. | G37: Er wordt vanuit mijn instelling gecommuniceerd over het Erkennen & Waarderen programma.
B38: Vakgebied | C38: Jaar | D38: Aantal | E38: Gemiddelde* | F38: sd** | G38: Gemiddelde | H38: sd
B39: Landbouw / toegepaste levenswetenschappen | C39: 2024 | E39: 2.491935484 | F39: 1.265527736 | G39: 2.8125 | H39: 1.044343408
B40: Landbouw / toegepaste levenswetenschappen | C40: 2026 | E40: 2.4375 | F40: 1.199617555 | G40: 2.928571429 | H40: 0.9528208094
B41: Landbouw / toegepaste levenswetenschappen | C41: Verschil | E41: =E40-E39 -> -0.05443548387 | F41: -0.06591018111 | G41: 0.1160714286 | H41: -0.09152259828
B42: Natuur- en levenswetenschappen | C42: 2024 | E42: 2.238095238 | F42: 1.19520187 | G42: 2.457943925 | H42: 1.053015444
B43: Natuur- en levenswetenschappen | C43: 2026 | E43: 2.239187996 | F43: 1.124015098 | G43: 2.573613767 | H43: 1.050783139
B44: Natuur- en levenswetenschappen | C44: Verschil | E44: =E43-E42 -> 0.001092758374 | F44: -0.07118677203 | G44: 0.1156698415 | H44: -0.002232304577
B45: Techniek | C45: 2024 | E45: 2.100102145 | F45: 1.312278802 | G45: 2.426248548 | H45: 1.106306858
B46: Techniek | C46: 2026 | E46: 2.006518905 | F46: 1.076067328 | G46: 2.464285714 | H46: 1.006493327
B47: Techniek | C47: Verschil | E47: =E46-E45 -> -0.09358324022 | F47: -0.2362114738 | G47: 0.03803716609 | H47: -0.09981353116
B48: Gezondheid | C48: 2024 | E48: 1.925510204 | F48: 1.176406762 | G48: 2.176961603 | H48: 1.065694617
B49: Gezondheid | C49: 2026 | E49: 1.904577692 | F49: 1.062522106 | G49: 2.259129213 | H49: 1.011313834
B50: Gezondheid | C50: Verschil | E50: =E49-E48 -> -0.02093251227 | F50: -0.113884656 | G50: 0.08216761081 | H50: -0.05438078288
B51: Economie | C51: 2024 | E51: 2.40376569 | F51: 1.220950262 | G51: 2.715859031 | H51: 1.102221132
B52: Economie | C52: 2026 | E52: 2.429708223 | F52: 1.108942457 | G52: 2.761772853 | H52: 1.004866582
B53: Economie | C53: Verschil | E53: =E52-E51 -> 0.02594253244 | F53: -0.1120078055 | G53: 0.04591382235 | H53: -0.09735454967
B54: Recht | C54: 2024 | E54: 2.404129794 | F54: 1.302744279 | G54: 2.762345679 | H54: 1.127616486
B55: Recht | C55: 2026 | E55: 2.333333333 | F55: 1.192875023 | G55: 2.644599303 | H55: 1.037326325
B56: Recht | C56: Verschil | E56: =E55-E54 -> -0.07079646018 | F56: -0.1098692568 | G56: -0.1177463759 | H56: -0.09029016039
B57: Gedrag en maatschappij | C57: 2024 | E57: 2.517316017 | F57: 1.221375332 | G57: 2.74789916 | H57: 1.078992735
B58: Gedrag en maatschappij | C58: 2026 | E58: 2.472434916 | F58: 1.151879243 | G58: 2.73098937 | H58: 0.9886820663
B59: Gedrag en maatschappij | C59: Verschil | E59: =E58-E57 -> -0.04488110154 | F59: -0.06949608852 | G59: -0.01690978926 | H59: -0.09031066916
B60: Taal en cultuur | C60: 2024 | E60: 2.319213313 | F60: 1.185548071 | G60: 2.522508039 | H60: 1.001757624
B61: Taal en cultuur | C61: 2026 | E61: 2.292592593 | F61: 1.131248158 | G61: 2.588693957 | H61: 1.015710982
B62: Taal en cultuur | C62: Verschil | E62: =E61-E60 -> -0.02662072057 | F62: -0.05429991344 | G62: 0.06618591853 | H62: 0.01395335786
B63: Onderwijs (als wetenschapsgebied) | C63: 2024 | E63: 2.425837321 | F63: 1.261677147 | G63: 2.554404145 | H63: 1.074512381
B64: Onderwijs (als wetenschapsgebied) | C64: 2026 | E64: 2.362162162 | F64: 1.194951189 | G64: 2.670588235 | H64: 0.9777190615
B65: Onderwijs (als wetenschapsgebied) | C65: Verschil | E65: =E64-E63 -> -0.06367515841 | F65: -0.06672595846 | G65: 0.1161840902 | H65: -0.0967933194
B66: Anders, namelijk… | C66: 2024 | E66: 2.402777778 | F66: 1.410820581 | G66: 2.409090909 | H66: 1.066659382
B67: Anders, namelijk… | C67: 2026 | E67: 2.098039216 | F67: 1.024790749 | G67: 2.47826087 | H67: 0.960072461
B68: Anders, namelijk… | C68: Verschil | E68: =E67-E66 -> -0.3047385621 | F68: =F67-F66 -> -0.3860298319 | G68: =G67-G66 -> 0.06916996047 | H68: =H67-H66 -> -0.1065869212
B69: Totaal | C69: 2024 | D69: 7129 - 7699 | E69: 2.226522925 | F69: 1.239816613 | G69: 2.480151494 | H69: 1.09107191
B70: Totaal | C70: 2026 | D70: 5840 - 6296 | E70: 2.202350699 | F70: 1.135477786 | G70: 2.539554795 | H70: 1.028358211
B71: Totaal | C71: Verschil | E71: =E70-E69 -> -0.0241722262 | F71: =F70-F69 -> -0.1043388272 | G71: 0.05940330062 | H71: =H70-H69 -> -0.06271369862
B72: * Cijfers boven gemiddelde van dat jaar vet gedrukt
B73: ** Standaarddeviatie
B74: ***Antwoordcategorieën 1. Nooit, 2. Zelden, 3. Soms, 4. Vaak, 5. Heel vaak
B76: Uitgesplitst naar functiegroep
B89: Communicatie over het programma Erkennen & Waarderen *** | E89: Ik praat met mijn collega’s over het Erkennen & Waarderen programma. | G89: Er wordt vanuit mijn instelling gecommuniceerd over het Erkennen & Waarderen programma.
B90: Functiegroep | C90: Jaar | D90: Aantal | E90: Gemiddelde* | F90: sd** | G90: Gemiddelde | H90: sd
B91: Hoogleraar | C91: 2024 | E91: 2.954003407 | F91: 1.153044151 | G91: 3.085143354 | H91: 0.9972379034
B92: Hoogleraar | C92: 2026 | E92: 2.955134596 | F92: 1.142964706 | G92: 3.115660184 | H92: 0.9803031477
B93: Hoogleraar | C93: Verschil | E93: =E92-E91 -> 0.001131189056 | F93: =F92-F91 -> -0.01007944417 | G93: 0.03051683063 | H93: -0.01693475565
B94: Hoogleraar-Medisch specialist | C94: 2024 | E94: 2.170068027 | F94: 1.166743211 | G94: 2.447761194 | H94: 0.9621964549
B95: Hoogleraar-Medisch specialist | C95: 2026 | E95: 2.072727273 | F95: 1.089643414 | G95: 2.421568627 | H95: 1.129586576
B96: Hoogleraar-Medisch specialist | C96: Verschil | E96: =E95-E94 -> -0.09734075448 | F96: -0.07709979773 | G96: -0.02619256658 | H96: 0.1673901208
B97: Universitair hoofddocent (UHD) | C97: 2024 | E97: 2.597116844 | F97: 1.154394411 | G97: 2.729052467 | H97: 1.005569192
B98: Universitair hoofddocent (UHD) | C98: 2026 | E98: 2.584888889 | F98: 1.095584437 | G98: 2.809872029 | H98: 0.9422741087
B99: Universitair hoofddocent (UHD) | C99: Verschil | E99: =E98-E97 -> -0.01222795481 | F99: -0.05880997423 | G99: 0.08081956253 | H99: -0.06329508298
B100: Universitair docent (UD) | C100: 2024 | E100: 2.32601432 | F100: 1.169562286 | G100: 2.550731954 | H100: 1.03771102
B101: Universitair docent (UD) | C101: 2026 | E101: 2.273783186 | F101: 1.068095793 | G101: 2.527293844 | H101: 0.9463275569
B102: Universitair docent (UD) | C102: Verschil | E102: =E101-E100 -> -0.05223113397 | F102: -0.1014664926 | G102: -0.02343810919 | H102: -0.09138346301
B103: Onderzoeker (inclusief postdoc) | C103: 2024 | E103: 1.804733728 | F103: 1.174764807 | G103: 2.042407661 | H103: 0.9705847429
B104: Onderzoeker (inclusief postdoc) | C104: 2026 | E104: 1.725761773 | F104: 0.9104881493 | G104: 2.202531646 | H104: 0.9571450792
B105: Onderzoeker (inclusief postdoc) | C105: Verschil | E105: =E104-E103 -> -0.07897195496 | F105: -0.2642766578 | G105: 0.1601239848 | H105: -0.01343966371
B106: Docent (inclusief wetenschappelijk docent) | C106: 2024 | E106: 1.960344828 | F106: 1.191570806 | G106: 2.28490566 | H106: 1.014059246
B107: Docent (inclusief wetenschappelijk docent) | C107: 2026 | E107: 1.972111554 | F107: 1.032031465 | G107: 2.326086957 | H107: 0.9301146139
B108: Docent (inclusief wetenschappelijk docent) | C108: Verschil | E108: =E107-E106 -> 0.0117667262 | F108: -0.1595393408 | G108: 0.04118129614 | H108: -0.08394463171
B109: Promovendus | C109: 2024 | E109: 1.600465477 | F109: 1.114988135 | G109: 1.988990826 | H109: 1.097567178
B110: Promovendus | C110: 2026 | E110: 1.414466131 | F110: 0.7218890662 | G110: 2 | H110: 0.9909939281
B111: Promovendus | C111: Verschil | E111: =E110-E109 -> -0.1859993462 | F111: -0.3930990687 | G111: 0.01100917431 | H111: -0.1065732497
B112: Medisch specialist, zonder een van bovenstaande academische functies | C112: 2024 | E112: 1.367768595 | F112: 0.8648713598 | G112: 1.695067265 | H112: 0.9135234579
B113: Medisch specialist, zonder een van bovenstaande academische functies | C113: 2026 | E113: 1.350282486 | F113: 0.6669234226 | G113: 1.664473684 | H113: 0.8133332524
B114: Medisch specialist, zonder een van bovenstaande academische functies | C114: Verschil | E114: =E113-E112 -> -0.01748610917 | F114: -0.1979479373 | G114: -0.03059358036 | H114: -0.1001902055
B115: Anders, namelijk... | C115: 2024 | E115: 2.539473684 | F115: 1.341052218 | G115: 2.708333333 | H115: 1.131339727
B116: Anders, namelijk... | C116: 2026 | E116: 2.116666667 | F116: 1.165778516 | G116: 2.527272727 | H116: 0.9973027598
B117: Anders, namelijk... | C117: Verschil | E117: =E116-E115 -> -0.4228070175 | F117: -0.1752737026 | G117: -0.1810606061 | H117: -0.1340369671
B118: Totaal | C118: 2024 | D118: 7189 - 7766 | E118: 2.231779552 | F118: 1.242455497 | G118: 2.484629295 | H118: 1.09277179
B119: Totaal | C119: 2026 | D119: 5920 - 6378 | E119: 2.202100972 | F119: 1.133719971 | G119: 2.537668919 | H119: 1.027218677
B120: Totaal | C120: Verschil | E120: =E119-E118 -> -0.0296785798 | F120: =F119-F118 -> -0.1087355252 | G120: =G119-G118 -> 0.05303962416 | H120: =H119-H118 -> -0.06555311314
B121: * Cijfers boven gemiddelde van dat jaar vet gedrukt
B122: ** Standaarddeviatie
B123: ***Antwoordcategorieën 1. Nooit, 2. Zelden, 3. Soms, 4. Vaak, 5. Heel vaak
B125: Uitgesplitst naar instellingscategorie
B135: Communicatie over het programma Erkennen & Waarderen *** | E135: Ik praat met mijn collega’s over het Erkennen & Waarderen programma. | G135: Er wordt vanuit mijn instelling gecommuniceerd over het Erkennen & Waarderen programma.
B136: Instellingscategorie | C136: Jaar | D136: Aantal | E136: Gemiddelde* | F136: sd** | G136: Gemiddelde | H136: sd
B137: Universiteiten | C137: 2024 | E137: 2.443369082 | F137: 1.229700627 | G137: 2.710241465 | H137: 1.091775839
B138: Universiteiten | C138: 2026 | E138: 2.407850353 | F138: 1.146287557 | G138: 2.699967564 | H138: 1.015370197
B139: Universiteiten | C139: Verschil | D139: =D138-D137 -> 0 | E139: =E138-E137 -> -0.03551872922 | F139: =F138-F137 -> -0.08341307068 | G139: =G138-G137 -> -0.01027390138 | H139: -0.07640564218
B140: Technische universiteiten | C140: 2024 | E140: 2.19007732 | F140: 1.25501629 | G140: 2.469241774 | H140: 1.045211803
B141: Technische universiteiten | C141: 2026 | E141: 2.143612335 | F141: 1.136841438 | G141: 2.540983607 | H141: 1.020782214
B142: Technische universiteiten | C142: Verschil | D142: =D141-D140 -> 0 | E142: =E141-E140 -> -0.04646498479 | F142: =F141-F140 -> -0.118174851 | G142: =G138-G140 -> 0.2307257901 | H142: =H138-H140 -> -0.02984160609
B143: Levensbeschouwelijke universiteiten | C143: 2024 | E143: 2.028571429 | F143: 0.9923099763 | G143: 2.71641791 | H143: 0.8493485944
B144: Levensbeschouwelijke universiteiten | C144: 2026 | E144: 2.25 | F144: 1.08102019 | G144: 2.731707317 | H144: 0.6334189074
B145: Levensbeschouwelijke universiteiten | C145: Verschil | D145: =D144-D143 -> 0 | E145: =E144-E143 -> 0.2214285714 | F145: =F144-F143 -> 0.08871021371 | G145: 0.01528940663 | H145: -0.2159296871
B146: NWO- en KNAW-instituten | C146: 2024 | E146: 1.922680412 | F146: 1.076937238 | G146: 2.263736264 | H146: 0.9204270548
B147: NWO- en KNAW-instituten | C147: 2026 | E147: 2.003472222 | F147: 0.9859580809 | G147: 2.42248062 | H147: 0.9438509008
B148: NWO- en KNAW-instituten | C148: Verschil | D148: =D147-D146 -> 0 | E148: =E147-E146 -> 0.08079180985 | F148: =F147-F146 -> -0.09097915707 | G148: 0.1587443564 | H148: 0.02342384601
B149: Umc's | C149: 2024 | E149: 1.910080454 | F149: 1.191612752 | G149: 2.080477674 | H149: 1.024004353
B150: Umc's | C150: 2026 | E150: 1.863438858 | F150: 1.038978401 | G150: 2.216234652 | H150: 0.9984471272
B151: Umc's | C151: Verschil | D151: =D150-D149 -> 0 | E151: =E150-E149 -> -0.04664159648 | F151: =F150-F149 -> -0.1526343509 | G151: =G150-G149 -> 0.1357569782 | H151: =H150-H149 -> -0.02555722565
B152: Totaal | C152: 2024 | D152: 7176 - 7752 | E152: 2.230521156 | F152: 1.240474411 | G152: 2.482998885 | H152: 1.091616828
B153: Totaal | C153: 2026 | D153: 5885 - 6339 | E153: 2.202713362 | F153: 1.134286873 | G153: 2.539507222 | H153: 1.026506667
B154: Totaal | C154: Verschil | E154: =E153-E152 -> -0.0278077941 | F154: =F153-F152 -> -0.1061875377 | G154: =G153-G152 -> 0.05650833658 | H154: =H153-H152 -> -0.0651101609
B155: * Cijfers boven gemiddelde van dat jaar vet gedrukt
B156: ** Standaarddeviatie
B157: ***Antwoordcategorieën 1. Nooit, 2. Zelden, 3. Soms, 4. Vaak, 5. Heel vaak
B159: Er wordt vanuit mijn instelling gecommuniceerd over het Erkennen & Waarderen programma.
B161: Uitgesplitst naar instellingscategorie
B171: Er wordt vanuit mijn instelling gecommuniceerd over het Erkennen & Waarderen programma.
B172: Instellingscategorie | C172: Jaar | D172: Aantal | E172: Nooit | F172: Zelden | G172: Soms | H172: Vaak | I172: Heel vaak | J172: Niet van toepassing
B173: Universiteiten | C173: 2024 | D173: 3603 | E173: 0.1618096031 | F173: 0.2409103525 | G173: 0.3721898418 | H173: 0.1798501249 | I173: 0.0430197058 | J173: 0.002220371912
B174: Universiteiten | C174: 2026 | D174: 3083 | E174: 0.1433668505 | F174: 0.2465131366 | G174: 0.410638988 | H174: 0.1657476484 | I174: 0.03373337658 | J174: x
B175: Universiteiten | C175: Verschil | D175: =D174-D173 -> -520 | E175: =E174-E173 -> -0.01844275264 | F175: 0.005602784071 | G175: 0.0384491462 | H175: -0.0141024765 | I175: -0.009286329219 | J175: x
B176: Technische universiteiten | C176: 2024 | D176: 1398 | E176: 0.2060085837 | F176: 0.2868383405 | G176: 0.3712446352 | H176: 0.1137339056 | I176: 0.01716738197 | J176: 0.005007153076
B177: Technische universiteiten | C177: 2026 | D177: 1037 | E177: 0.1899710704 | F177: 0.2613307618 | G177: 0.3905496625 | H177: 0.1340405014 | I177: 0.02410800386 | J177: x
B178: Technische universiteiten | C178: Verschil | D178: =D177-D176 -> -361 | E178: =E177-E176 -> -0.0160375133 | F178: -0.02550757867 | G178: 0.01930502729 | H178: 0.02030659587 | I178: 0.006940621883 | J178: x
B179: Levensbeschouwelijke universiteiten | C179: 2024 | D179: 67 | E179: 0.08955223881 | F179: 0.2686567164 | G179: 0.4776119403 | H179: 0.1641791045 | I179: 0 | J179: 0
B180: Levensbeschouwelijke universiteiten | C180: 2026 | D180: 41 | E180: 0.0243902439 | F180: 0.2926829268 | G180: 0.6097560976 | H180: 0.07317073171 | I180: 0 | J180: x
B181: Levensbeschouwelijke universiteiten | C181: Verschil | D181: =D180-D179 -> -26 | E181: =E180-E179 -> -0.0651619949 | F181: 0.02402621041 | G181: 0.1321441573 | H181: -0.09100837277 | I181: 0 | J181: x
B182: NWO- en KNAW-instituten | C182: 2024 | D182: 182 | E182: 0.2417582418 | F182: 0.3351648352 | G182: 0.3406593407 | H182: 0.08241758242 | I182: 0 | J182: 0
B183: NWO- en KNAW-instituten | C183: 2026 | D183: 258 | E183: 0.1782945736 | F183: 0.3527131783 | G183: 0.3488372093 | H183: 0.1085271318 | I183: 0.01162790698 | J183: x
B184: NWO- en KNAW-instituten | C184: Verschil | D184: =D183-D182 -> 76 | E184: =E183-E182 -> -0.06346366811 | F184: 0.01754834313 | G184: 0.008177868643 | H184: 0.02610954937 | I184: 0.01162790698 | J184: x
B185: Umc's | C185: 2024 | D185: 1926 | E185: 0.3629283489 | F185: 0.2892004154 | G185: 0.2699896158 | H185: 0.06749740395 | I185: 0.006749740395 | J185: 0.003634475597
B186: Umc's | C186: 2026 | D186: 1466 | E186: 0.2960436562 | F186: 0.2974079127 | G186: 0.312414734 | H186: 0.08253751705 | I186: 0.01159618008 | J186: x
B187: Umc's | C187: Verschil | D187: =D186-D185 -> -460 | E187: =E186-E185 -> -0.0668846927 | F187: 0.008207497319 | G187: 0.04242511819 | H187: 0.01504011311 | I187: 0.004846439687 | J187: x
B188: Totaal | C188: 2024 | D188: =SUM(D173,D176,D179,D182,D185) -> 7176 | E188: 0.2257525084 | F188: 0.2654682274 | G188: 0.3447603122 | H188: 0.1341973244 | I188: 0.02675585284 | J188: 0.003065774805
B189: Totaal | C189: 2026 | D189: =SUM(D174,D177,D180,D183,D186) -> 5885 | E189: 0.1903143585 | F189: 0.266779949 | G189: 0.3813084112 | H189: 0.1362786746 | I189: 0.02531860663 | J189: x
B190: Totaal | C190: Verschil | D190: =D189-D188 -> -1291 | E190: =E189-E188 -> -0.03543814982 | F190: =F189-F188 -> 0.001311721598 | G190: =G189-G188 -> 0.03654809906 | H190: =H189-H188 -> 0.002081350182 | I190: =I189-I188 -> -0.001437246216 | J190: x

Sheet H2.3
B5: H 2.3 Mate van ervaren erkenning, waardering en beloning
B7: Erkennen en waarderen
B17: Mate van ervaren erkenning en waardering
B18: Uitspraak | C18: Jaar | D18: Aantal | E18: Helemaal niet van toepassing | F18: Niet van toepassing | G18: Neutraal | H18: Van toepassing | I18: Volledig van toepassing
B19: Over het algemeen voel ik mij erkend voor het werk dat ik doe | C19: 2024 | D19: 7850 | E19: 0.08420382166 | F19: 0.1551592357 | G19: 0.2662420382 | H19: 0.4017834395 | I19: 0.09261146497
B20: Over het algemeen voel ik mij erkend voor het werk dat ik doe | C20: 2026 | D20: 6516 | E20: 0.09069981584 | F20: 0.175567833 | G20: 0.2503069368 | H20: 0.3864333947 | I20: 0.09699201964
B21: Over het algemeen voel ik mij erkend voor het werk dat ik doe | C21: Verschil | D21: =D20-D19 -> -1334 | E21: 0.006495994182 | F21: 0.02040859736 | G21: -0.01593510145 | H21: -0.01535004477 | I21: 0.004380554676
B22: Over het algemeen voel ik mij gewaardeerd voor het werk dat ik doe | C22: 2024 | D22: 7846 | E22: 0.1105021667 | F22: 0.1800917665 | G22: 0.2557991333 | H22: 0.3589089982 | I22: 0.09469793525
B23: Over het algemeen voel ik mij gewaardeerd voor het werk dat ik doe | C23: 2026 | D23: 6509 | E23: 0.08818558918 | F23: 0.1651559379 | G23: 0.235827316 | H23: 0.4002150868 | I23: 0.1106160701
B24: Over het algemeen voel ik mij gewaardeerd voor het werk dat ik doe | C24: Verschil | D24: =D23-D22 -> -1337 | E24: -0.02231657752 | F24: -0.01493582857 | G24: -0.01997181729 | H24: 0.04130608859 | I24: 0.0159181348
B25: Over het algemeen voel ik mij beloond voor het werk dat ik doe | C25: 2024 | D25: x | E25: x | F25: x | G25: x | H25: x | I25: x
B26: Over het algemeen voel ik mij beloond voor het werk dat ik doe | C26: 2026 | D26: 6504 | E26: 0.1474477245 | F26: 0.1980319803 | G26: 0.2890528905 | H26: 0.2872078721 | I26: 0.0782595326
B27: Over het algemeen voel ik mij beloond voor het werk dat ik doe | C27: Verschil | D27: x | E27: x | F27: x | G27: x | H27: x | I27: x
B30: Uitgesplitst naar instellingscategorie
B39: Mate van ervaren erkenning en waardering*** | E39: Erkend | G39: Gewaardeerd | I39: Beloond
B40: Instellingscategorie | C40: Jaar | D40: Aantal | E40: Gemiddelde* | F40: sd** | G40: Gemiddelde | H40: sd | I40: Gemiddelde | J40: sd
B41: Umc's | C41: 2024 | E41: 3.371401605 | F41: 1.052158835 | G41: 3.323418319 | H41: 1.098256972 | I41: x | J41: x
B42: Umc's | C42: 2026 | E42: 3.43517955 | F42: 1.052763495 | G42: 3.476538696 | H42: 1.064776038 | I42: 3.21001221 | J42: 1.094707599
B43: Umc's | C43: Verschil | E43: =E42-E41 -> 0.06377794507 | F43: 0.0006046596826 | G43: 0.1531203767 | H43: -0.03348093316 | I43: x | J43: x
B44: Brede universiteiten | C44: 2024 | E44: 3.224137931 | F44: 1.1124036 | G44: 3.095947712 | H44: 1.173694769 | I44: x | J44: x
B45: Brede universiteiten | C45: 2026 | E45: 3.151570601 | F45: 1.145549977 | G45: 3.216183206 | H45: 1.157554968 | I45: 2.869578497 | J45: 1.197985632
B46: Brede universiteiten | C46: Verschil | E46: =E45-E44 -> -0.07256733024 | F46: 0.03314637673 | G46: 0.1202354937 | H46: -0.01613980155 | I46: x | J46: x
B47: NWO- en KNAW-instituten | C47: 2024 | E47: 3.520408163 | F47: 0.984282551 | G47: 3.353846154 | H47: 1.094938249 | I47: x | J47: x
B48: NWO- en KNAW-instituten | C48: 2026 | E48: 3.453608247 | F48: 1.030774251 | G48: 3.512027491 | H48: 1.014902584 | I48: 3.248275862 | J48: 1.128621258
B49: NWO- en KNAW-instituten | C49: Verschil | E49: =E48-E47 -> -0.06679991584 | F49: 0.04649169989 | G49: 0.1581813376 | H49: -0.0800356657 | I49: x | J49: x
B50: Levensbeschouwelijke universiteiten | C50: 2024 | E50: 3.718309859 | F50: 1.148702356 | G50: 3.845070423 | H50: 1.090843544 | I50: x | J50: x
B51: Levensbeschouwelijke universiteiten | C51: 2026 | E51: 3.727272727 | F51: 0.8724100904 | G51: 3.886363636 | H51: 0.6893174612 | I51: 3.659090909 | J51: 0.7758920393
B52: Levensbeschouwelijke universiteiten | C52: Verschil | E52: =E51-E50 -> 0.008962868118 | F52: -0.2762922656 | G52: 0.04129321383 | H52: -0.4015260829 | I52: x | J52: x
B53: Technische universiteiten | C53: 2024 | E53: 3.172768144 | F53: 1.089953352 | G53: 2.989088575 | H53: 1.162133916 | I53: x | J53: x
B54: Technische universiteiten | C54: 2026 | E54: 3.076322637 | F54: 1.133181519 | G54: 3.124024284 | H54: 1.14612289 | I54: 2.737207285 | J54: 1.171631477
B55: Technische universiteiten | C55: Verschil | E55: =E54-E53 -> -0.09644550727 | F55: 0.04322816672 | G55: 0.1349357094 | H55: -0.01601102532 | I55: x | J55: x
B56: Totaal | C56: 2024 | D56: 7771 - 7767 | E56: 3.265988933 | F56: 1.092928061 | G56: 3.149864813 | H56: 1.157089545 | I56: x | J56: x
B57: Totaal | C57: 2026 | D57: 6399 - 6410 | E57: 3.228393136 | F57: 1.123073406 | G57: 3.284353529 | H57: 1.132705773 | I57: 2.955461791 | J57: 1.177197294
B58: Totaal | C58: Verschil | E58: =E57-E56 -> -0.03759579749 | F58: =F57-F56 -> 0.03014534492 | G58: =G57-G56 -> 0.1344887164 | H58: =H57-H56 -> -0.0243837715 | I58: x | J58: x
B59: * Cijfers boven gemiddelde van dat jaar vet gedrukt
B60: ** Standaarddeviatie
B61: ***Antwoordcategorieën 1. Helemaal niet van toepassing, 2. Niet van toepassing, 3. Neutraal, 4. Van toepassing, 5. Volledig van toepassing
B63: Uitgesplitst naar functiegroep
B75: Mate van ervaren erkenning en waardering*** | E75: Erkend | G75: Gewaardeerd | I75: Beloond
B76: Functiegroep | C76: Jaar | D76: Aantal | E76: Gemiddelde* | F76: sd** | G76: Gemiddelde | H76: sd | I76: Gemiddelde | J76: sd
B77: Hoogleraar | C77: 2024 | E77: 3.759148936 | F77: 1.014729321 | G77: 3.660425532 | H77: 1.068166361 | I77: x | J77: x
B78: Hoogleraar | C78: 2026 | E78: 3.696909272 | F78: 1.097020288 | G78: 3.69760479 | H78: 1.109118617 | I78: 3.598401598 | J78: 1.142172247
B79: Hoogleraar | C79: Verschil | E79: =E78-E77 -> -0.06223966399 | F79: 0.08229096652 | G79: 0.0371792585 | H79: 0.04095225587 | I79: x | J79: x
B80: Hoogleraar-Medisch specialist | C80: 2024 | E80: 3.952380952 | F80: 0.9091116644 | G80: 3.891156463 | H80: 0.9517773691 | I80: x | J80: x
B81: Hoogleraar-Medisch specialist | C81: 2026 | E81: 3.855855856 | F81: 1.094173385 | G81: 3.846846847 | H81: 1.121672438 | I81: 3.763636364 | J81: 1.083040849
B82: Hoogleraar-Medisch specialist | C82: Verschil | E82: =E81-E80 -> -0.09652509653 | F82: 0.185061721 | G82: -0.04430961574 | H82: 0.1698950689 | I82: x | J82: x
B83: Universitair hoofddocent (UHD) | C83: 2024 | E83: 3.242792109 | F83: 1.082863875 | G83: 3.108662614 | H83: 1.137491485 | I83: x | J83: x
B84: Universitair hoofddocent (UHD) | C84: 2026 | E84: 3.164590747 | F84: 1.107149401 | G84: 3.204099822 | H84: 1.123212681 | I84: 2.931494662 | J84: 1.137761581
B85: Universitair hoofddocent (UHD) | C85: Verschil | E85: =E84-E83 -> -0.07820136193 | F85: 0.02428552599 | G85: 0.09543720777 | H85: -0.0142788043 | I85: x | J85: x
B86: Universitair docent (UD) | C86: 2024 | E86: 3.000951022 | F86: 1.121538569 | G86: 2.847288297 | H86: 1.186947004 | I86: x | J86: x
B87: Universitair docent (UD) | C87: 2026 | E87: 2.915523862 | F87: 1.108046281 | G87: 3.004939627 | H87: 1.135265549 | I87: 2.558241758 | J87: 1.140687941
B88: Universitair docent (UD) | C88: Verschil | E88: =E87-E86 -> -0.08542716058 | F88: -0.01349228794 | G88: 0.1576513299 | H88: -0.05168145557 | I88: x | J88: x
B89: Onderzoeker (inclusief postdoc) | C89: 2024 | E89: 3.193396226 | F89: 1.053628699 | G89: 3.087264151 | H89: 1.147628556 | I89: x | J89: x
B90: Onderzoeker (inclusief postdoc) | C90: 2026 | E90: 3.221467391 | F90: 1.078485216 | G90: 3.292517007 | H90: 1.085016131 | I90: 2.885558583 | J90: 1.087186263
B91: Onderzoeker (inclusief postdoc) | C91: Verschil | E91: =E90-E89 -> 0.02807116489 | F91: 0.02485651736 | G91: 0.2052528559 | H91: -0.06261242465 | I91: x | J91: x
B92: Docent (inclusief wetenschappelijk docent) | C92: 2024 | E92: 3.103448276 | F92: 1.107201348 | G92: 3.055172414 | H92: 1.160842469 | I92: x | J92: x
B93: Docent (inclusief wetenschappelijk docent) | C93: 2026 | E93: 3.054901961 | F93: 1.163004328 | G93: 3.235294118 | H93: 1.136779916 | I93: 2.754420432 | J93: 1.162320644
B94: Docent (inclusief wetenschappelijk docent) | C94: Verschil | E94: =E93-E92 -> -0.04854631508 | F94: 0.0558029802 | G94: 0.1801217039 | H94: -0.02406255306 | I94: x | J94: x
B95: Promovendus | C95: 2024 | E95: 3.3003861 | F95: 0.9907414546 | G95: 3.175289575 | H95: 1.059734178 | I95: x | J95: x
B96: Promovendus | C96: 2026 | E96: 3.394006659 | F96: 0.9894598055 | G96: 3.398888889 | H96: 1.038630317 | I96: 3.051111111 | J96: 1.054493478
B97: Promovendus | C97: Verschil | E97: =E96-E95 -> 0.09362055888 | F97: -0.001281649103 | G97: 0.2235993136 | H97: -0.0211038607 | I97: x | J97: x
B98: Medisch specialist, zonder een van bovenstaande academische functies | C98: 2024 | E98: 3.271604938 | F98: 1.004276134 | G98: 3.260330579 | H98: 0.9991680638 | I98: x | J98: x
B99: Medisch specialist, zonder een van bovenstaande academische functies | C99: 2026 | E99: 3.318681319 | F99: 1.03399799 | G99: 3.359116022 | H99: 1.010108516 | I99: 3.288888889 | J99: 1.016560577
B100: Medisch specialist, zonder een van bovenstaande academische functies | C100: Verschil | E100: =E99-E98 -> 0.04707638041 | F100: 0.02972185532 | G100: 0.09878544359 | H100: 0.01094045227 | I100: x | J100: x
B101: Anders, namelijk... | C101: 2024 | E101: 3.460526316 | F101: 1.088617343 | G101: 3.381578947 | H101: 1.142711457 | I101: x | J101: x
B102: Anders, namelijk... | C102: 2026 | E102: 3.409836066 | F102: 1.131032702 | G102: 3.524590164 | H102: 1.089442631 | I102: 3.114754098 | J102: 1.239601558
B103: Anders, namelijk... | C103: Verschil | E103: =E102-E101 -> -0.05069025022 | F103: 0.04241535894 | G103: 0.1430112166 | H103: -0.05326882604 | I103: x | J103: x
B104: Totaal | C104: 2024 | D104: 7781 - 7785 | E104: 3.265639049 | F104: 1.09297124 | G104: 3.148309986 | H104: 1.157231109 | I104: x | J104: x
B105: Totaal | C105: 2026 | D105: 6439 - 6451 | E105: 3.225391412 | F105: 1.123137969 | G105: 3.282743637 | H105: 1.131631546 | I105: 2.953098307 | J105: 1.176411771
B106: Totaal | C106: Verschil | E106: =E105-E104 -> -0.04024763727 | F106: =F105-F104 -> 0.03016672898 | G106: =G105-G104 -> 0.1344336516 | H106: =H105-H104 -> -0.02559956277 | I106: x | J106: x
B107: * Cijfers boven gemiddelde van dat jaar vet gedrukt
B108: ** Standaarddeviatie
B109: *** Antwoordcategorieën 1. Helemaal niet van toepassing, 2. Niet van toepassing, 3. Neutraal, 4. Van toepassing, 5. Volledig van toepassing
B111: Uitgesplitst naar vakgebied
B122: Mate van ervaren erkenning en waardering*** | E122: Erkend | G122: Gewaardeerd | I122: Beloond
B123: Vakgebied | C123: Jaar | D123: Aantal | E123: Gemiddelde* | F123: sd** | G123: Gemiddelde | H123: sd | I123: Gemiddelde | J123: sd
B124: Landbouw / toegepaste levenswetenschappen | C124: 2024 | E124: 3.232 | F124: 0.9848530265 | G124: 3.08 | H124: 1.059519063 | I124: x | J124: x
B125: Landbouw / toegepaste levenswetenschappen | C125: 2026 | E125: 3.172839506 | F125: 1.159634894 | G125: 3.3 | H125: 1.151773536 | I125: 2.8375 | J125: 1.195389349
B126: Landbouw / toegepaste levenswetenschappen | C126: Verschil | E126: =E125-E124 -> -0.05916049383 | F126: 0.1747818671 | G126: 0.22 | H126: 0.09225447297 | I126: x | J126: x
B127: Natuur- en levenswetenschappen | C127: 2024 | E127: 3.172575251 | F127: 1.095040415 | G127: 3.016064257 | H127: 1.170528489 | I127: x | J127: x
B128: Natuur- en levenswetenschappen | C128: 2026 | E128: 3.168126095 | F128: 1.10441699 | G128: 3.211908932 | H128: 1.126805898 | I128: 2.845008757 | J128: 1.167619866
B129: Natuur- en levenswetenschappen | C129: Verschil | E129: =E128-E127 -> -0.004449156265 | F129: 0.009376575152 | G129: 0.1958446747 | H129: -0.04372259101 | I129: x | J129: x
B130: Techniek | C130: 2024 | E130: 3.151576806 | F130: 1.099164215 | G130: 2.950152594 | H130: 1.174472832 | I130: x | J130: x
B131: Techniek | C131: 2026 | E131: 3.101910828 | F131: 1.108781698 | G131: 3.154140127 | H131: 1.128452211 | I131: 2.762755102 | J131: 1.173283072
B132: Techniek | C132: Verschil | E132: =E131-E130 -> -0.04966597767 | F132: 0.009617483254 | G132: 0.2039875333 | H132: -0.04602062043 | I132: x | J132: x
B133: Gezondheid | C133: 2024 | E133: 3.445519348 | F133: 1.029164767 | G133: 3.406011207 | H133: 1.06644901 | I133: x | J133: x
B134: Gezondheid | C134: 2026 | E134: 3.468274112 | F134: 1.053011918 | G134: 3.518424396 | H134: 1.059262927 | I134: 3.245547074 | J134: 1.08669953
B135: Gezondheid | C135: Verschil | E135: =E134-E133 -> 0.02275476341 | F135: 0.02384715084 | G135: 0.1124131891 | H135: -0.007186082807 | I135: x | J135: x
B136: Economie | C136: 2024 | E136: 3.197916667 | F136: 1.17755445 | G136: 3.083507307 | H136: 1.215881404 | I136: x | J136: x
B137: Economie | C137: 2026 | E137: 3.147757256 | F137: 1.14518268 | G137: 3.155672823 | H137: 1.18166695 | I137: 2.87037037 | J137: 1.27061061
B138: Economie | C138: Verschil | E138: =E137-E136 -> -0.05015941073 | F138: -0.03237176998 | G138: 0.07216551633 | H138: -0.03421445397 | I138: x | J138: x
B139: Recht | C139: 2024 | E139: 3.247787611 | F139: 1.124216809 | G139: 3.100294985 | H139: 1.194897894 | I139: x | J139: x
B140: Recht | C140: 2026 | E140: 3.191558442 | F140: 1.143880549 | G140: 3.227272727 | H140: 1.191843765 | I140: 2.905537459 | J140: 1.194021855
B141: Recht | C141: Verschil | E141: =E140-E139 -> -0.05622916906 | F141: 0.01966373962 | G141: 0.126977742 | H141: -0.003054129143 | I141: x | J141: x
B142: Gedrag en maatschappij | C142: 2024 | E142: 3.251259899 | F142: 1.077444374 | G142: 3.13174946 | H142: 1.135898966 | I142: x | J142: x
B143: Gedrag en maatschappij | C143: 2026 | E143: 3.165019011 | F143: 1.15179394 | G143: 3.237442922 | H143: 1.145845108 | I143: 2.910129474 | J143: 1.178243861
B144: Gedrag en maatschappij | C144: Verschil | E144: =E143-E142 -> -0.0862408878 | F144: 0.07434956576 | G144: 0.1056934623 | H144: 0.009946141711 | I144: x | J144: x
B145: Taal en cultuur | C145: 2024 | E145: 3.194570136 | F145: 1.171089593 | G145: 3.082956259 | H145: 1.224397876 | I145: x | J145: x
B146: Taal en cultuur | C146: 2026 | E146: 3.060885609 | F146: 1.151219537 | G146: 3.144177449 | H146: 1.150486338 | I146: 2.833641405 | J146: 1.219462333
B147: Taal en cultuur | C147: Verschil | E147: =E146-E145 -> -0.1336845269 | F147: -0.01987005556 | G147: 0.06122118974 | H147: -0.07391153884 | I147: x | J147: x
B148: Onderwijs (als wetenschapsgebied) | C148: 2024 | E148: 3.421052632 | F148: 1.044554028 | G148: 3.358851675 | H148: 1.100887152 | I148: x | J148: x
B149: Onderwijs (als wetenschapsgebied) | C149: 2026 | E149: 3.486772487 | F149: 1.104191558 | G149: 3.592592593 | H149: 1.060985165 | I149: 3.264550265 | J149: 1.093434193
B150: Onderwijs (als wetenschapsgebied) | C150: Verschil | E150: =E149-E148 -> 0.06571985519 | F150: 0.05963752958 | G150: 0.233740918 | H150: -0.03990198737 | I150: x | J150: x
B151: Anders, namelijk… | C151: 2024 | E151: 3.069444444 | F151: 1.1667505 | G151: 2.915492958 | H151: 1.227616493 | I151: x | J151: x
B152: Anders, namelijk… | C152: 2026 | E152: 2.94 | F152: 1.114102549 | G152: 3.104166667 | H152: 1.096213664 | I152: 2.48 | J152: 1.129204163
B153: Anders, namelijk… | C153: Verschil | E153: =E152-E151 -> -0.1294444444 | F153: -0.05264795096 | G153: 0.1886737089 | H153: -0.1314028288 | I153: x | J153: x
B154: Totaal | C154: 2024 | D154: 7715 - 7719 | E154: 3.267003498 | F154: 1.092668315 | G154: 3.150745301 | H154: 1.156402924 | I154: x | J154: x
B155: Totaal | C155: 2026 | D155: 6356 - 6367 | E155: 3.232134443 | F155: 1.121359281 | G155: 3.289150943 | H155: 1.130935108 | I155: 2.960352423 | J155: 1.175276977
B156: Totaal | C156: Verschil | E156: =E155-E154 -> -0.03486905464 | F156: =F155-F154 -> 0.02869096613 | G156: 0.138405642 | H156: -0.02546781615 | I156: x | J156: x
B157: * Cijfers boven gemiddelde van dat jaar vet gedrukt
B158: ** Standaarddeviatie
B159: *** Antwoordcategorieën 1. Helemaal niet van toepassing, 2. Niet van toepassing, 3. Neutraal, 4. Van toepassing, 5. Volledig van toepassing
B161: Uitgesplitst naar Gender
B170: Mate van ervaren erkenning en waardering*** | E170: Erkend | G170: Gewaardeerd | I170: Beloond
B171: Wat is je Gender? | C171: Jaar | D171: Aantal | E171: Gemiddelde* | F171: sd** | G171: Gemiddelde | H171: sd | I171: Gemiddelde | J171: sd
B172: Man | C172: 2024 | E172: 3.34375 | F172: 1.109193021 | G172: 3.22 | H172: 1.171663189 | I172: x | J172: x
B173: Man | C173: 2026 | E173: 3.263763066 | F173: 1.15228286 | G173: 3.324616457 | H173: 1.145620264 | I173: 3.013612565 | J173: 1.214218187
B174: Man | C174: Verschil | E174: =E173-E172 -> -0.0799869338 | F174: 0.04308983867 | G174: 0.1046164575 | H174: -0.0260429247 | I174: x | J174: x
B175: Vrouw | C175: 2024 | E175: 3.25 | F175: 1.052504189 | G175: 3.13 | H175: 1.121241421 | I175: x | J175: x
B176: Vrouw | C176: 2026 | E176: 3.258444869 | F176: 1.072358415 | G176: 3.320255183 | H176: 1.090140269 | I176: 2.964251516 | J176: 1.124156583
B177: Vrouw | C177: Verschil | E177: =E176-E175 -> 0.008444869344 | F177: 0.01985422617 | G177: 0.1902551834 | H177: -0.03110115159 | I177: x | J177: x
B178: Non-binair of geen van bovenstaande | C178: 2024 | E178: 2.82 | F178: 1.173357438 | G178: 2.56 | H178: 1.178511302 | I178: x | J178: x
B179: Non-binair of geen van bovenstaande | C179: 2026 | E179: 2.930232558 | F179: 1.20307837 | G179: 2.976744186 | H179: 1.123098861 | I179: 2.813953488 | J179: 1.15996334
B180: Non-binair of geen van bovenstaande | C180: Verschil | E180: =E179-E178 -> 0.1102325581 | F180: 0.02972093195 | G180: 0.416744186 | H180: -0.05541244077 | I180: x | J180: x
B181: Wil ik liever niet zeggen | C181: 2024 | E181: 2.81 | F181: 1.133808141 | G181: 2.71 | H181: 1.192490967 | I181: x | J181: x
B182: Wil ik liever niet zeggen | C182: 2026 | E182: 2.696 | F182: 1.176126153 | G182: 2.672922252 | H182: 1.211611069 | I182: 2.438502674 | J182: 1.194362946
B183: Wil ik liever niet zeggen | C183: Verschil | E183: =E182-E181 -> -0.114 | F183: 0.04231801132 | G183: -0.03707774799 | H183: 0.01912010228 | I183: x | J183: x
B184: Totaal | C184: 2024 | D184: 7746 - 7750 | E184: 3.266967742 | F184: 1.091423158 | G184: 3.15001291 | H184: 1.155539888 | I184: x | J184: x
B185: Totaal | C185: 2026 | D185: 6415 - 6426 | E185: 3.225801432 | F185: 1.123596375 | G185: 3.282286961 | H185: 1.132984874 | I185: 2.954637568 | J185: 1.176622375
B186: Totaal | C186: Verschil | E186: =E185-E184 -> -0.04116631025 | F186: =F185-F184 -> 0.03217321681 | G186: =G185-G184 -> 0.1322740507 | H186: =H185-H184 -> -0.0225550141 | I186: x | J186: x
B187: * Cijfers boven gemiddelde van dat jaar vet gedrukt
B188: ** Standaarddeviatie
B189: *** Antwoordcategorieën 1. Helemaal niet van toepassing, 2. Niet van toepassing, 3. Neutraal, 4. Van toepassing, 5. Volledig van toepassing
B191: Uitgesplitst naar leeftijd
B200: Mate van ervaren erkenning en waardering*** | E200: Erkend | G200: Gewaardeerd | I200: Beloond
B201: Leeftijd | C201: Jaar | D201: Aantal | E201: Gemiddelde* | F201: sd* | G201: Gemiddelde | H201: sd | I201: Gemiddelde | J201: sd
B202: 24 jaar of jonger | C202: 2024 | E202: 3.591397849 | F202: 0.7834782972 | G202: 3.419354839 | H202: 0.9007554878 | I202: x | J202: x
B203: 24 jaar of jonger | C203: 2026 | E203: 3.712121212 | F203: 0.6740269685 | G203: 3.666666667 | H203: 0.8828857115 | I203: 3.569230769 | J203: 0.9008542954
B204: 24 jaar of jonger | C204: Verschil | E204: =E203-E202 -> 0.1207233627 | F204: -0.1094513287 | G204: 0.247311828 | H204: -0.01786977635 | I204: x | J204: x
B205: 25 t/m 29 jaar | C205: 2024 | E205: 3.332695985 | F205: 0.9665317057 | G205: 3.222753346 | H205: 1.031141176 | I205: x | J205: x
B206: 25 t/m 29 jaar | C206: 2026 | E206: 3.459499264 | F206: 0.9412194984 | G206: 3.477104874 | H206: 0.9767225154 | I206: 3.071005917 | J206: 1.017325263
B207: 25 t/m 29 jaar | C207: Verschil | E207: =E206-E205 -> 0.1268032789 | F207: -0.02531220729 | G207: 0.2543515284 | H207: -0.05441866054 | I207: x | J207: x
B208: 30 t/m 34 jaar | C208: 2024 | E208: 3.163618864 | F208: 1.054481579 | G208: 2.997109827 | H208: 1.141397462 | I208: x | J208: x
B209: 30 t/m 34 jaar | C209: 2026 | E209: 3.185554172 | F209: 1.067166073 | G209: 3.250311333 | H209: 1.073767589 | I209: 2.824408468 | J209: 1.068852599
B210: 30 t/m 34 jaar | C210: Verschil | E210: =E209-E208 -> 0.02193530756 | F210: 0.01268449407 | G210: 0.2532015059 | H210: -0.06762987325 | I210: x | J210: x
B211: 35 t/m 39 jaar | C211: 2024 | E211: 3.10951526 | F211: 1.066789837 | G211: 2.956873315 | H211: 1.145812645 | I211: x | J211: x
B212: 35 t/m 39 jaar | C212: 2026 | E212: 3.021598272 | F212: 1.084319707 | G212: 3.075675676 | H212: 1.117890088 | I212: 2.665226782 | J212: 1.122844025
B213: 35 t/m 39 jaar | C213: Verschil | E213: =E212-E211 -> -0.08791698818 | F213: 0.0175298702 | G213: 0.1188023603 | H213: -0.02792255684 | I213: x | J213: x
B214: 40 t/m 44 jaar | C214: 2024 | E214: 3.152485257 | F214: 1.11004921 | G214: 2.991568297 | H214: 1.182115562 | I214: x | J214: x
B215: 40 t/m 44 jaar | C215: 2026 | E215: 3.111001965 | F215: 1.122951222 | G215: 3.169941061 | H215: 1.134772727 | I215: 2.771878073 | J215: 1.164211957
B216: 40 t/m 44 jaar | C216: Verschil | E216: =E215-E214 -> -0.04148329231 | F216: 0.01290201232 | G216: 0.1783727641 | H216: -0.04734283492 | I216: x | J216: x
B217: 45 t/m 49 jaar | C217: 2024 | E217: 3.213407821 | F217: 1.098218563 | G217: 3.101789709 | H217: 1.151335529 | I217: x | J217: x
B218: 45 t/m 49 jaar | C218: 2026 | E218: 3.114318707 | F218: 1.186476032 | G218: 3.215935335 | H218: 1.171245122 | I218: 2.901734104 | J218: 1.196371539
B219: 45 t/m 49 jaar | C219: Verschil | E219: =E218-E217 -> -0.09908911453 | F219: 0.0882574689 | G219: 0.1141456257 | H219: 0.01990959263 | I219: x | J219: x
B220: 50 t/m 54 jaar | C220: 2024 | E220: 3.35678392 | F220: 1.135296136 | G220: 3.287688442 | H220: 1.161824279 | I220: x | J220: x
B221: 50 t/m 54 jaar | C221: 2026 | E221: 3.303907381 | F221: 1.120416234 | G221: 3.353623188 | H221: 1.111828436 | I221: 3.136034732 | J221: 1.20458829
B222: 50 t/m 54 jaar | C222: Verschil | E222: =E221-E220 -> -0.05287653899 | F222: -0.01487990264 | G222: 0.06593474619 | H222: -0.04999584379 | I222: x | J222: x
B223: 55 t/m 59 jaar | C223: 2024 | E223: 3.460218409 | F223: 1.14375722 | G223: 3.414976599 | H223: 1.180317903 | I223: x | J223: x
B224: 55 t/m 59 jaar | C224: 2026 | E224: 3.412251656 | F224: 1.131744085 | G224: 3.511589404 | H224: 1.136547151 | I224: 3.298013245 | J224: 1.236775897
B225: 55 t/m 59 jaar | C225: Verschil | E225: =E224-E223 -> -0.04796675311 | F225: -0.01201313499 | G225: 0.09661280491 | H225: -0.0437707515 | I225: x | J225: x
B226: 60 t/m 64 jaar | C226: 2024 | E226: 3.481543624 | F226: 1.141130929 | G226: 3.441275168 | H226: 1.154417625 | I226: x | J226: x
B227: 60 t/m 64 jaar | C227: 2026 | E227: 3.406315789 | F227: 1.187648328 | G227: 3.41350211 | H227: 1.199853397 | I227: 3.245762712 | J227: 1.222134436
B228: 60 t/m 64 jaar | C228: Verschil | E228: =E227-E226 -> -0.07522783469 | F228: 0.04651739809 | G228: -0.02777305808 | H228: 0.04543577249 | I228: x | J228: x
B229: 65 jaar of ouder | C229: 2024 | E229: 3.724637681 | F229: 1.100097851 | G229: 3.676328502 | H229: 1.139140388 | I229: x | J229: x
B230: 65 jaar of ouder | C230: 2026 | E230: 3.680232558 | F230: 1.183247565 | G230: 3.720930233 | H230: 1.166302327 | I230: 3.505813953 | J230: 1.211528893
B231: 65 jaar of ouder | C231: Verschil | E231: =E230-E229 -> -0.04440512302 | F231: 0.0831497142 | G231: 0.04460173014 | H231: 0.02716193896 | I231: x | J231: x
B232: Totaal | C232: 2024 | D232: 7610 - 7614 | E232: 3.273574993 | F232: 1.090369777 | G232: 3.157687254 | H232: 1.154327273 | I232: x | J232: x
B233: Totaal | C233: 2026 | D233: 6291 - 6300 | E233: 3.23952381 | F233: 1.117736368 | G233: 3.297220016 | H233: 1.126203861 | I233: 2.967254808 | J233: 1.174128537
B234: Totaal | C234: Verschil | E234: =E233-E232 -> -0.03405118391 | F234: =F233-F232 -> 0.02736659078 | G234: =G233-G232 -> 0.1395327623 | H234: =H233-H232 -> -0.02812341241 | I234: x | J234: x
B235: * Cijfers boven gemiddelde van dat jaar vet gedrukt
B236: ** Standaarddeviatie
B237: *** Antwoordcategorieën 1. Helemaal niet van toepassing, 2. Niet van toepassing, 3. Neutraal, 4. Van toepassing, 5. Volledig van toepassing

Sheet H3.1
B5: H 3.1 Zichtbare veranderingen binnen de organisatie
B7: Ervaren verandering door het programma Erkennen & Waarderen op systeem, beleid en cultuur
B16: Ervaren verandering door het programma Erkennen & Waarderen op systeem, beleid en cultuur
B17: Verandering | C17: Jaar | D17: Aantal | E17: Gemiddelde*
B18: Systeem | C18: 2024 | D18: 6039 | E18: 3.185461169
B19: Systeem | C19: 2026 | D19: 5207 | E19: 3.154407528
B20: Systeem | C20: Verschil | D20: =D19-D18 -> -832 | E20: -0.03105364074
B21: Beleid | C21: 2024 | D21: 6419 | E21: 3.316560212
B22: Beleid | C22: 2026 | D22: 5516 | E22: 3.265228426
B23: Beleid | C23: Verschil | D23: =D22-D21 -> -903 | E23: -0.05133178548
B24: Cultuur | C24: 2024 | D24: 6492 | E24: 3.262476895
B25: Cultuur | C25: 2026 | D25: 5614 | E25: 3.202885643
B26: Cultuur | C26: Verschil | D26: =D25-D24 -> -878 | E26: -0.0595912516
B27: Mijn dagelijkse werkzaamheden | C27: 2024 | D27: x | E27: x
B28: Mijn dagelijkse werkzaamheden | C28: 2026 | D28: 5634 | E28: 3
B29: Mijn dagelijkse werkzaamheden | C29: Verschil | D29: x | E29: x
B31: * Antwoordcategorieën 1. Negatieve verandering, 2. Enigszins negatieve verandering, 3. Geen verandering, 4. Enigszins positieve verandering, 5. Positieve verandering
B40: Ervaren verandering door het programma Erkennen & Waarderen op systeem, beleid en cultuur
B41: Verandering | C41: Jaar | D41: Aantal | E41: Negatieve verandering | F41: Enigszins negatieve verandering | G41: Geen verandering | H41: Enigszins positieve verandering | I41: Positieve verandering
B42: Systeem | C42: 2024 | D42: 6039 | E42: 0.04818678589 | F42: 0.06159960258 | G42: 0.5938069217 | H42: 0.2493790363 | I42: 0.04702765359
B43: Systeem | C43: 2026 | D43: 5207 | E43: 0.05819089687 | F43: 0.06433647014 | G43: 0.5870942961 | H43: 0.2456308815 | I43: 0.04474745535
B44: Systeem | C44: Verschil | D44: =D43-D42 -> -832 | E44: 0.01000411098 | F44: 0.002736867553 | G44: -0.006712625536 | H44: -0.003748154759 | I44: -0.002280198236
B45: Beleid | C45: 2024 | D45: 6419 | E45: 0.06075712728 | F45: 0.07804954043 | G45: 0.4321545412 | H45: 0.3419535753 | I45: 0.08708521577
B46: Beleid | C46: 2026 | D46: 5516 | E46: 0.0737853517 | F46: 0.09028281363 | G46: 0.4127991298 | H46: 0.3431834663 | I46: 0.07994923858
B47: Beleid | C47: Verschil | D47: =D46-D45 -> -903 | E47: 0.01302822443 | F47: 0.01223327321 | G47: -0.0193554114 | H47: 0.001229890957 | I47: -0.007135977187
B48: Cultuur | C48: 2024 | D48: 6492 | E48: 0.04621072089 | F48: 0.06762168823 | G48: 0.5288046827 | H48: 0.2922057917 | I48: 0.06515711645
B49: Cultuur | C49: 2026 | D49: 5614 | E49: 0.05771286071 | F49: 0.07178482366 | G49: 0.5386533666 | H49: 0.27360171 | I49: 0.05824723905
B50: Cultuur | C50: Verschil | D50: =D49-D48 -> -878 | E50: 0.01150213982 | F50: 0.004163135423 | G50: 0.009848683897 | H50: -0.01860408173 | I50: -0.006909877406
B51: Mijn dagelijkse werkzaamheden | C51: 2024 | D51: x | E51: x | F51: x | G51: x | H51: x | I51: x
B52: Mijn dagelijkse werkzaamheden | C52: 2026 | D52: 5634 | E52: 0.04845580405 | F52: 0.07898473553 | G52: 0.7263045793 | H52: 0.1166134185 | I52: 0.02964146255
B53: Mijn dagelijkse werkzaamheden | C53: Verschil | D53: x | E53: x | F53: x | G53: x | H53: x | I53: x
B56: Uitgesplitst naar instellingscategorie
B65: Ervaren verandering door het programma Erkennen & Waarderen op systeem, beleid en cultuur*** | E65: Systeem | G65: Beleid | I65: Cultuur | K65: Mijn dagelijkse werkzaamheden
B66: Instellingscategorie | C66: Jaar | D66: Aantal | E66: Gemiddelde* | F66: sd** | G66: Gemiddelde | H66: sd | I66: Gemiddelde | J66: sd | K66: Gemiddelde | L66: sd
B67: Umc's | C67: 2024 | E67: 3.124769514 | F67: 0.7801629551 | G67: 3.223188406 | H67: 0.8626943655 | I67: 3.216400911 | J67: 0.8178101723 | K67: x | L67: x
B68: Umc's | C68: 2026 | E68: 3.22687747 | F68: 0.8238370044 | G68: 3.335809807 | H68: 0.893684561 | I68: 3.33720087 | J68: 0.8476902775 | K68: 3.085445329 | L68: 0.6626240388
B69: Umc's | C69: Verschil | E69: =E68-E67 -> 0.1021079559 | F69: 0.0436740493 | G69: 0.112621401 | H69: 0.03099019552 | I69: 0.120799959 | J69: 0.02988010516 | K69: x | L69: x
B70: Brede universiteiten | C70: 2024 | E70: 3.20092075 | F70: 0.8240300163 | G70: 3.344022416 | H70: 1.004948087 | I70: 3.274976802 | J70: 0.8746543913 | K70: x | L70: x
B71: Brede universiteiten | C71: 2026 | E71: 3.128712871 | F71: 0.8348212698 | G71: 3.236887808 | H71: 1.030197717 | I71: 3.169077135 | J71: 0.8717211341 | K71: 2.975618132 | L71: 0.7318791988
B72: Brede universiteiten | C72: Verschil | E72: =E71-E70 -> -0.07220787847 | F72: 0.01079125353 | G72: -0.1071346077 | H72: 0.0252496304 | I72: -0.1058996667 | J72: -0.00293325717 | K72: x | L72: x
B73: NWO- en KNAW-instituten | C73: 2024 | E73: 3.274647887 | F73: 0.8263769184 | G73: 3.355263158 | H73: 0.9018589686 | I73: 3.32278481 | J73: 0.9393654678 | K73: x | L73: x
B74: NWO- en KNAW-instituten | C74: 2026 | E74: 3.202702703 | F74: 0.77248608 | G74: 3.424369748 | H74: 0.886225237 | I74: 3.298755187 | J74: 0.8672024623 | K74: 3.095435685 | L74: 0.6285067596
B75: NWO- en KNAW-instituten | C75: Verschil | E75: =E74-E73 -> -0.07194518462 | F75: -0.05389083843 | G75: 0.06910659 | H75: -0.01563373154 | I75: -0.0240296234 | J75: -0.07216300546 | K75: x | L75: x
B76: Levensbeschouwelijke universiteiten | C76: 2024 | E76: 3.26 | F76: 0.964893988 | G76: 3.553571429 | H76: 1.007600983 | I76: 3.407407407 | J76: 1.07314594 | K76: x | L76: x
B77: Levensbeschouwelijke universiteiten | C77: 2026 | E77: 3.185185185 | F77: 0.8786806997 | G77: 3.25 | H77: 0.9158109398 | I77: 3.388888889 | J77: 0.7281199971 | K77: 3.083333333 | L77: 0.6917885722
B78: Levensbeschouwelijke universiteiten | C78: Verschil | E78: =E77-E76 -> -0.07481481481 | F78: -0.08621328831 | G78: -0.3035714286 | H78: -0.09179004288 | I78: -0.01851851852 | J78: -0.3450259428 | K78: x | L78: x
B79: Technische universiteiten | C79: 2024 | E79: 3.224215247 | F79: 0.7801085113 | G79: 3.379851363 | H79: 0.9196066232 | I79: 3.290480065 | J79: 0.8335877761 | K79: x | L79: x
B80: Technische universiteiten | C80: 2026 | E80: 3.135135135 | F80: 0.8506140655 | G80: 3.237433155 | H80: 0.9996197562 | I80: 3.118312757 | J80: 0.8947691179 | K80: 2.937563971 | L80: 0.7222966858
B81: Technische universiteiten | C81: Verschil | E81: =E80-E79 -> -0.0890801115 | F81: 0.0705055542 | G81: -0.1424182074 | H81: 0.08001313292 | I81: -0.1721673079 | J81: 0.06118134184 | K81: x | L81: x
B82: Totaal | C82: 2024 | D82: 5975 - 6430 | E82: 3.186778243 | F82: 0.8062730579 | G82: 3.320169918 | H82: 0.9514950939 | I82: 3.264230171 | J82: 0.8555740705 | K82: x | L82: x
B83: Totaal | C83: 2026 | D83: 5129 - 5547 | E83: 3.157535582 | F83: 0.8332865464 | G83: 3.269797422 | H83: 0.9870917463 | I83: 3.209146782 | J83: 0.8725527207 | K83: 3.002163332 | L83: 0.7110449587
B84: Totaal | C84: Verschil | E84: =E83-E82 -> -0.02924266069 | F84: =F83-F82 -> 0.02701348846 | G84: =G83-G82 -> -0.05037249646 | H84: 0.03559665237 | I84: -0.05508338872 | J84: 0.01697865019 | K84: x | L84: x
B85: * Cijfers boven gemiddelde van dat jaar vet gedrukt
B86: ** Standaarddeviatie
B87: *** Antwoordcategorieën 1. Negatieve verandering, 2. Enigszins negatieve verandering, 3. Geen verandering, 4. Enigszins positieve verandering, 5. Positieve verandering
B89: Uitgesplitst naar vakgebied
B99: Ervaren verandering door het programma Erkennen & Waarderen op systeem, beleid en cultuur*** | E99: Systeem | G99: Beleid | I99: Cultuur | K99: Mijn dagelijkse werkzaamheden
B100: Vakgebied | C100: Jaar | D100: Aantal | E100: Gemiddelde* | F100: sd** | G100: Gemiddelde | H100: sd | I100: Gemiddelde | J100: sd | K100: Gemiddelde | L100: sd
B101: Landbouw / toegepaste levenswetenschappen | C101: 2024 | E101: 3.290322581 | F101: 0.6849412092 | G101: 3.460784314 | H101: 0.7665218943 | I101: 3.274509804 | J101: 0.7727649053 | K101: x | L101: x
B102: Landbouw / toegepaste levenswetenschappen | C102: 2026 | E102: 3.339285714 | F102: 0.7693394029 | G102: 3.26984127 | H102: 0.8652120606 | I102: 3.196969697 | J102: 0.7887613848 | K102: 3.014492754 | L102: 0.6528839556
B103: Landbouw / toegepaste levenswetenschappen | C103: Verschil | E103: =E102-E101 -> 0.04896313364 | F103: 0.08439819374 | G103: -0.1909430439 | H103: 0.09869016637 | I103: -0.07754010695 | J103: 0.01599647946 | K103: x | L103: x
B104: Natuur- en levenswetenschappen | C104: 2024 | E104: 3.145672665 | F104: 0.8453462793 | G104: 3.254084967 | H104: 0.9805881957 | I104: 3.193108974 | J104: 0.8600837025 | K104: x | L104: x
B105: Natuur- en levenswetenschappen | C105: 2026 | E105: 3.220879121 | F105: 0.8114982929 | G105: 3.295099062 | H105: 0.9786270076 | I105: 3.198338525 | J105: 0.8339953071 | K105: 3.001034126 | L105: 0.6741292719
B106: Natuur- en levenswetenschappen | C106: Verschil | E106: =E105-E104 -> 0.07520645593 | F106: -0.0338479864 | G106: 0.0410140942 | H106: -0.00196118804 | I106: 0.005229551082 | J106: -0.02608839544 | K106: x | L106: x
B107: Techniek | C107: 2024 | E107: 3.286350148 | F107: 0.8156478764 | G107: 3.416553596 | H107: 0.9463301874 | I107: 3.353723404 | J107: 0.8634535482 | K107: x | L107: x
B108: Techniek | C108: 2026 | E108: 3.17114094 | F108: 0.8526218823 | G108: 3.279809221 | H108: 0.968248778 | I108: 3.160796325 | J108: 0.8793091839 | K108: 2.962732919 | L108: 0.713244607
B109: Techniek | C109: Verschil | E109: =E108-E107 -> -0.1152092088 | F109: 0.03697400598 | G109: -0.1367443747 | H109: 0.02191859058 | I109: -0.1929270796 | J109: 0.01585563573 | K109: x | L109: x
B110: Gezondheid | C110: 2024 | E110: 3.173051519 | F110: 0.7715447042 | G110: 3.270625 | H110: 0.8734208031 | I110: 3.260923077 | J110: 0.812982943 | K110: x | L110: x
B111: Gezondheid | C111: 2026 | E111: 3.219333875 | F111: 0.8008023689 | G111: 3.350230415 | H111: 0.8899018984 | I111: 3.340329835 | J111: 0.8439761638 | K111: 3.080149813 | L111: 0.6652793993
B112: Gezondheid | C112: Verschil | E112: =E111-E110 -> 0.04628235574 | F112: 0.02925766461 | G112: 0.07960541475 | H112: 0.01648109532 | I112: 0.07940675816 | J112: 0.03099322081 | K112: x | L112: x
B113: Economie | C113: 2024 | E113: 3.111392405 | F113: 0.871282872 | G113: 3.31678487 | H113: 1.085831661 | I113: 3.188544153 | J113: 0.8778303668 | K113: x | L113: x
B114: Economie | C114: 2026 | E114: 3.110091743 | F114: 0.8827534608 | G114: 3.193181818 | H114: 1.11562796 | I114: 3.056338028 | J114: 0.8584463029 | K114: 2.910364146 | L114: 0.7132999209
B115: Economie | C115: Verschil | E115: =E114-E113 -> -0.001300661944 | F115: 0.01147058876 | G115: -0.1236030518 | H115: 0.02979629845 | I115: -0.1322061246 | J115: -0.01938406398 | K115: x | L115: x
B116: Recht | C116: 2024 | E116: 3.212121212 | F116: 0.841240285 | G116: 3.297491039 | H116: 1.049680054 | I116: 3.325 | J116: 0.9028529056 | K116: x | L116: x
B117: Recht | C117: 2026 | E117: 3.059760956 | F117: 0.8345144352 | G117: 3.114503817 | H117: 1.055118677 | I117: 3.072243346 | J117: 0.9361839392 | K117: 2.973584906 | L117: 0.73550409
B118: Recht | C118: Verschil | E118: =E117-E116 -> -0.1523602559 | F118: -0.006725849807 | G118: -0.1829872226 | H118: 0.005438623818 | I118: -0.252756654 | J118: 0.0333310336 | K118: x | L118: x
B119: Gedrag en maatschappij | C119: 2024 | E119: 3.257090576 | F119: 0.783739012 | G119: 3.387737478 | H119: 0.9656619049 | I119: 3.316423044 | J119: 0.852028217 | K119: x | L119: x
B120: Gedrag en maatschappij | C120: 2026 | E120: 3.144954128 | F120: 0.8425644355 | G120: 3.254340278 | H120: 1.020416389 | I120: 3.19055794 | J120: 0.908009481 | K120: 2.985568761 | L120: 0.7560319145
B121: Gedrag en maatschappij | C121: Verschil | E121: =E120-E119 -> -0.112136448 | F121: 0.05882542357 | G121: -0.1333972006 | H121: 0.05475448452 | I121: -0.1258651039 | J121: 0.05598126407 | K121: x | L121: x
B122: Taal en cultuur | C122: 2024 | E122: 3.094412331 | F122: 0.8200830966 | G122: 3.291366906 | H122: 0.9816318103 | I122: 3.242857143 | J122: 0.9100624412 | K122: x | L122: x
B123: Taal en cultuur | C123: 2026 | E123: 2.956818182 | F123: 0.8802820337 | G123: 3.134615385 | H123: 1.061814566 | I123: 3.112033195 | J123: 0.9095819417 | K123: 2.93970894 | L123: 0.7789570475
B124: Taal en cultuur | C124: Verschil | E124: =E123-E122 -> -0.1375941496 | F124: 0.06019893717 | G124: -0.1567515219 | H124: 0.08018275583 | I124: -0.1308239478 | J124: -0.0004804994643 | K124: x | L124: x
B125: Onderwijs (als wetenschapsgebied) | C125: 2024 | E125: 3.180645161 | F125: 0.7513707624 | G125: 3.419161677 | H125: 0.8939511679 | I125: 3.319526627 | J125: 0.9087719413 | K125: x | L125: x
B126: Onderwijs (als wetenschapsgebied) | C126: 2026 | E126: 3.302158273 | F126: 0.7484735796 | G126: 3.446666667 | H126: 0.8939518377 | I126: 3.371794872 | J126: 0.8129432684 | K126: 3.13836478 | L126: 0.7503415882
B127: Onderwijs (als wetenschapsgebied) | C127: Verschil | E127: =E126-E125 -> 0.1215131121 | F127: -0.002897182791 | G127: 0.02750499002 | H127: 6.698196195e-07 | I127: 0.05226824458 | J127: -0.09582867287 | K127: x | L127: x
B128: Anders, namelijk… | C128: 2024 | E128: 2.983050847 | F128: 0.7766312182 | G128: 3.25 | H128: 0.8949008088 | I128: 3.163934426 | J128: 0.9161573349 | K128: x | L128: x
B129: Anders, namelijk… | C129: 2026 | E129: 2.921052632 | F129: 0.7843599197 | G129: 3.325581395 | H129: 1.040167803 | I129: 3.086956522 | J129: 0.9147212558 | K129: 2.914893617 | L129: 0.7468713653
B130: Anders, namelijk… | C130: Verschil | E130: =E129-E128 -> -0.06199821588 | F130: 0.007728701499 | G130: 0.07558139535 | H130: 0.1452669943 | I130: -0.07697790449 | J130: -0.001436079084 | K130: x | L130: x
B131: Totaal | C131: 2024 | D131: 5973 - 6379 | E131: 3.186920614 | F131: 0.8083041111 | G131: 3.318902632 | H131: 0.9539505742 | I131: 3.266029158 | J131: 0.8567468314 | K131: x | L131: x
B132: Totaal | C132: 2026 | D132: 5078 - 5502 | E132: 3.161677826 | F132: 0.8338730121 | G132: 3.27267658 | H132: 0.9861452817 | I132: 3.207915375 | J132: 0.8751897144 | K132: 3.003271538 | L132: 0.7141977106
B133: Totaal | C133: Verschil | E133: =E132-E131 -> -0.0252427876 | F133: =F132-F131 -> 0.025568901 | G133: =G132-G131 -> -0.04622605249 | H133: =H132-H131 -> 0.03219470751 | I133: =I132-I131 -> -0.05811378338 | J133: =J132-J131 -> 0.01844288307 | K133: x | L133: x
B134: * Cijfers boven gemiddelde van dat jaar vet gedrukt
B135: ** Standaarddeviatie
B136: *** Antwoordcategorieën 1. Negatieve verandering, 2. Enigszins negatieve verandering, 3. Geen verandering, 4. Enigszins positieve verandering, 5. Positieve verandering
B138: Uitgesplitst naar functiegroep
B151: Ervaren verandering door het programma Erkennen & Waarderen op systeem, beleid en cultuur*** | E151: Systeem | G151: Beleid | I151: Cultuur | K151: Mijn dagelijkse werkzaamheden
B152: Functiegroep | C152: Jaar | D152: Aantal | E152: Gemiddelde* | F152: sd** | G152: Gemiddelde | H152: sd | I152: Gemiddelde | J152: sd | K152: Gemiddelde | L152: sd
B153: Hoogleraar | C153: 2024 | E153: 3.375113533 | F153: 0.9185354503 | G153: 3.496415771 | H153: 1.054984183 | I153: 3.412078153 | J153: 0.9222174904 | K153: x | L153: x
B154: Hoogleraar | C154: 2026 | E154: 3.376582278 | F154: 0.9274416256 | G154: 3.473684211 | H154: 1.081196798 | I154: 3.367494824 | J154: 0.9266013096 | K154: 3.074190178 | L154: 0.7499877945
B155: Hoogleraar | C155: Verschil | E155: =E154-E153 -> 0.001468745329 | F155: 0.008906175319 | G155: -0.02273156008 | H155: 0.02621261508 | I155: -0.04458332874 | J155: 0.004383819201 | K155: x | L155: x
B156: Hoogleraar-Medisch specialist | C156: 2024 | E156: 3.190839695 | F156: 0.8692570109 | G156: 3.30075188 | H156: 0.9768918119 | I156: 3.296296296 | J156: 0.9066427662 | K156: x | L156: x
B157: Hoogleraar-Medisch specialist | C157: 2026 | E157: 3.303921569 | F157: 1.022414301 | G157: 3.427184466 | H157: 0.9661114878 | I157: 3.445544554 | J157: 1.043793538 | K157: 3.097087379 | L157: 0.7984613034
B158: Hoogleraar-Medisch specialist | C158: Verschil | E158: =E157-E156 -> 0.113081874 | F158: 0.1531572905 | G158: 0.1264325863 | H158: -0.01078032415 | I158: 0.1492482582 | J158: 0.137150772 | K158: x | L158: x
B159: Universitair hoofddocent (UHD) | C159: 2024 | E159: 3.195182724 | F159: 0.8058039979 | G159: 3.377741673 | H159: 0.9948444834 | I159: 3.25 | J159: 0.8612046425 | K159: x | L159: x
B160: Universitair hoofddocent (UHD) | C160: 2026 | E160: 3.208174905 | F160: 0.8444195817 | G160: 3.346901018 | H160: 1.001347295 | I160: 3.183823529 | J160: 0.8702563856 | K160: 3.001839926 | L160: 0.7307985996
B161: Universitair hoofddocent (UHD) | C161: Verschil | E161: =E160-E159 -> 0.01299218069 | F161: 0.03861558381 | G161: -0.03084065586 | H161: 0.00650281193 | I161: -0.06617647059 | J161: 0.009051743156 | K161: x | L161: x
B162: Universitair docent (UD) | C162: 2024 | E162: 3.107692308 | F162: 0.7634330861 | G162: 3.259299781 | H162: 0.9575248331 | I162: 3.205963556 | J162: 0.8409990092 | K162: x | L162: x
B163: Universitair docent (UD) | C163: 2026 | E163: 3.020639148 | F163: 0.7770698591 | G163: 3.130461923 | H163: 0.9800424018 | I163: 3.095679012 | J163: 0.8399276981 | K163: 2.928658537 | L163: 0.7032796216
B164: Universitair docent (UD) | C164: Verschil | E164: =E163-E162 -> -0.08705315989 | F164: 0.01363677298 | G164: -0.1288378586 | H164: 0.0225175687 | I164: -0.1102845437 | J164: -0.001071311099 | K164: x | L164: x
B165: Onderzoeker (inclusief postdoc) | C165: 2024 | E165: 3.099637681 | F165: 0.7591187071 | G165: 3.16639478 | H165: 0.8508240262 | I165: 3.217322835 | J165: 0.8273798948 | K165: x | L165: x
B166: Onderzoeker (inclusief postdoc) | C166: 2026 | E166: 3.109090909 | F166: 0.7948583391 | G166: 3.223247232 | H166: 0.9458412571 | I166: 3.251336898 | J166: 0.8593617828 | K166: 3.08245614 | L166: 0.6928261084
B167: Onderzoeker (inclusief postdoc) | C167: Verschil | E167: =E166-E165 -> 0.009453227931 | F167: 0.03573963194 | G167: 0.0568524527 | H167: 0.09501723088 | I167: 0.03401406375 | J167: 0.03198188808 | K167: x | L167: x
B168: Docent (inclusief wetenschappelijk docent) | C168: 2024 | E168: 3.111111111 | F168: 0.7643025683 | G168: 3.204395604 | H168: 0.9196714707 | I168: 3.171806167 | J168: 0.775734529 | K168: x | L168: x
B169: Docent (inclusief wetenschappelijk docent) | C169: 2026 | E169: 3.042713568 | F169: 0.7277754473 | G169: 3.110344828 | H169: 0.9116545048 | I169: 3.098623853 | J169: 0.8090851572 | K169: 2.93986637 | L169: 0.683635881
B170: Docent (inclusief wetenschappelijk docent) | C170: Verschil | E170: =E169-E168 -> -0.06839754327 | F170: -0.036527121 | G170: -0.09405077681 | H170: -0.008016965933 | I170: -0.07318231419 | J170: 0.03335062816 | K170: x | L170: x
B171: Promovendus | C171: 2024 | E171: 3.231467474 | F171: 0.7277877194 | G171: 3.347354138 | H171: 0.8067963186 | I171: 3.329531052 | J171: 0.8141529859 | K171: x | L171: x
B172: Promovendus | C172: 2026 | E172: 3.173076923 | F172: 0.7617470751 | G172: 3.337142857 | H172: 0.8440696969 | I172: 3.297063903 | J172: 0.8533518369 | K172: 3.058303887 | L172: 0.6367450021
B173: Promovendus | C173: Verschil | E173: =E172-E171 -> -0.05839055045 | F173: 0.03395935577 | G173: -0.01021128126 | H173: 0.03727337831 | I173: -0.03246714868 | J173: 0.03919885102 | K173: x | L173: x
B174: Medisch specialist, zonder een van bovenstaande academische functies | C174: 2024 | E174: 2.966292135 | F174: 0.7876079526 | G174: 3.097826087 | H174: 0.7547269272 | I174: 3.091397849 | J174: 0.8299991422 | K174: x | L174: x
B175: Medisch specialist, zonder een van bovenstaande academische functies | C175: 2026 | E175: 3.116788321 | F175: 0.7865196366 | G175: 3.11409396 | H175: 0.8740261093 | I175: 3.173333333 | J175: 0.8804107238 | K175: 2.947368421 | L175: 0.6689863211
B176: Medisch specialist, zonder een van bovenstaande academische functies | C176: Verschil | E176: =E175-E174 -> 0.1504961863 | F176: -0.001088316082 | G176: 0.01626787278 | H176: 0.1192991821 | I176: 0.08193548387 | J176: 0.05041158159 | K176: x | L176: x
B177: Anders, namelijk... | C177: 2024 | E177: 3.265625 | F177: 0.8016290457 | G177: 3.430769231 | H177: 0.8094988953 | I177: 3.348484848 | J177: 0.9028574168 | K177: x | L177: x
B178: Anders, namelijk... | C178: 2026 | E178: 3.291666667 | F178: 0.7706955503 | G178: 3.442307692 | H178: 0.8725320723 | I178: 3.321428571 | J178: 0.896602534 | K178: 2.981132075 | L178: 0.7963997363
B179: Anders, namelijk... | C179: Verschil | E179: =E178-E177 -> 0.02604166667 | F179: -0.03093349548 | G179: 0.01153846154 | H179: 0.06303317697 | I179: -0.02705627706 | J179: -0.006254882889 | K179: x | L179: x
B180: Totaal | C180: 2024 | D180: 5986 - 6434 | E180: 3.186936184 | F180: 0.808457633 | G180: 3.31908205 | H180: 0.9539188847 | I180: 3.264376749 | J180: 0.8561456718 | K180: x | L180: x
B181: Totaal | C181: 2026 | D181: 5150 - 5577 | E181: 3.159223301 | F181: 0.8323705455 | G181: 3.269879077 | H181: 0.9871325451 | I181: 3.20784596 | J181: 0.8740867821 | K181: 3.001793079 | L181: 0.7121589608
B182: Totaal | C182: Verschil | E182: =E181-E180 -> -0.02771288346 | F182: =F181-F180 -> 0.02391291255 | G182: =G181-G180 -> -0.04920297309 | H182: =H181-H180 -> 0.03321366034 | I182: =I181-I180 -> -0.05653078847 | J182: =J181-J180 -> 0.01794111036 | K182: x | L182: x
B183: * Cijfers boven gemiddelde van dat jaar vet gedrukt
B184: ** Standaarddeviatie
B185: *** Antwoordcategorieën 1. Negatieve verandering, 2. Enigszins negatieve verandering, 3. Geen verandering, 4. Enigszins positieve verandering, 5. Positieve verandering
B187: Uitgesplitst per veranderingscategorie
B189: Systeem, uitgesplitst naar instellingscategorie
B199: Ik zie over de afgelopen drie jaar verandering optreden door Erkennen & Waarderen in systeem
B200: Instellingscategorie | C200: Jaar | D200: Aantal | E200: Negatieve verandering | F200: Enigszins negatieve verandering | G200: Geen verandering | H200: Enigszins positieve verandering | I200: Positieve verandering
B201: Universiteiten | C201: 2024 | D201: 3041 | E201: 0.04735284446 | F201: 0.06215060835 | G201: 0.5876356462 | H201: 0.247944755 | I201: 0.054916146
B202: Universiteiten | C202: 2026 | D202: 2727 | E202: 0.05867253392 | F202: 0.0704070407 | G202: 0.6002933627 | H202: 0.2247891456 | I202: 0.04583791713
B203: Universiteiten | C203: Verschil | D203: =D202-D201 -> -314 | E203: 0.01131968946 | F203: 0.008256432352 | G203: 0.0126577165 | H203: -0.02315560943 | I203: -0.00907822888
B204: Technische universiteiten | C204: 2024 | D204: 1115 | E204: 0.04035874439 | F204: 0.04753363229 | G204: 0.6080717489 | H204: 0.2556053812 | I204: 0.04843049327
B205: Technische universiteiten | C205: 2026 | D205: 888 | E205: 0.06756756757 | F205: 0.06193693694 | G205: 0.5765765766 | H205: 0.2556306306 | I205: 0.03828828829
B206: Technische universiteiten | C206: Verschil | D206: =D205-D204 -> -227 | E206: 0.02720882317 | F206: 0.01440330465 | G206: -0.0314951723 | H206: 2.524946471e-05 | I206: -0.01014220499
B207: Levensbeschouwelijke universiteiten | C207: 2024 | D207: 50 | E207: 0.1 | F207: 0.02 | G207: 0.44 | H207: 0.4 | I207: 0.04
B208: Levensbeschouwelijke universiteiten | C208: 2026 | D208: 27 | E208: 0.03703703704 | F208: 0.07407407407 | G208: 0.6666666667 | H208: 0.1111111111 | I208: 0.1111111111
B209: Levensbeschouwelijke universiteiten | C209: Verschil | D209: =D208-D207 -> -23 | E209: -0.06296296296 | F209: 0.05407407407 | G209: 0.2266666667 | H209: -0.2888888889 | I209: 0.07111111111
B210: NWO- en KNAW-instituten | C210: 2024 | D210: 142 | E210: 0.03521126761 | F210: 0.07042253521 | G210: 0.5422535211 | H210: 0.2887323944 | I210: 0.06338028169
B211: NWO- en KNAW-instituten | C211: 2026 | D211: 222 | E211: 0.04954954955 | F211: 0.02252252252 | G211: 0.6486486486 | H211: 0.2342342342 | I211: 0.04504504505
B212: NWO- en KNAW-instituten | C212: Verschil | D212: =D211-D210 -> 80 | E212: 0.01433828194 | F212: -0.04790001269 | G212: 0.1063951275 | H212: -0.05449816013 | I212: -0.01833523665
B213: Umc's | C213: 2024 | D213: 1627 | E213: 0.05101413645 | F213: 0.0688383528 | G213: 0.6121696374 | H213: 0.2403196066 | I213: 0.02765826675
B214: Umc's | C214: 2026 | D214: 1265 | E214: 0.04901185771 | F214: 0.05849802372 | G214: 0.5549407115 | H214: 0.2916996047 | I214: 0.04584980237
B215: Umc's | C215: Verschil | D215: =D214-D213 -> -362 | E215: -0.00200227874 | F215: -0.01034032908 | G215: -0.05722892591 | H215: 0.05137999811 | I215: 0.01819153562
B216: Totaal | C216: 2024 | D216: =SUM(D201,D204,D207,D210,D213) -> 5975 | E216: 0.04719665272 | F216: 0.06108786611 | G216: 0.5958158996 | H216: 0.249539749 | I216: 0.04635983264
B217: Totaal | C217: 2026 | D217: =SUM(D202,D205,D208,D211,D214) -> 5129 | E217: 0.05732111523 | F217: 0.06395008774 | G217: 0.5874439462 | H217: 0.2464418015 | I217: 0.04484304933
B218: Totaal | C218: Verschil | D218: =D217-D216 -> -846 | E218: =E217-E216 -> 0.01012446251 | F218: =F217-F216 -> 0.002862221628 | G218: =G217-G216 -> -0.008371953393 | H218: =H217-H216 -> -0.003097947433 | I218: =I217-I216 -> -0.001516783309
B220: Beleid, uitgesplitst naar instellingscategorie
B229: Ik zie over de afgelopen drie jaar verandering optreden door Erkennen & Waarderen in beleid
B230: Instellingscategorie | C230: Jaar | D230: Aantal | E230: Negatieve verandering | F230: Enigszins negatieve verandering | G230: Geen verandering | H230: Enigszins positieve verandering | I230: Positieve verandering
B231: Universiteiten | C231: 2024 | D231: 3212 | E231: 0.06787048568 | F231: 0.08561643836 | G231: 0.3838729763 | H231: 0.3599003736 | I231: 0.102739726
B232: Universiteiten | C232: 2026 | D232: 2879 | E232: 0.08440430705 | F232: 0.1021187912 | G232: 0.390413338 | H232: 0.3383119139 | I232: 0.08475164988
B233: Universiteiten | C233: Verschil | D233: =D232-D231 -> -333 | E233: 0.01653382137 | F233: 0.01650235289 | G233: 0.006540361626 | H233: -0.02158845974 | I233: -0.01798807615
B234: Technische universiteiten | C234: 2024 | D234: 1211 | E234: 0.0470685384 | F234: 0.07184145334 | G234: 0.4269199009 | H234: 0.362510322 | I234: 0.0916597853
B235: Technische universiteiten | C235: 2026 | D235: 935 | E235: 0.07914438503 | F235: 0.09839572193 | G235: 0.4010695187 | H235: 0.3486631016 | I235: 0.07272727273
B236: Technische universiteiten | C236: Verschil | D236: =D235-D234 -> -276 | E236: 0.03207584663 | F236: 0.02655426858 | G236: -0.02585038219 | H236: -0.01384722044 | I236: -0.01893251257
B237: Levensbeschouwelijke universiteiten | C237: 2024 | D237: 56 | E237: 0.07142857143 | F237: 0.01785714286 | G237: 0.3392857143 | H237: 0.4285714286 | I237: 0.1428571429
B238: Levensbeschouwelijke universiteiten | C238: 2026 | D238: 32 | E238: 0.0625 | F238: 0.125 | G238: 0.3125 | H238: 0.5 | I238: 0
B239: Levensbeschouwelijke universiteiten | C239: Verschil | D239: =D238-D237 -> -24 | E239: -0.008928571429 | F239: 0.1071428571 | G239: -0.02678571429 | H239: 0.07142857143 | I239: -0.1428571429
B240: NWO- en KNAW-instituten | C240: 2024 | D240: 152 | E240: 0.04605263158 | F240: 0.05263157895 | G240: 0.5 | H240: 0.3026315789 | I240: 0.09868421053
B241: NWO- en KNAW-instituten | C241: 2026 | D241: 238 | E241: 0.05042016807 | F241: 0.02521008403 | G241: 0.4663865546 | H241: 0.3655462185 | I241: 0.09243697479
B242: NWO- en KNAW-instituten | C242: Verschil | D242: =D241-D240 -> 86 | E242: 0.004367536488 | F242: -0.02742149491 | G242: -0.03361344538 | H242: 0.06291463954 | I242: -0.006247235736
B243: Umc's | C243: 2024 | D243: 1725 | E243: 0.05449275362 | F243: 0.06956521739 | G243: 0.5263768116 | H243: 0.2973913043 | I243: 0.05217391304
B244: Umc's | C244: 2026 | D244: 1346 | E244: 0.04754829123 | F244: 0.0676077266 | G244: 0.4635958395 | H244: 0.3439821694 | I244: 0.07726597325
B245: Umc's | C245: Verschil | D245: =D244-D243 -> -379 | E245: -0.00694446239 | F245: -0.001957490794 | G245: -0.06278097207 | H245: 0.04659086504 | I245: 0.02509206021
B246: Totaal | C246: 2024 | D246: =SUM(D231,D234,D237,D240,D243) -> 6356 | E246: 0.05978602895 | F246: 0.07724984267 | G246: 0.4331340466 | H246: 0.3426683449 | I246: 0.08716173694
B247: Totaal | C247: 2026 | D247: =SUM(D232,D235,D238,D241,D244) -> 5430 | E247: 0.07274401473 | F247: 0.08968692449 | G247: 0.4132596685 | H247: 0.3436464088 | I247: 0.08066298343
B248: Totaal | C248: Verschil | D248: =D247-D246 -> -926 | E248: =E247-E246 -> 0.01295798578 | F248: =F247-F246 -> 0.01243708183 | G248: =G247-G246 -> -0.01987437806 | H248: =H247-H246 -> 0.0009780639688 | I248: =I247-I246 -> -0.006498753516
B250: Cultuur, uitgesplitst naar instellingscategorie
B260: Ik zie over de afgelopen drie jaar verandering optreden door Erkennen & Waarderen in cultuur
B261: Instellingscategorie | C261: Jaar | D261: Aantal | E261: Negatieve verandering | F261: Enigszins negatieve verandering | G261: Geen verandering | H261: Enigszins positieve verandering | I261: Positieve verandering
B262: Universiteiten | C262: 2024 | D262: 3233 | E262: 0.04825239715 | F262: 0.06773894216 | G262: 0.5150015466 | H262: 0.2987936901 | I262: 0.07021342406
B263: Universiteiten | C263: 2026 | D263: 2904 | E263: 0.05888429752 | F263: 0.07851239669 | G263: 0.5516528926 | H263: 0.2565426997 | I263: 0.0544077135
B264: Universiteiten | C264: Verschil | D264: =D263-D262 -> -329 | E264: =E275-E262 -> -0.00836842326 | F264: =F275-F262 -> -0.01480203135 | G264: =G275-G262 -> -0.003036354383 | H264: =H275-H262 -> 0.02172842741 | I264: =I275-I262 -> 0.004478381592
B265: Technische universiteiten | C265: 2024 | D265: 1229 | E265: 0.03824247356 | F265: 0.06265256306 | G265: 0.5362082994 | H265: 0.2961757526 | I265: 0.06672091131
B266: Technische universiteiten | C266: 2026 | D266: 972 | E266: 0.07201646091 | F266: 0.08436213992 | G266: 0.5442386831 | H266: 0.2520576132 | I266: 0.04732510288
B267: Technische universiteiten | C267: Verschil | D267: =D266-D265 -> -257 | E267: 0.03377398735 | F267: 0.02170957686 | G267: 0.008030383697 | H267: -0.04411813948 | I267: -0.01939580843
B268: Levensbeschouwelijke universiteiten | C268: 2024 | D268: 54 | E268: 0.07407407407 | F268: 0.05555555556 | G268: 0.4259259259 | H268: 0.2777777778 | I268: 0.1666666667
B269: Levensbeschouwelijke universiteiten | C269: 2026 | D269: 36 | E269: 0.02777777778 | F269: 0.02777777778 | G269: 0.5 | H269: 0.4166666667 | I269: 0.02777777778
B270: Levensbeschouwelijke universiteiten | C270: Verschil | D270: =D269-D268 -> -18 | E270: -0.0462962963 | F270: -0.02777777778 | G270: 0.07407407407 | H270: 0.1388888889 | I270: -0.1388888889
B271: NWO- en KNAW-instituten | C271: 2024 | D271: 158 | E271: 0.04430379747 | F271: 0.06962025316 | G271: 0.5316455696 | H271: 0.2278481013 | I271: 0.1265822785
B272: NWO- en KNAW-instituten | C272: 2026 | D272: 241 | E272: 0.05394190871 | F272: 0.03734439834 | G272: 0.5352697095 | H272: 0.3029045643 | I272: 0.07053941909
B273: NWO- en KNAW-instituten | C273: Verschil | D273: =D272-D271 -> 83 | E273: 0.009638111245 | F273: -0.03227585482 | G273: 0.003624139923 | H273: 0.07505646305 | I273: -0.05604285939
B274: Umc's | C274: 2024 | D274: 1756 | E274: 0.0444191344 | F274: 0.07061503417 | G274: 0.5546697039 | H274: 0.284738041 | I274: 0.04555808656
B275: Umc's | C275: 2026 | D275: 1379 | E275: 0.03988397389 | F275: 0.0529369108 | G275: 0.5119651922 | H275: 0.3205221175 | I275: 0.07469180566
B276: Umc's | C276: Verschil | D276: =D275-D274 -> -377 | E276: =E275-E274 -> -0.004535160502 | F276: =F275-F274 -> -0.01767812336 | G276: -0.0427045117 | H276: 0.03578407647 | I276: 0.0291337191
B277: Totaal | C277: 2024 | D277: =SUM(D262,D265,D268,D271,D274) -> 6430 | E277: 0.04541213064 | F277: 0.06749611198 | G277: 0.5295489891 | H277: 0.2925349922 | I277: 0.06500777605
B278: Totaal | C278: 2026 | D278: =SUM(D263,D266,D269,D272,D275) -> 5532 | E278: 0.05603759942 | F278: 0.07104121475 | G278: 0.539407086 | H278: 0.2747650036 | I278: 0.05874909617
B279: Totaal | C279: Verschil | D279: =D278-D277 -> -898 | E279: =E278-E277 -> 0.01062546878 | F279: =F278-F277 -> 0.003545102775 | G279: =G278-G277 -> 0.009858096931 | H279: =H278-H277 -> -0.01776998861 | I279: =I278-I277 -> -0.006258679882
B281: Mijn dagelijkse werkzaamheden, uitgesplitst naar instellingscategorie
B291: Ik zie over de afgelopen drie jaar verandering optreden door Erkennen & Waarderen in Mijn dagelijkse werkzaamheden
B292: Instellingscategorie | C292: Jaar | D292: Aantal | E292: Negatieve verandering | F292: Enigszins negatieve verandering | G292: Geen verandering | H292: Enigszins positieve verandering | I292: Positieve verandering
B293: Universiteiten | C293: 2024 | D293: x | E293: x | F293: x | G293: x | H293: x | I293: x
B294: Universiteiten | C294: 2026 | D294: 2912 | E294: 0.05391483516 | F294: 0.0885989011 | G294: 0.7153159341 | H294: 0.112293956 | I294: 0.02987637363
B295: Universiteiten | C295: Verschil | D295: x | E295: x | F295: x | G295: x | H295: x | I295: x
... 291 more rows

Sheet H3.2
B5: H 3.2 Loopbaanpaden diversifiëren en dynamiseren
B7: Loopbaanpaden diversifiëren en dynamiseren
B16: In hoeverre is het volgende op jou van toepassing?
B17: Uitspraak | C17: Jaar | D17: Aantal | E17: Ja | F17: Nee | G17: Weet ik niet
B18: In mijn instelling worden er verschillende loopbaanpaden aangeboden | C18: 2024 | D18: x | E18: x | F18: x | G18: x
B19: In mijn instelling worden er verschillende loopbaanpaden aangeboden | C19: 2026 | D19: 6521 | E19: 0.4204876553 | F19: 0.3416653887 | G19: 0.237846956
B20: In mijn instelling worden er verschillende loopbaanpaden aangeboden | C20: Verschil | D20: x | E20: x | F20: x | G20: x
B23: Uitgesplitst naar vakgebied
B34: In hoeverre is het volgende op jou van toepassing? | E34: In mijn instelling worden er verschillende loopbaanpaden aangeboden
B35: Vakgebied | C35: Jaar | D35: Aantal | E35: Ja | F35: Nee | G35: Weet ik niet
B36: Landbouw / toegepaste levenswetenschappen | C36: 2024 | D36: x | E36: x | F36: x | G36: x
B37: Landbouw / toegepaste levenswetenschappen | C37: 2026 | D37: 82 | E37: 0.5609756098 | F37: 0.2317073171 | G37: 0.2073170732
B38: Landbouw / toegepaste levenswetenschappen | C38: Verschil | D38: x | E38: x | F38: x | G38: x
B39: Natuur- en levenswetenschappen | C39: 2024 | D39: x | E39: x | F39: x | G39: x
B40: Natuur- en levenswetenschappen | C40: 2026 | D40: 1143 | E40: 0.4295713036 | F40: 0.3700787402 | G40: 0.2003499563
B41: Natuur- en levenswetenschappen | C41: Verschil | D41: x | E41: x | F41: x | G41: x
B42: Techniek | C42: 2024 | D42: x | E42: x | F42: x | G42: x
B43: Techniek | C43: 2026 | D43: 785 | E43: 0.4152866242 | F43: 0.3554140127 | G43: 0.2292993631
B44: Techniek | C44: Verschil | D44: x | E44: x | F44: x | G44: x
B45: Gezondheid | C45: 2024 | D45: x | E45: x | F45: x | G45: x
B46: Gezondheid | C46: 2026 | D46: 1577 | E46: 0.4977805961 | F46: 0.2219403932 | G46: 0.2802790108
B47: Gezondheid | C47: Verschil | D47: x | E47: x | F47: x | G47: x
B48: Economie | C48: 2024 | D48: x | E48: x | F48: x | G48: x
B49: Economie | C49: 2026 | D49: 379 | E49: 0.5224274406 | F49: 0.3377308707 | G49: 0.1398416887
B50: Economie | C50: Verschil | D50: x | E50: x | F50: x | G50: x
B51: Recht | C51: 2024 | D51: x | E51: x | F51: x | G51: x
B52: Recht | C52: 2026 | D52: 307 | E52: 0.3127035831 | F52: 0.4332247557 | G52: 0.2540716612
B53: Recht | C53: Verschil | D53: x | E53: x | F53: x | G53: x
B54: Gedrag en maatschappij | C54: 2024 | D54: x | E54: x | F54: x | G54: x
B55: Gedrag en maatschappij | C55: 2026 | D55: 1318 | E55: 0.3717754173 | F55: 0.3960546282 | G55: 0.2321699545
B56: Gedrag en maatschappij | C56: Verschil | D56: x | E56: x | F56: x | G56: x
B57: Taal en cultuur | C57: 2024 | D57: x | E57: x | F57: x | G57: x
B58: Taal en cultuur | C58: 2026 | D58: 542 | E58: 0.2859778598 | F58: 0.4594095941 | G58: 0.2546125461
B59: Taal en cultuur | C59: Verschil | D59: x | E59: x | F59: x | G59: x
B60: Onderwijs (als wetenschapsgebied) | C60: 2024 | D60: x | E60: x | F60: x | G60: x
B61: Onderwijs (als wetenschapsgebied) | C61: 2026 | D61: 188 | E61: 0.4946808511 | F61: 0.2074468085 | G61: 0.2978723404
B62: Onderwijs (als wetenschapsgebied) | C62: Verschil | D62: x | E62: x | F62: x | G62: x
B63: Anders, namelijk… | C63: 2024 | D63: x | E63: x | F63: x | G63: x
B64: Anders, namelijk… | C64: 2026 | D64: 51 | E64: 0.3333333333 | F64: 0.431372549 | G64: 0.2352941176
B65: Anders, namelijk… | C65: Verschil | D65: x | E65: x | F65: x | G65: x
B66: Totaal | C66: 2024 | D66: x | E66: x | F66: x | G66: x
B67: Totaal | C67: 2026 | D67: =SUM(D37,D40,D43,D46,D49,D52,D55,D58,D61,D64) -> 6372 | E67: 0.4232580038 | F67: 0.3396107972 | G67: 0.237131199
B68: Totaal | C68: Verschil | D68: x | E68: x | F68: x | G68: x
B70: Uitgesplitst naar vakgebied
B80: In hoeverre is het volgende op jou van toepassing? | E80: In mijn instelling worden er verschillende loopbaanpaden aangeboden
B81: Functiegroep | C81: Jaar | D81: Aantal | E81: Ja | F81: Nee | G81: Weet ik niet
B82: Hoogleraar | C82: 2024 | D82: x | E82: x | F82: x | G82: x
B83: Hoogleraar | C83: 2026 | D83: 1006 | E83: 0.6013916501 | F83: 0.2644135189 | G83: 0.134194831
B84: Hoogleraar | C84: Verschil | D84: x | E84: x | F84: x | G84: x
B85: Hoogleraar-Medisch specialist | C85: 2024 | D85: x | E85: x | F85: x | G85: x
B86: Hoogleraar-Medisch specialist | C86: 2026 | D86: 111 | E86: 0.7027027027 | F86: 0.1351351351 | G86: 0.1621621622
B87: Hoogleraar-Medisch specialist | C87: Verschil | D87: x | E87: x | F87: x | G87: x
B88: Universitair hoofddocent (UHD) | C88: 2024 | D88: x | E88: x | F88: x | G88: x
B89: Universitair hoofddocent (UHD) | C89: 2026 | D89: 1126 | E89: 0.460035524 | F89: 0.3801065719 | G89: 0.1598579041
B90: Universitair hoofddocent (UHD) | C90: Verschil | D90: x | E90: x | F90: x | G90: x
B91: Universitair docent (UD) | C91: 2024 | D91: x | E91: x | F91: x | G91: x
B92: Universitair docent (UD) | C92: 2026 | D92: 1823 | E92: 0.3828853538 | F92: 0.3839824465 | G92: 0.2331321997
B93: Universitair docent (UD) | C93: Verschil | D93: x | E93: x | F93: x | G93: x
B94: Onderzoeker (inclusief postdoc) | C94: 2024 | D94: x | E94: x | F94: x | G94: x
B95: Onderzoeker (inclusief postdoc) | C95: 2026 | D95: 736 | E95: 0.3355978261 | F95: 0.3845108696 | G95: 0.2798913043
B96: Onderzoeker (inclusief postdoc) | C96: Verschil | D96: x | E96: x | F96: x | G96: x
B97: Docent (inclusief wetenschappelijk docent) | C97: 2024 | D97: x | E97: x | F97: x | G97: x
B98: Docent (inclusief wetenschappelijk docent) | C98: 2026 | D98: 511 | E98: 0.3346379648 | F98: 0.4109589041 | G98: 0.2544031311
B99: Docent (inclusief wetenschappelijk docent) | C99: Verschil | D99: x | E99: x | F99: x | G99: x
B100: Promovendus | C100: 2024 | D100: x | E100: x | F100: x | G100: x
B101: Promovendus | C101: 2026 | D101: 902 | E101: 0.3337028825 | F101: 0.2649667406 | G101: 0.4013303769
B102: Promovendus | C102: Verschil | D102: x | E102: x | F102: x | G102: x
B103: Medisch specialist, zonder een van bovenstaande academische functies | C103: 2024 | D103: x | E103: x | F103: x | G103: x
B104: Medisch specialist, zonder een van bovenstaande academische functies | C104: 2026 | D104: 181 | E104: 0.4419889503 | F104: 0.2099447514 | G104: 0.3480662983
B105: Medisch specialist, zonder een van bovenstaande academische functies | C105: Verschil | D105: x | E105: x | F105: x | G105: x
B106: Anders, namelijk... | C106: 2024 | D106: x | E106: x | F106: x | G106: x
B107: Anders, namelijk... | C107: 2026 | D107: 61 | E107: 0.3770491803 | F107: 0.3442622951 | G107: 0.2786885246
B108: Anders, namelijk... | C108: Verschil | D108: x | E108: x | F108: x | G108: x
B109: Totaal | C109: 2024 | D109: x | E109: x | F109: x | G109: x
B110: Totaal | C110: 2026 | D110: =SUM(D83,D86,D89,D92,D95,D98,D101,D104,D107) -> 6457 | E110: 0.4214031284 | F110: 0.3407155026 | G110: 0.2378813691
B111: Totaal | C111: Verschil | D111: x | E111: x | F111: x | G111: x
B113: Uitgesplitst naar instellingscategorie
B122: In hoeverre is het volgende op jou van toepassing? | E122: In mijn instelling worden er verschillende loopbaanpaden aangeboden
B123: Instellingscategorie | C123: Jaar | D123: Aantal | E123: Ja | F123: Nee | G123: Weet ik niet
B124: Umc's | C124: 2024 | D124: x | E124: x | F124: x | G124: x
B125: Umc's | C125: 2026 | D125: 1640 | E125: 0.4792682927 | F125: 0.2414634146 | G125: 0.2792682927
B126: Umc's | C126: Verschil | D126: x | E126: x | F126: x | G126: x
B127: Brede universiteiten | C127: 2024 | D127: x | E127: x | F127: x | G127: x
B128: Brede universiteiten | C128: 2026 | D128: 3288 | E128: 0.4017639903 | F128: 0.3841240876 | G128: 0.2141119221
B129: Brede universiteiten | C129: Verschil | D129: x | E129: x | F129: x | G129: x
B130: NWO- en KNAW-instituten | C130: 2024 | D130: x | E130: x | F130: x | G130: x
B131: NWO- en KNAW-instituten | C131: 2026 | D131: 291 | E131: 0.264604811 | F131: 0.5051546392 | G131: 0.2302405498
B132: NWO- en KNAW-instituten | C132: Verschil | D132: x | E132: x | F132: x | G132: x
B133: Levensbeschouwelijke universiteiten | C133: 2024 | D133: x | E133: x | F133: x | G133: x
B134: Levensbeschouwelijke universiteiten | C134: 2026 | D134: 44 | E134: 0.3409090909 | F134: 0.2045454545 | G134: 0.4545454545
B135: Levensbeschouwelijke universiteiten | C135: Verschil | D135: x | E135: x | F135: x | G135: x
B136: Technische universiteiten | C136: 2024 | D136: x | E136: x | F136: x | G136: x
B137: Technische universiteiten | C137: 2026 | D137: 1153 | E137: 0.4388551605 | F137: 0.3252385082 | G137: 0.2359063313
B138: Technische universiteiten | C138: Verschil | D138: x | E138: x | F138: x | G138: x
B139: Totaal | C139: 2024 | D139: x | E139: x | F139: x | G139: x
B140: Totaal | C140: 2026 | D140: =SUM(D125,D128,D131,D134,D137) -> 6416 | E140: 0.4216022444 | F140: 0.3413341646 | G140: 0.237063591
B141: Totaal | C141: Verschil | D141: x | E141: x | F141: x | G141: x
B143: Loopbaanpaden diversifiëren en dynamiseren
B157: Mate waarin men het eens is met uitspraken rondom loopbaanpaden diversifiëren en dynamiseren
B158: Uitspraak | C158: Jaar | D158: Aantal | E158: Gemiddelde*
B159: Bij het maken van afspraken over mijn werkzaamheden wordt rekening gehouden met waar mijn ambities liggen. | C159: 2024 | D159: 7638 | E159: 3.530243519
B160: Bij het maken van afspraken over mijn werkzaamheden wordt rekening gehouden met waar mijn ambities liggen. | C160: 2026 | D160: 6370 | E160: 3.484144427
B161: Bij het maken van afspraken over mijn werkzaamheden wordt rekening gehouden met waar mijn ambities liggen. | C161: Verschil | D161: =D160-D159 -> -1268 | E161: -0.04609909224
B162: Bij het maken van afspraken over mijn werkzaamheden ervaar ik een goede balans tussen aandacht voor mijn talenten en aandacht voor de behoeften van de instelling. | C162: 2024 | D162: 7558 | E162: 3.261312517
B163: Bij het maken van afspraken over mijn werkzaamheden ervaar ik een goede balans tussen aandacht voor mijn talenten en aandacht voor de behoeften van de instelling. | C163: 2026 | D163: 6324 | E163: 3.218058191
B164: Bij het maken van afspraken over mijn werkzaamheden ervaar ik een goede balans tussen aandacht voor mijn talenten en aandacht voor de behoeften van de instelling. | C164: Verschil | D164: =D163-D162 -> -1234 | E164: =E163-E162 -> -0.04325432552
B165: Ik heb het gevoel dat ik mij verder kan ontwikkelen in het soort werk dat het beste bij mij past. | C165: 2024 | D165: 7703 | E165: 3.449175646
B166: Ik heb het gevoel dat ik mij verder kan ontwikkelen in het soort werk dat het beste bij mij past. | C166: 2026 | D166: 6419 | E166: 3.351768188
B167: Ik heb het gevoel dat ik mij verder kan ontwikkelen in het soort werk dat het beste bij mij past. | C167: Verschil | D167: =D166-D165 -> -1284 | E167: =E166-E165 -> -0.09740745766
B168: In mijn functie vind ik het haalbaar om de verschillende domeinen (onderwijs, onderzoek, impact, patiëntenzorg, leiderschap) in mijn werk te combineren. | C168: 2024 | D168: 7509 | E168: 3.135570649
B169: In mijn functie vind ik het haalbaar om de verschillende domeinen (onderwijs, onderzoek, impact, patiëntenzorg, leiderschap) in mijn werk te combineren. | C169: 2026 | D169: 6288 | E169: 3.142334606
B170: In mijn functie vind ik het haalbaar om de verschillende domeinen (onderwijs, onderzoek, impact, patiëntenzorg, leiderschap) in mijn werk te combineren. | C170: Verschil | D170: =D169-D168 -> -1221 | E170: =E169-E168 -> 0.006763957043
B171: Ik ervaar dat ik op alle verschillende domeinen in mijn werkzaamheden goed moet zijn. | C171: 2024 | D171: 7635 | E171: 3.852783235
B172: Ik ervaar dat ik op alle verschillende domeinen in mijn werkzaamheden goed moet zijn. | C172: 2026 | D172: 6334 | E172: 3.86659299
B173: Ik ervaar dat ik op alle verschillende domeinen in mijn werkzaamheden goed moet zijn. | C173: Verschil | D173: =D172-D171 -> -1301 | E173: =E172-E171 -> 0.01380975511
B174: Ik heb de indruk dat verschillende domeinen in mijn instelling evenveel waardering krijgen. | C174: 2024 | D174: 7455 | E174: 2.229376258
B175: Ik heb de indruk dat verschillende domeinen in mijn instelling evenveel waardering krijgen. | C175: 2026 | D175: 6224 | E175: 2.191677378
B176: Ik heb de indruk dat verschillende domeinen in mijn instelling evenveel waardering krijgen. | C176: Verschil | D176: =D175-D174 -> -1231 | E176: =E175-E174 -> -0.03769887965
B178: * Antwoordcategorieën 1. Helemaal niet mee eens, 2. Niet mee eens, 3. Neutraal, 4. Mee eens, 5. Helemaal mee eens
B193: Mate waarin men het eens is met uitspraken rondom loopbaanpaden diversifiëren en dynamiseren
B194: Uitspraak | C194: Jaar | D194: Aantal | E194: Helemaal niet mee eens | F194: Niet mee eens | G194: Neutraal | H194: Mee eens | I194: Helemaal mee eens
B195: Bij het maken van afspraken over mijn werkzaamheden wordt rekening gehouden met waar mijn ambities liggen. | C195: 2024 | D195: 7638 | E195: 0.04647813564 | F195: 0.125818277 | G195: 0.2012306887 | H195: 0.5039277298 | I195: 0.1225451689
B196: Bij het maken van afspraken over mijn werkzaamheden wordt rekening gehouden met waar mijn ambities liggen. | C196: 2026 | D196: 6370 | E196: 0.05384615385 | F196: 0.1361067504 | G196: 0.1996860283 | H196: 0.4927786499 | I196: 0.1175824176
B197: Bij het maken van afspraken over mijn werkzaamheden wordt rekening gehouden met waar mijn ambities liggen. | C197: Verschil | D197: =D196-D195 -> -1268 | E197: =E196-E195 -> 0.007368018209 | F197: =F196-F195 -> 0.01028847336 | G197: =G196-G195 -> -0.001544660404 | H197: =H196-H195 -> -0.01114907985 | I197: =I196-I195 -> -0.00496275131
B198: Bij het maken van afspraken over mijn werkzaamheden ervaar ik een goede balans tussen aandacht voor mijn talenten en aandacht voor de behoeften van de instelling. | C198: 2024 | D198: 7558 | E198: 0.06139190262 | F198: 0.1876157714 | G198: 0.2611802064 | H198: 0.4079121461 | I198: 0.08189997354
B199: Bij het maken van afspraken over mijn werkzaamheden ervaar ik een goede balans tussen aandacht voor mijn talenten en aandacht voor de behoeften van de instelling. | C199: 2026 | D199: 6324 | E199: 0.07368753953 | F199: 0.1916508539 | G199: 0.2604364326 | H199: 0.3913662239 | I199: 0.08285895003
B200: Bij het maken van afspraken over mijn werkzaamheden ervaar ik een goede balans tussen aandacht voor mijn talenten en aandacht voor de behoeften van de instelling. | C200: Verschil | D200: =D199-D198 -> -1234 | E200: =E199-E198 -> 0.01229563691 | F200: =F199-F198 -> 0.004035082522 | G200: =G199-G198 -> -0.0007437737662 | H200: =H199-H198 -> -0.01654592216 | I200: =I199-I198 -> 0.0009589764937
B201: Ik heb het gevoel dat ik mij verder kan ontwikkelen in het soort werk dat het beste bij mij past. | C201: 2024 | D201: 7703 | E201: 0.05257691808 | F201: 0.1498117617 | G201: 0.2278333117 | H201: 0.4354147735 | I201: 0.1343632351
B202: Ik heb het gevoel dat ik mij verder kan ontwikkelen in het soort werk dat het beste bij mij past. | C202: 2026 | D202: 6419 | E202: 0.06979280262 | F202: 0.160772706 | G202: 0.2364854339 | H202: 0.4137716155 | I202: 0.119177442
B203: Ik heb het gevoel dat ik mij verder kan ontwikkelen in het soort werk dat het beste bij mij past. | C203: Verschil | D203: =D202-D201 -> -1284 | E203: =E202-E201 -> 0.01721588453 | F203: =F202-F201 -> 0.01096094438 | G203: =G202-G201 -> 0.008652122171 | H203: =H202-H201 -> -0.02164315795 | I203: =I202-I201 -> -0.01518579313
B204: In mijn functie vind ik het haalbaar om de verschillende domeinen (onderwijs, onderzoek, impact, patiëntenzorg, leiderschap) in mijn werk te combineren. | C204: 2024 | D204: 7509 | E204: 0.08336662671 | F204: 0.2502330537 | G204: 0.2108136902 | H204: 0.3586363031 | I204: 0.09695032628
B205: In mijn functie vind ik het haalbaar om de verschillende domeinen (onderwijs, onderzoek, impact, patiëntenzorg, leiderschap) in mijn werk te combineren. | C205: 2026 | D205: 6288 | E205: 0.09144402036 | F205: 0.239980916 | G205: 0.2046755725 | H205: 0.3625954198 | I205: 0.1013040712
B206: In mijn functie vind ik het haalbaar om de verschillende domeinen (onderwijs, onderzoek, impact, patiëntenzorg, leiderschap) in mijn werk te combineren. | C206: Verschil | D206: =D205-D204 -> -1221 | E206: =E205-E204 -> 0.008077393642 | F206: =F205-F204 -> -0.01025213764 | G206: =G205-G204 -> -0.006138117719 | H206: =H205-H204 -> 0.003959116744 | I206: =I205-I204 -> 0.004353744972
B207: Ik ervaar dat ik op alle verschillende domeinen in mijn werkzaamheden goed moet zijn. | C207: 2024 | D207: 7635 | E207: 0.01689587426 | F207: 0.09731499673 | G207: 0.1586116568 | H207: 0.470464964 | I207: 0.2567125082
B208: Ik ervaar dat ik op alle verschillende domeinen in mijn werkzaamheden goed moet zijn. | C208: 2026 | D208: 6334 | E208: 0.02099778971 | F208: 0.09346384591 | G208: 0.1585096306 | H208: 0.4520050521 | I208: 0.2750236817
B209: Ik ervaar dat ik op alle verschillende domeinen in mijn werkzaamheden goed moet zijn. | C209: Verschil | D209: =D208-D207 -> -1301 | E209: =E208-E207 -> 0.004101915443 | F209: =F208-F207 -> -0.003851150815 | G209: =G208-G207 -> -0.0001020262783 | H209: =H208-H207 -> -0.01845991188 | I209: =I208-I207 -> 0.01831117353
B210: Ik heb de indruk dat verschillende domeinen in mijn instelling evenveel waardering krijgen. | C210: 2024 | D210: 7455 | E210: 0.2457411133 | F210: 0.4332662643 | G210: 0.1860496311 | H210: 0.1157612341 | I210: 0.01918175721
B211: Ik heb de indruk dat verschillende domeinen in mijn instelling evenveel waardering krijgen. | C211: 2026 | D211: 6224 | E211: 0.2641388175 | F211: 0.4278598972 | G211: 0.1772172237 | H211: 0.1137532134 | I211: 0.01703084833
B212: Ik heb de indruk dat verschillende domeinen in mijn instelling evenveel waardering krijgen. | C212: Verschil | D212: =D211-D210 -> -1231 | E212: =E211-E210 -> 0.01839770413 | F212: =F211-F210 -> -0.00540636708 | G212: =G211-G210 -> -0.00883240747 | H212: =H211-H210 -> -0.002008020703 | I212: =I211-I210 -> -0.002150908881
B215: Uitgesplitst naar vakgebied
B226: Mate waarin men het eens is met uitspraken rondom loopbaanpaden diversifiëren en dynamiseren*** | E226: Bij het maken van afspraken over mijn werkzaamheden wordt rekening gehouden met waar mijn ambities liggen. | G226: Bij het maken van afspraken over mijn werkzaamheden ervaar ik een goede balans tussen aandacht voor mijn talenten en aandacht voor de behoeften van de instelling. | I226: Ik heb het gevoel dat ik mij verder kan ontwikkelen in het soort werk dat het beste bij mij past. | K226: In mijn functie vind ik het haalbaar om de verschillende domeinen (onderwijs, onderzoek, impact, patiëntenzorg, leiderschap) in mijn werk te combineren. | M226: Ik ervaar dat ik op alle verschillende domeinen in mijn werkzaamheden goed moet zijn. | O226: Ik heb de indruk dat verschillende domeinen in mijn instelling evenveel waardering krijgen.
B227: Vakgebied | C227: Jaar | D227: Aantal | E227: Gemiddelde* | F227: sd** | G227: Gemiddelde | H227: sd | I227: Gemiddelde | J227: sd | K227: Gemiddelde | L227: sd | M227: Gemiddelde | N227: sd | O227: Gemiddelde | P227: sd
B228: Landbouw / toegepaste levenswetenschappen | C228: 2024 | E228: 3.603305785 | F228: 0.9787691151 | G228: 3.355932203 | H228: 1.017164012 | I228: 3.483606557 | J228: 0.9894785884 | K228: 3.469565217 | L228: 1.053996065 | M228: 3.840336134 | N228: 0.9111660743 | O228: 2.383928571 | P228: 0.9886339261
B229: Landbouw / toegepaste levenswetenschappen | C229: 2026 | E229: 3.604938272 | F229: 0.9959795724 | G229: 3.475 | H229: 0.9675101805 | I229: 3.525 | J229: 1.018499765 | K229: 3.53164557 | L229: 1.010654054 | M229: 3.825 | N229: 1.016011063 | O229: 2.532467532 | P229: 1.046100725
B230: Landbouw / toegepaste levenswetenschappen | C230: Verschil | E230: =E229-E228 -> 0.001632486481 | F230: =F229-F228 -> 0.01721045728 | G230: =G229-G228 -> 0.1190677966 | H230: =H229-H228 -> -0.04965383177 | I230: =I229-I228 -> 0.04139344262 | J230: =J229-J228 -> 0.02902117698 | K230: =K229-K228 -> 0.06208035223 | L230: =L229-L228 -> -0.04334201078 | M230: =M229-M228 -> -0.01533613445 | N230: =N229-N228 -> 0.1048449892 | O230: =O229-O228 -> 0.148538961 | P230: =P229-P228 -> 0.05746679842
B231: Natuur- en levenswetenschappen | C231: 2024 | E231: 3.478921907 | F231: 1.01411447 | G231: 3.203533569 | H231: 1.046102192 | I231: 3.443835616 | J231: 1.046681011 | K231: 3.149400987 | L231: 1.12238632 | M231: 3.857044199 | N231: 0.9904199542 | O231: 2.237047551 | P231: 0.9560015712
B232: Natuur- en levenswetenschappen | C232: 2026 | E232: 3.551942186 | F232: 0.9944526625 | G232: 3.243858053 | H232: 1.043954773 | I232: 3.408726625 | J232: 1.083581274 | K232: 3.195277021 | L232: 1.157982352 | M232: 3.896209386 | N232: 1.033785232 | O232: 2.211485871 | P232: 1.036265437
B233: Natuur- en levenswetenschappen | C233: Verschil | E233: =E232-E231 -> 0.07302027869 | F233: =F232-F231 -> -0.01966180797 | G233: =G232-G231 -> 0.04032448387 | H233: =H232-H231 -> -0.002147419105 | I233: =I232-I231 -> -0.03510899133 | J233: =J232-J231 -> 0.03690026317 | K233: =K232-K231 -> 0.04587603428 | L233: =L232-L231 -> 0.03559603206 | M233: =M232-M231 -> 0.03916518739 | N233: =N232-N231 -> 0.04336527762 | O233: =O232-O231 -> -0.0255616809 | P233: =P232-P231 -> 0.08026386613
B234: Techniek | C234: 2024 | E234: 3.571578947 | F234: 0.9955817207 | G234: 3.347593583 | H234: 1.063322782 | I234: 3.507291667 | J234: 1.075826408 | K234: 3.318229715 | L234: 1.124100496 | M234: 3.772204807 | N234: 0.9938833055 | O234: 2.40326087 | P234: 1.06552986
B235: Techniek | C235: 2026 | E235: 3.501319261 | F235: 1.039191511 | G235: 3.234270415 | H235: 1.103250545 | I235: 3.373540856 | J235: 1.09924427 | K235: 3.235294118 | L235: 1.156388503 | M235: 3.80078637 | N235: 1.02828727 | O235: 2.209742896 | P235: 1.053121474
B236: Techniek | C236: Verschil | E236: =E235-E234 -> -0.07025968615 | F236: =F235-F234 -> 0.04360979049 | G236: =G235-G234 -> -0.1133231679 | H236: =H235-H234 -> 0.0399277638 | I236: =I235-I234 -> -0.1337508106 | J236: =J235-J234 -> 0.02341786265 | K236: =K235-K234 -> -0.08293559784 | L236: =L235-L234 -> 0.03228800671 | M236: =M235-M234 -> 0.02858156291 | N236: =N235-N234 -> 0.03440396413 | O236: =O235-O234 -> -0.1935179738 | P236: =P235-P234 -> -0.01240838568
B237: Gezondheid | C237: 2024 | E237: 3.612987013 | F237: 0.9555275574 | G237: 3.304483837 | H237: 0.9903502695 | I237: 3.557098765 | J237: 1.008880292 | K237: 3.214361702 | L237: 1.138286303 | M237: 3.815432742 | N237: 0.930182248 | O237: 2.236673774 | P237: 0.9702004863
B238: Gezondheid | C238: 2026 | E238: 3.588273196 | F238: 0.9820788003 | G238: 3.293316029 | H238: 1.038674591 | I238: 3.516688062 | J238: 1.024135869 | K238: 3.283278689 | L238: 1.144318272 | M238: 3.835723598 | N238: 0.9510533683 | O238: 2.259826782 | P238: 0.9752495595
B239: Gezondheid | C239: Verschil | E239: =E238-E237 -> -0.02471381711 | F239: =F238-F237 -> 0.02655124282 | G239: =G238-G237 -> -0.01116780878 | H239: =H238-H237 -> 0.04832432149 | I239: =I238-I237 -> -0.04041070381 | J239: =J238-J237 -> 0.01525557725 | K239: =K238-K237 -> 0.0689169864 | L239: =L238-L237 -> 0.006031969619 | M239: =M238-M237 -> 0.020290856 | N239: =N238-N237 -> 0.02087112028 | O239: =O238-O237 -> 0.02315300816 | P239: =P238-P237 -> 0.005049073183
B240: Economie | C240: 2024 | E240: 3.47826087 | F240: 1.091442859 | G240: 3.284482759 | H240: 1.076399361 | I240: 3.392781316 | J240: 1.137686582 | K240: 3.09287257 | L240: 1.188879278 | M240: 3.845824411 | N240: 1.04090106 | O240: 2.149892934 | P240: 1.065965373
B241: Economie | C241: 2026 | E241: 3.41509434 | F241: 1.131938628 | G241: 3.151351351 | H241: 1.168145781 | I241: 3.288 | J241: 1.143332216 | K241: 3.078167116 | L241: 1.248494394 | M241: 3.978609626 | N241: 0.9984288958 | O241: 2.059299191 | P241: 1.050991061
B242: Economie | C242: Verschil | E242: =E241-E240 -> -0.06316652994 | F242: =F241-F240 -> 0.04049576992 | G242: =G241-G240 -> -0.1331314073 | H242: =H241-H240 -> 0.09174641922 | I242: =I241-I240 -> -0.1047813163 | J242: =J241-J240 -> 0.00564563418 | K242: =K241-K240 -> -0.01470545429 | L242: =L241-L240 -> 0.05961511623 | M242: =M241-M240 -> 0.1327852145 | N242: =N241-N240 -> -0.04247216396 | O242: =O241-O240 -> -0.09059374224 | P242: =P241-P240 -> -0.01497431246
B243: Recht | C243: 2024 | E243: 3.421212121 | F243: 1.055383529 | G243: 3.207831325 | H243: 1.058214364 | I243: 3.382089552 | J243: 1.114805825 | K243: 3.06097561 | L243: 1.139746857 | M243: 3.935185185 | N243: 0.9204233931 | O243: 2.149390244 | P243: 1.083204948
B244: Recht | C244: 2026 | E244: 3.322259136 | F244: 1.11016645 | G244: 3.136666667 | H244: 1.16153034 | I244: 3.207236842 | J244: 1.180065556 | K244: 3.101010101 | L244: 1.160978293 | M244: 3.966666667 | N244: 0.8725978334 | O244: 2.161073826 | P244: 1.02538234
B245: Recht | C245: Verschil | E245: =E244-E243 -> -0.098952985 | F245: =F244-F243 -> 0.05478292101 | G245: =G244-G243 -> -0.07116465863 | H245: =H244-H243 -> 0.1033159767 | I245: =I244-I243 -> -0.1748527101 | J245: =J244-J243 -> 0.06525973061 | K245: =K244-K243 -> 0.04003449125 | L245: =L244-L243 -> 0.02123143626 | M245: =M244-M243 -> 0.03148148148 | N245: =N244-N243 -> -0.04782555972 | O245: =O244-O243 -> 0.0116835816 | P245: =P244-P243 -> -0.05782260806
B246: Gedrag en maatschappij | C246: 2024 | E246: 3.536927622 | F246: 1.026857957 | G246: 3.252232143 | H246: 1.060175074 | I246: 3.384218289 | J246: 1.06011984 | K246: 2.988747187 | L246: 1.130000135 | M246: 3.945427729 | N246: 0.9504171358 | O246: 2.171579743 | P246: 1.007555196
B247: Gedrag en maatschappij | C247: 2026 | E247: 3.423611111 | F247: 1.0684805 | G247: 3.18118196 | H247: 1.077099652 | I247: 3.238461538 | J247: 1.122955562 | K247: 2.990573449 | L247: 1.145090313 | M247: 3.8890625 | N247: 0.9839393924 | O247: 2.132060461 | P247: 0.9758541757
B248: Gedrag en maatschappij | C248: Verschil | E248: =E247-E246 -> -0.1133165108 | F248: =F247-F246 -> 0.0416225428 | G248: =G247-G246 -> -0.07105018329 | H248: =H247-H246 -> 0.01692457841 | I248: =I247-I246 -> -0.1457567506 | J248: =J247-J246 -> 0.06283572208 | K248: =K247-K246 -> 0.00182626175 | L248: =L247-L246 -> 0.01509017756 | M248: =M247-M246 -> -0.05636522861 | N248: =N247-N246 -> 0.03352225659 | O248: =O247-O246 -> -0.03951928159 | P248: =P247-P246 -> -0.03170101999
B249: Taal en cultuur | C249: 2024 | E249: 3.397553517 | F249: 1.064990769 | G249: 3.144859813 | H249: 1.105600575 | I249: 3.231950845 | J249: 1.136780489 | K249: 2.930015552 | L249: 1.164004997 | M249: 3.851681957 | N249: 0.9795873353 | O249: 2.166144201 | P249: 1.010454546
B250: Taal en cultuur | C250: 2026 | E250: 3.286792453 | F250: 1.058235814 | G250: 3.034090909 | H250: 1.061117491 | I250: 3.071563089 | J250: 1.117004588 | K250: 2.847490347 | L250: 1.167708445 | M250: 3.845714286 | N250: 0.9985704067 | O250: 2.09496124 | P250: 0.9433949221
B251: Taal en cultuur | C251: Verschil | E251: =E250-E249 -> -0.110761064 | F251: =F250-F249 -> -0.006754954866 | G251: =G250-G249 -> -0.110768904 | H251: =H250-H249 -> -0.04448308455 | I251: =I250-I249 -> -0.1603877563 | J251: =J250-J249 -> -0.01977590093 | K251: =K250-K249 -> -0.08252520461 | L251: =L250-L249 -> 0.003703448361 | M251: =M250-M249 -> -0.005967671472 | N251: =N250-N249 -> 0.01898307145 | O251: =O250-O249 -> -0.07118296032 | P251: =P250-P249 -> -0.06705962435
B252: Onderwijs (als wetenschapsgebied) | C252: 2024 | E252: 3.661691542 | F252: 1.012410551 | G252: 3.32 | H252: 1.128702728 | I252: 3.611650485 | J252: 1.052133811 | K252: 3.222797927 | L252: 1.206362666 | M252: 3.815 | N252: 0.972369535 | O252: 2.317948718 | P252: 1.167178242
B253: Onderwijs (als wetenschapsgebied) | C253: 2026 | E253: 3.752747253 | F253: 0.933932535 | G253: 3.580110497 | H253: 1.016771573 | I253: 3.64516129 | J253: 1.004262928 | K253: 3.41954023 | L253: 1.054507427 | M253: 3.701657459 | N253: 0.9996930161 | O253: 2.416666667 | P253: 1.102941724
B254: Onderwijs (als wetenschapsgebied) | C254: Verschil | E254: =E253-E252 -> 0.09105571046 | F254: =F253-F252 -> -0.07847801628 | G254: =G253-G252 -> 0.2601104972 | H254: =H253-H252 -> -0.1119311552 | I254: =I253-I252 -> 0.03351080489 | J254: =J253-J252 -> -0.04787088287 | K254: =K253-K252 -> 0.1967423024 | L254: =L253-L252 -> -0.1518552381 | M254: =M253-M252 -> -0.1133425414 | N254: =N253-N252 -> 0.02732348113 | O254: =O253-O252 -> 0.09871794872 | P254: =P253-P252 -> -0.06423651795
B255: Anders, namelijk… | C255: 2024 | E255: 3.352112676 | F255: 1.083626076 | G255: 3.242857143 | H255: 1.209092537 | I255: 3.357142857 | J255: 1.036097951 | K255: 3 | L255: 1.154700538 | M255: 3.823529412 | N255: 1.105497477 | O255: 2.03125 | P255: 0.8158888424
B256: Anders, namelijk… | C256: 2026 | E256: 3.4 | F256: 1.069044968 | G256: 3.2 | H256: 1.261680124 | I256: 3.22 | J256: 1.165665265 | K256: 2.958333333 | L256: 1.166159971 | M256: 3.708333333 | N256: 1.090741176 | O256: 2.142857143 | P256: 0.9789450104
B257: Anders, namelijk… | C257: Verschil | E257: =E256-E255 -> 0.04788732394 | F257: =F256-F255 -> -0.01458110847 | G257: =G256-G255 -> -0.04285714286 | H257: =H256-H255 -> 0.05258758723 | I257: =I256-I255 -> -0.1371428571 | J257: =J256-J255 -> 0.1295673137 | K257: =K256-K255 -> -0.04166666667 | L257: =L256-L255 -> 0.01145943264 | M257: =M256-M255 -> -0.1151960784 | N257: =N256-N255 -> -0.01475630104 | O257: =O256-O255 -> 0.1116071429 | P257: =P256-P255 -> 0.163056168
B258: Totaal | C258: 2024 | D258: 7455 - 7703 | E258: 3.53147877 | F258: 1.013014701 | G258: 3.262570583 | H258: 1.049161331 | I258: 3.450561056 | J258: 1.06330115 | K258: 3.137618403 | L258: 1.14451992 | M258: 3.852083611 | N258: 0.9683860921 | O258: 2.232951446 | P258: 1.00890314
B259: Totaal | C259: 2026 | D259: 6085 - 6278 | E259: 3.49165061 | F259: 1.03624424 | G259: 3.225816888 | H259: 1.07604106 | I259: 3.357438675 | J259: 1.097298347 | K259: 3.147618273 | L259: 1.163116266 | M259: 3.864040045 | N259: 0.990386748 | O259: 2.194741167 | P259: 1.008366685
B260: Totaal | C260: Verschil | E260: =E259-E258 -> -0.03982815998 | F260: =F259-F258 -> 0.02322953884 | G260: =G259-G258 -> -0.03675369575 | H260: 0.02687972884 | I260: -0.09312238137 | J260: 0.03399719691 | K260: =K259-K258 -> 0.009999870204 | L260: =L259-L258 -> 0.01859634617 | M260: =M259-M258 -> 0.01195643451 | N260: =N259-N258 -> 0.02200065587 | O260: =O259-O258 -> -0.03821027891 | P260: =P259-P258 -> -0.0005364541157
B261: * Cijfers boven gemiddelde van dat jaar vet gedrukt
B262: **Standaarddeviatie
B263: ***Antwoordcategorieën 1. Helemaal niet mee eens, 2. Niet mee eens, 3. Neutraal, 4. Mee eens, 5. Helemaal mee eens
B265: Uitgesplitst naar functiegroep
B276: Mate waarin men het eens is met uitspraken rondom loopbaanpaden diversifiëren en dynamiseren*** | E276: Bij het maken van afspraken over mijn werkzaamheden wordt rekening gehouden met waar mijn ambities liggen. | G276: Bij het maken van afspraken over mijn werkzaamheden ervaar ik een goede balans tussen aandacht voor mijn talenten en aandacht voor de behoeften van de instelling. | I276: Ik heb het gevoel dat ik mij verder kan ontwikkelen in het soort werk dat het beste bij mij past. | K276: In mijn functie vind ik het haalbaar om de verschillende domeinen (onderwijs, onderzoek, impact, patiëntenzorg, leiderschap) in mijn werk te combineren. | M276: Ik ervaar dat ik op alle verschillende domeinen in mijn werkzaamheden goed moet zijn. | O276: Ik heb de indruk dat verschillende domeinen in mijn instelling evenveel waardering krijgen.
B277: Functiegroep | C277: Jaar | D277: Aantal | E277: Gemiddelde* | F277: sd** | G277: Gemiddelde | H277: sd | I277: Gemiddelde | J277: sd | K277: Gemiddelde | L277: sd | M277: Gemiddelde | N277: sd | O277: Gemiddelde | P277: sd
B278: Hoogleraar | C278: 2024 | E278: 3.704946996 | F278: 0.9705897543 | G278: 3.491555556 | H278: 1.036337042 | I278: 3.713913043 | J278: 1.014635028 | K278: 3.442041522 | L278: 1.167050073 | M278: 3.847807395 | N278: 0.9369365932 | O278: 2.499130435 | P278: 1.026837071
B279: Hoogleraar | C279: 2026 | E279: 3.673216132 | F279: 1.028947631 | G279: 3.474226804 | H279: 1.092169176 | I279: 3.708080808 | J279: 1.027742258 | K279: 3.502507523 | L279: 1.172494223 | M279: 3.884305835 | N279: 0.9581868425 | O279: 2.508032129 | P279: 1.039392818
B280: Hoogleraar | C280: Verschil | E280: =E279-E278 -> -0.0317308641 | F280: =F279-F278 -> 0.05835787683 | G280: =G279-G278 -> -0.01732875143 | H280: =H279-H278 -> 0.05583213414 | I280: =I279-I278 -> -0.005832235397 | J280: =J279-J278 -> 0.01310723036 | K280: =K279-K278 -> 0.06046600008 | L280: =L279-L278 -> 0.005444150026 | M280: =M279-M278 -> 0.03649844034 | N280: =N279-N278 -> 0.0212502493 | O280: =O279-O278 -> 0.008901693731 | P280: =P279-P278 -> 0.01255574749
B281: Hoogleraar-Medisch specialist | C281: 2024 | E281: 3.748251748 | F281: 0.8758780823 | G281: 3.527777778 | H281: 0.9456891108 | I281: 3.870748299 | J281: 0.8779810967 | K281: 3.547945205 | L281: 1.174922987 | M281: 3.813793103 | N281: 0.9353119421 | O281: 2.668965517 | P281: 1.112149898
B282: Hoogleraar-Medisch specialist | C282: 2026 | E282: 3.681818182 | F282: 1.048649793 | G282: 3.345454545 | H282: 1.120586049 | I282: 3.743119266 | J282: 0.966126954 | K282: 3.576576577 | L282: 1.124516458 | M282: 3.801801802 | N282: 0.8925939708 | O282: 2.495495495 | P282: 1.077656328
B283: Hoogleraar-Medisch specialist | C283: Verschil | E283: =E282-E281 -> -0.06643356643 | F283: =F282-F281 -> 0.1727717108 | G283: =G282-G281 -> -0.1823232323 | H283: =H282-H281 -> 0.1748969386 | I283: =I282-I281 -> -0.1276290333 | J283: =J282-J281 -> 0.08814585733 | K283: =K282-K281 -> 0.0286313711 | L283: =L282-L281 -> -0.05040652855 | M283: =M282-M281 -> -0.01199130165 | N283: =N282-N281 -> -0.04271797134 | O283: =O282-O281 -> -0.1734700217 | P283: =P282-P281 -> -0.03449356953
B284: Universitair hoofddocent (UHD) | C284: 2024 | E284: 3.474497682 | F284: 1.053355565 | G284: 3.188958009 | H284: 1.067774588 | I284: 3.428571429 | J284: 1.049452528 | K284: 3.143950995 | L284: 1.125441493 | M284: 3.953667954 | N284: 0.9521877831 | O284: 2.0758405 | P284: 0.9309676052
B285: Universitair hoofddocent (UHD) | C285: 2026 | E285: 3.435804702 | F285: 1.039466507 | G285: 3.159380692 | H285: 1.078127778 | I285: 3.324663677 | J285: 1.085431414 | K285: 3.127564674 | L285: 1.156796011 | M285: 3.983081033 | N285: 0.9713721021 | O285: 2.03438914 | P285: 0.9062450463
B286: Universitair hoofddocent (UHD) | C286: Verschil | E286: =E285-E284 -> -0.03869297998 | F286: =F285-F284 -> -0.01388905776 | G286: =G285-G284 -> -0.02957731716 | H286: =H285-H284 -> 0.01035319037 | I286: =I285-I284 -> -0.1039077514 | J286: =J285-J284 -> 0.03597888556 | K286: =K285-K284 -> -0.01638632101 | L286: =L285-L284 -> 0.03135451779 | M286: =M285-M284 -> 0.02941307928 | N286: =N285-N284 -> 0.019184319 | O286: =O285-O284 -> -0.04145136012 | P286: =P285-P284 -> -0.02472255888
B287: Universitair docent (UD) | C287: 2024 | E287: 3.400388727 | F287: 1.03419411 | G287: 3.111545988 | H287: 1.052830489 | I287: 3.284749035 | J287: 1.079638616 | K287: 2.907804878 | L287: 1.128964491 | M287: 4.024224806 | N287: 0.9573525357 | O287: 2.043670265 | P287: 0.9397963374
B288: Universitair docent (UD) | C288: 2026 | E288: 3.324819545 | F288: 1.056982226 | G288: 3.026286353 | H288: 1.071000594 | I288: 3.135480289 | J288: 1.087541266 | K288: 2.859619687 | L288: 1.137882202 | M288: 4.057509771 | N288: 0.9534050982 | O288: 1.987485779 | P288: 0.9391639094
B289: Universitair docent (UD) | C289: Verschil | E289: =E288-E287 -> -0.07556918222 | F289: =F288-F287 -> 0.02278811593 | G289: =G288-G287 -> -0.08525963479 | H289: =H288-H287 -> 0.01817010521 | I289: =I288-I287 -> -0.149268746 | J289: =J288-J287 -> 0.007902650078 | K289: =K288-K287 -> -0.04818519125 | L289: =L288-L287 -> 0.008917710991 | M289: =M288-M287 -> 0.03328496488 | N289: =N288-N287 -> -0.003947437516 | O289: =O288-O287 -> -0.05618448567 | P289: =P288-P287 -> -0.0006324280359
B290: Onderzoeker (inclusief postdoc) | C290: 2024 | E290: 3.583835947 | F290: 0.9714669679 | G290: 3.305795314 | H290: 0.9939090812 | I290: 3.420168067 | J290: 1.084717471 | K290: 3.135678392 | L290: 1.112166413 | M290: 3.753374233 | N290: 0.9760197344 | O290: 2.327272727 | P290: 0.9806497625
B291: Onderzoeker (inclusief postdoc) | C291: 2026 | E291: 3.594444444 | F291: 1.007329038 | G291: 3.319775596 | H291: 1.018847088 | I291: 3.372413793 | J291: 1.113359529 | K291: 3.213564214 | L291: 1.111157611 | M291: 3.793248945 | N291: 0.9660487222 | O291: 2.374260355 | P291: 1.068271106
B292: Onderzoeker (inclusief postdoc) | C292: Verschil | E292: =E291-E290 -> 0.01060849752 | F292: =F291-F290 -> 0.03586207026 | G292: =G291-G290 -> 0.01398028165 | H292: =H291-H290 -> 0.0249380063 | I292: =I291-I290 -> -0.04775427412 | J292: =J291-J290 -> 0.02864205888 | K292: =K291-K290 -> 0.0778858216 | L292: =L291-L290 -> -0.001008801603 | M292: =M291-M290 -> 0.03987471202 | N292: =N291-N290 -> -0.009971012175 | O292: =O291-O290 -> 0.04698762776 | P292: =P291-P290 -> 0.08762134343
B293: Docent (inclusief wetenschappelijk docent) | C293: 2024 | E293: 3.350877193 | F293: 1.093055698 | G293: 3.135087719 | H293: 1.101682884 | I293: 3.111888112 | J293: 1.143656196 | K293: 2.769383698 | L293: 1.161507906 | M293: 3.583643123 | N293: 0.9997542151 | O293: 1.935424354 | P293: 0.9904720326
B294: Docent (inclusief wetenschappelijk docent) | C294: 2026 | E294: 3.281124498 | F294: 1.071528901 | G294: 3.041832669 | H294: 1.096284338 | I294: 2.930278884 | J294: 1.190916855 | K294: 2.791011236 | L294: 1.169780958 | M294: 3.417943107 | N294: 1.03996127 | O294: 1.842887473 | P294: 0.8756440463
B295: Docent (inclusief wetenschappelijk docent) | C295: Verschil | E295: =E294-E293 -> -0.06975269499 | F295: =F294-F293 -> -0.02152679666 | G295: =G294-G293 -> -0.09325504998 | H295: =H294-H293 -> -0.00539854622 | I295: =I294-I293 -> -0.1816092274 | J295: =J294-J293 -> 0.04726065966 | K295: =K294-K293 -> 0.02162753814 | L295: =L294-L293 -> 0.008273051651 | M295: =M294-M293 -> -0.1657000155 | N295: =N294-N293 -> 0.04020705537 | O295: =O294-O293 -> -0.09253688078 | P295: =P294-P293 -> -0.1148279863
B296: Promovendus | C296: 2024 | E296: 3.704600484 | F296: 0.930493892 | G296: 3.442227764 | H296: 0.9894345473 | I296: 3.629303443 | J296: 0.9704642583 | K296: 3.381434599 | L296: 1.050093127 | M296: 3.677108434 | N296: 0.9480889521 | O296: 2.524463519 | P296: 1.058654721
... 38 more rows

Sheet H3.3
B5: H 3.3 Ontwikkeling
B7: Ontwikkeling
B20: Mate waarin respondenten het eens zijn met uitspraken rondom ontwikkeling
B21: Uitspraak | C21: Jaar | D21: Aantal | E21: Gemiddelde*
B22: In het bespreken van mijn werk is de kwaliteit van mijn werk belangrijker dan de kwantiteit. | C22: 2024 | D22: 7642 | E22: 3.326877781
B23: In het bespreken van mijn werk is de kwaliteit van mijn werk belangrijker dan de kwantiteit. | C23: 2026 | D23: 6306 | E23: 3.290358389
B24: In het bespreken van mijn werk is de kwaliteit van mijn werk belangrijker dan de kwantiteit. | C24: Verschil | D24: =D23-D22 -> -1336 | E24: -0.03651939185
B25: In mijn werk worden ook andere, innovatievere en creatieve, vormen van output erkend en gewaardeerd, naast bijvoorbeeld publicaties. | C25: 2024 | D25: 7323 | E25: 3.02458009
B26: In mijn werk worden ook andere, innovatievere en creatieve, vormen van output erkend en gewaardeerd, naast bijvoorbeeld publicaties. | C26: 2026 | D26: 6039 | E26: 3.031296572
B27: In mijn werk worden ook andere, innovatievere en creatieve, vormen van output erkend en gewaardeerd, naast bijvoorbeeld publicaties. | C27: Verschil | D27: =D26-D25 -> -1284 | E27: 0.006716482153
B28: De maatschappelijke relevantie van mijn werk wordt gewaardeerd. | C28: 2024 | D28: 7301 | E28: 3.429119299
B29: De maatschappelijke relevantie van mijn werk wordt gewaardeerd. | C29: 2026 | D29: 6098 | E29: 3.434404723
B30: De maatschappelijke relevantie van mijn werk wordt gewaardeerd. | C30: Verschil | D30: =D29-D28 -> -1203 | E30: 0.005285424134
B31: De focus ligt in mijn instelling op ontwikkeling (in plaats van beoordeling). | C31: 2024 | D31: 7124 | E31: 2.894722066
B32: De focus ligt in mijn instelling op ontwikkeling (in plaats van beoordeling). | C32: 2026 | D32: 5925 | E32: 2.913924051
B33: De focus ligt in mijn instelling op ontwikkeling (in plaats van beoordeling). | C33: Verschil | D33: =D32-D31 -> -1199 | E33: 0.01920198438
B34: Ik vertrouw er op dat mijn leidinggevende mijn talenten en ambities op waarde kan schatten. | C34: 2024 | D34: 7694 | E34: 3.566285417
B35: Ik vertrouw er op dat mijn leidinggevende mijn talenten en ambities op waarde kan schatten. | C35: 2026 | D35: 6390 | E35: 3.520970266
B36: Ik vertrouw er op dat mijn leidinggevende mijn talenten en ambities op waarde kan schatten. | C36: Verschil | D36: =D35-D34 -> -1304 | E36: -0.04531515117
B38: * Antwoordcategorieën 1. Helemaal niet mee eens, 2. Niet mee eens, 3. Neutraal, 4. Mee eens, 5. Helemaal mee eens
B50: Mate waarin respondenten het eens zijn met uitspraken rondom ontwikkeling
B51: Uitspraak | C51: Jaar | D51: Aantal | E51: Helemaal niet mee eens | F51: Niet mee eens | G51: Neutraal | H51: Mee eens | I51: Helemaal mee eens
B52: In het bespreken van mijn werk is de kwaliteit van mijn werk belangrijker dan de kwantiteit. | C52: 2024 | D52: 7642 | E52: 0.04396754776 | F52: 0.1822821251 | G52: 0.2804239728 | H52: 0.3895577074 | I52: 0.103768647
B53: In het bespreken van mijn werk is de kwaliteit van mijn werk belangrijker dan de kwantiteit. | C53: 2026 | D53: 6306 | E53: 0.05185537583 | F53: 0.1837932128 | G53: 0.2871868062 | H53: 0.376466857 | I53: 0.1006977482
B54: In het bespreken van mijn werk is de kwaliteit van mijn werk belangrijker dan de kwantiteit. | C54: Verschil | D54: =D53-D52 -> -1336 | E54: =E53-E52 -> 0.00788782807 | F54: =F53-F52 -> 0.001511087715 | G54: =G53-G52 -> 0.006762833434 | H54: =H53-H52 -> -0.01309085044 | I54: =I53-I52 -> -0.003070898775
B55: In mijn werk worden ook andere, innovatievere en creatieve, vormen van output erkend en gewaardeerd, naast bijvoorbeeld publicaties. | C55: 2024 | D55: 7323 | E55: 0.08193363376 | F55: 0.2531749283 | G55: 0.281578588 | H55: 0.3250034139 | I55: 0.05830943602
B56: In mijn werk worden ook andere, innovatievere en creatieve, vormen van output erkend en gewaardeerd, naast bijvoorbeeld publicaties. | C56: 2026 | D56: 6039 | E56: 0.09024672959 | F56: 0.2465640007 | G56: 0.2670972015 | H56: 0.3338301043 | I56: 0.0622619639
B57: In mijn werk worden ook andere, innovatievere en creatieve, vormen van output erkend en gewaardeerd, naast bijvoorbeeld publicaties. | C57: Verschil | D57: =D56-D55 -> -1284 | E57: =E56-E55 -> 0.008313095834 | F57: =F56-F55 -> -0.006610927646 | G57: =G56-G55 -> -0.01448138649 | H57: =H56-H55 -> 0.008826690421 | I57: =I56-I55 -> 0.003952527878
B58: De maatschappelijke relevantie van mijn werk wordt gewaardeerd. | C58: 2024 | D58: 7301 | E58: 0.04985618408 | F58: 0.1297082591 | G58: 0.2717435968 | H58: 0.438843994 | I58: 0.109847966
B59: De maatschappelijke relevantie van mijn werk wordt gewaardeerd. | C59: 2026 | D59: 6098 | E59: 0.05378812725 | F59: 0.1311905543 | G59: 0.2581174155 | H59: 0.4406362742 | I59: 0.1162676287
B60: De maatschappelijke relevantie van mijn werk wordt gewaardeerd. | C60: Verschil | D60: =D59-D58 -> -1203 | E60: =E59-E58 -> 0.00393194317 | F60: =F59-F58 -> 0.001482295138 | G60: =G59-G58 -> -0.01362618122 | H60: =H59-H58 -> 0.001792280215 | I60: =I59-I58 -> 0.006419662699
B61: De focus ligt in mijn instelling op ontwikkeling (in plaats van beoordeling). | C61: 2024 | D61: 7124 | E61: 0.09517125211 | F61: 0.2619314992 | G61: 0.3370297586 | H61: 0.2647389107 | I61: 0.04112857945
B62: De focus ligt in mijn instelling op ontwikkeling (in plaats van beoordeling). | C62: 2026 | D62: 5925 | E62: 0.09805907173 | F62: 0.245907173 | G62: 0.348185654 | H62: 0.2597468354 | I62: 0.04810126582
B63: De focus ligt in mijn instelling op ontwikkeling (in plaats van beoordeling). | C63: Verschil | D63: =D62-D61 -> -1199 | E63: =E62-E61 -> 0.002887819624 | F63: =F62-F61 -> -0.01602432616 | G63: =G62-G61 -> 0.01115589545 | H63: =H62-H61 -> -0.004992075281 | I63: =I62-I61 -> 0.006972686373
B64: Ik vertrouw er op dat mijn leidinggevende mijn talenten en ambities op waarde kan schatten. | C64: 2024 | D64: 7694 | E64: 0.06940473096 | F64: 0.1207434364 | G64: 0.1770210554 | H64: 0.4398232389 | I64: 0.1930075383
B65: Ik vertrouw er op dat mijn leidinggevende mijn talenten en ambities op waarde kan schatten. | C65: 2026 | D65: 6390 | E65: 0.08701095462 | F65: 0.1164319249 | G65: 0.1818466354 | H65: 0.4179968701 | I65: 0.196713615
B66: Ik vertrouw er op dat mijn leidinggevende mijn talenten en ambities op waarde kan schatten. | C66: Verschil | D66: =D65-D64 -> -1304 | E66: =E65-E64 -> 0.01760622366 | F66: =F65-F64 -> -0.004311511561 | G66: =G65-G64 -> 0.00482558 | H66: =H65-H64 -> -0.02182636878 | I66: =I65-I64 -> 0.003706076682
B69: Uitgesplitst naar vakgebied
B80: Mate waarin respondenten het eens zijn met uitspraken rondom ontwikkeling*** | E80: In het bespreken van mijn werk is de kwaliteit van mijn werk belangrijker dan de kwantiteit. | G80: In mijn werk worden ook andere, innovatievere en creatieve, vormen van output erkend en gewaardeerd, naast bijvoorbeeld publicaties. | I80: De maatschappelijke relevantie van mijn werk wordt gewaardeerd. | K80: De focus ligt in mijn instelling op ontwikkeling (in plaats van beoordeling). | M80: Ik vertrouw er op dat mijn leidinggevende mijn talenten en ambities op waarde kan schatten.
B81: Vakgebied | C81: Jaar | D81: Aantal | E81: Gemiddelde* | F81: sd** | G81: Gemiddelde | H81: sd | I81: Gemiddelde | J81: sd | K81: Gemiddelde | L81: sd | M81: Gemiddelde | N81: sd
B82: Landbouw / toegepaste levenswetenschappen | C82: 2024 | E82: 3.235294118 | F82: 1.014353617 | G82: 2.983050847 | H82: 1.062033615 | I82: 3.405172414 | J82: 0.9415846798 | K82: 2.846846847 | L82: 0.9926841317 | M82: 3.616 | N82: 1.141476124
B83: Landbouw / toegepaste levenswetenschappen | C83: 2026 | E83: 3.481481481 | F83: 0.8819171037 | G83: 3.052631579 | H83: 1.018426719 | I83: 3.493670886 | J83: 0.87520573 | K83: 2.957746479 | L83: 0.9626840413 | M83: 3.594936709 | N83: 1.103827692
B84: Landbouw / toegepaste levenswetenschappen | C84: Verschil | E84: =E83-E82 -> 0.2461873638 | F84: =F83-F82 -> -0.1324365133 | G84: =G83-G82 -> 0.06958073149 | H84: =H83-H82 -> -0.04360689563 | I84: =I83-I82 -> 0.08849847228 | J84: =J83-J82 -> -0.06637894978 | K84: =K83-K82 -> 0.110899632 | L84: =L83-L82 -> -0.03000009044 | M84: =M83-M82 -> -0.02106329114 | N84: =N83-N82 -> -0.03764843246
B85: Natuur- en levenswetenschappen | C85: 2024 | E85: 3.393150685 | F85: 1.044693995 | G85: 2.962169879 | H85: 1.042317131 | I85: 3.285820896 | J85: 0.9881790485 | K85: 2.831818182 | L85: 1.017162667 | M85: 3.578659371 | N85: 1.158385838
B86: Natuur- en levenswetenschappen | C86: 2026 | E86: 3.355855856 | F86: 1.043005358 | G86: 2.971644612 | H86: 1.054408836 | I86: 3.343023256 | J86: 0.9861159185 | K86: 2.916260954 | L86: 0.9994142739 | M86: 3.609973286 | N86: 1.160539666
B87: Natuur- en levenswetenschappen | C87: Verschil | E87: =E86-E85 -> -0.03729482908 | F87: =F86-F85 -> -0.001688636416 | G87: =G86-G85 -> 0.009474733818 | H87: =H86-H85 -> 0.01209170423 | I87: =I86-I85 -> 0.05720236029 | J87: =J86-J85 -> -0.002063130053 | K87: =K86-K85 -> 0.08444277242 | L87: =L86-L85 -> -0.01774839307 | M87: =M86-M85 -> 0.03131391512 | N87: =N86-N85 -> 0.002153828068
B88: Techniek | C88: 2024 | E88: 3.46985447 | F88: 1.052041165 | G88: 3.090611354 | H88: 1.064827269 | I88: 3.488913525 | J88: 0.9732203002 | K88: 3.107623318 | L88: 1.046434898 | M88: 3.651041667 | N88: 1.138069528
B89: Techniek | C89: 2026 | E89: 3.385620915 | F89: 1.075209605 | G89: 2.994405594 | H89: 1.085928344 | I89: 3.391061453 | J89: 1.019051248 | K89: 2.97029703 | L89: 1.064742875 | M89: 3.523498695 | N89: 1.18766923
B90: Techniek | C90: Verschil | E90: =E89-E88 -> -0.08423355482 | F90: =F89-F88 -> 0.02316843926 | G90: =G89-G88 -> -0.09620575931 | H90: =H89-H88 -> 0.02110107491 | I90: =I89-I88 -> -0.09785207298 | J90: =J89-J88 -> 0.04583094734 | K90: =K89-K88 -> -0.1373262887 | L90: =L89-L88 -> 0.01830797767 | M90: =M89-M88 -> -0.1275429721 | N90: =N89-N88 -> 0.0495997023
B91: Gezondheid | C91: 2024 | E91: 3.303487767 | F91: 0.9725574726 | G91: 3.109149278 | H91: 1.023736895 | I91: 3.530005311 | J91: 0.9568408822 | K91: 2.930425179 | L91: 0.9717653733 | M91: 3.577421025 | N91: 1.090984144
B92: Gezondheid | C92: 2026 | E92: 3.292922674 | F92: 1.006882403 | G92: 3.160593792 | H92: 1.059275827 | I92: 3.538208169 | J92: 1.001410978 | K92: 2.991028295 | L92: 1.011291011 | M92: 3.532475884 | N92: 1.14549927
B93: Gezondheid | C93: Verschil | E93: =E92-E91 -> -0.01056509313 | F93: =F92-F91 -> 0.03432493052 | G93: =G92-G91 -> 0.05144451448 | H93: =H92-H91 -> 0.03553893204 | I93: =I92-I91 -> 0.008202857968 | J93: =J92-J91 -> 0.04457009537 | K93: =K92-K91 -> 0.06060311592 | L93: =L92-L91 -> 0.03952563737 | M93: =M92-M91 -> -0.04494514113 | N93: =N92-N91 -> 0.05451512553
B94: Economie | C94: 2024 | E94: 3.349785408 | F94: 1.112958837 | G94: 2.744874715 | H94: 1.101499567 | I94: 3.3 | J94: 1.125231973 | K94: 2.653758542 | L94: 1.074158159 | M94: 3.513859275 | N94: 1.201103405
B95: Economie | C95: 2026 | E95: 3.20441989 | F95: 1.095031499 | G95: 2.598290598 | H95: 1.146870243 | I95: 3.206128134 | J95: 1.107045136 | K95: 2.622093023 | L95: 1.06202965 | M95: 3.37431694 | N95: 1.227223818
B96: Economie | C96: Verschil | E96: =E95-E94 -> -0.1453655182 | F96: =F95-F94 -> -0.01792733813 | G96: =G95-G94 -> -0.146584117 | H96: =H95-H94 -> 0.04537067602 | I96: =I95-I94 -> -0.0938718663 | J96: =J95-J94 -> -0.01818683706 | K96: =K95-K94 -> -0.03166551889 | L96: =L95-L94 -> -0.01212850899 | M96: =M95-M94 -> -0.1395423352 | N96: =N95-N94 -> 0.02612041254
B97: Recht | C97: 2024 | E97: 3.234042553 | F97: 1.063500208 | G97: 2.968253968 | H97: 1.111151551 | I97: 3.334375 | J97: 1.084547888 | K97: 2.912337662 | L97: 1.018770283 | M97: 3.435820896 | N97: 1.176580539
B98: Recht | C98: 2026 | E98: 3.093645485 | F98: 1.079674831 | G98: 2.922535211 | H98: 1.128330601 | I98: 3.374570447 | J98: 1.095715514 | K98: 2.851449275 | L98: 1.039071999 | M98: 3.372937294 | N98: 1.235321882
B99: Recht | C99: Verschil | E99: =E98-E97 -> -0.1403970682 | F99: =F98-F97 -> 0.01617462211 | G99: =G98-G97 -> -0.04571875699 | H99: =H98-H97 -> 0.01717905009 | I99: =I98-I97 -> 0.04019544674 | J99: =J98-J97 -> 0.01116762543 | K99: =K98-K97 -> -0.06088838698 | L99: =L98-L97 -> 0.02030171638 | M99: =M98-M97 -> -0.06288360179 | N99: =N98-N97 -> 0.05874134303
B100: Gedrag en maatschappij | C100: 2024 | E100: 3.281365999 | F100: 1.017076444 | G100: 3.056382146 | H100: 1.094994484 | I100: 3.500383142 | J100: 1.028075891 | K100: 2.890894819 | L100: 1.051626646 | M100: 3.559384164 | N100: 1.112916852
B101: Gedrag en maatschappij | C101: 2026 | E101: 3.244913928 | F101: 1.037413634 | G101: 3.089271089 | H101: 1.08085783 | I101: 3.515923567 | J101: 1.027774267 | K101: 2.916049383 | L101: 1.051176887 | M101: 3.495348837 | N101: 1.191016312
B102: Gedrag en maatschappij | C102: Verschil | E102: =E101-E100 -> -0.0364520705 | F102: =F101-F100 -> 0.02033719043 | G102: =G101-G100 -> 0.03288894362 | H102: =H101-H100 -> -0.0141366539 | I102: =I101-I100 -> 0.01554042512 | J102: =J101-J100 -> -0.0003016241137 | K102: =K101-K100 -> 0.02515456325 | L102: =L101-L100 -> -0.0004497586189 | M102: =M101-M100 -> -0.06403532701 | N102: =N101-N100 -> 0.07809945963
B103: Taal en cultuur | C103: 2024 | E103: 3.219284603 | F103: 1.045745624 | G103: 2.943089431 | H103: 1.098568902 | I103: 3.308196721 | J103: 1.056731504 | K103: 2.735 | L103: 1.042394348 | M103: 3.524615385 | N103: 1.176363356
B104: Taal en cultuur | C104: 2026 | E104: 3.254863813 | F104: 1.035070075 | G104: 2.982 | H104: 1.127927498 | I104: 3.303030303 | J104: 1.085929008 | K104: 2.759183673 | L104: 1.04459234 | M104: 3.522556391 | N104: 1.218755906
B105: Taal en cultuur | C105: Verschil | E105: =E104-E103 -> 0.03557920981 | F105: =F104-F103 -> -0.01067554984 | G105: =G104-G103 -> 0.03891056911 | H105: =H104-H103 -> 0.02935859624 | I105: =I104-I103 -> -0.005166418281 | J105: =J104-J103 -> 0.02919750401 | K105: =K104-K103 -> 0.02418367347 | L105: =L104-L103 -> 0.00219799186 | M105: =M104-M103 -> -0.002058993638 | N105: =N104-N103 -> 0.04239254945
B106: Onderwijs (als wetenschapsgebied) | C106: 2024 | E106: 3.383838384 | F106: 0.979039939 | G106: 3.299465241 | H106: 1.034953499 | I106: 3.630208333 | J106: 1.060338758 | K106: 3.201058201 | L106: 1.130711949 | M106: 3.611650485 | N106: 1.042819908
B107: Onderwijs (als wetenschapsgebied) | C107: 2026 | E107: 3.477777778 | F107: 1.027311703 | G107: 3.346820809 | H107: 1.076143933 | I107: 3.72 | J107: 1.026320288 | K107: 3.36416185 | L107: 0.994338051 | M107: 3.796791444 | N107: 1.083299606
B108: Onderwijs (als wetenschapsgebied) | C108: Verschil | E108: =E107-E106 -> 0.09393939394 | F108: =F107-F106 -> 0.04827176433 | G108: =G107-G106 -> 0.04735556861 | H108: =H107-H106 -> 0.04119043402 | I108: =I107-I106 -> 0.08979166667 | J108: =J107-J106 -> -0.03401846976 | K108: =K107-K106 -> 0.1631036487 | L108: =L107-L106 -> -0.1363738984 | M108: =M107-M106 -> 0.1851409584 | N108: =N107-N106 -> 0.04047969842
B109: Anders, namelijk… | C109: 2024 | E109: 3.171428571 | F109: 1.006809116 | G109: 2.926470588 | H109: 1.09702687 | I109: 3.367647059 | J109: 1.035264935 | K109: 2.772727273 | L109: 0.9247944395 | M109: 3.5 | N109: 1.224744871
B110: Anders, namelijk… | C110: 2026 | E110: 3.25 | F110: 1.120410259 | G110: 3.209302326 | H110: 1.245145613 | I110: 3.511627907 | J110: 0.9849363775 | K110: 2.886363636 | L110: 1.224097372 | M110: 3.530612245 | N110: 1.276421443
B111: Anders, namelijk… | C111: Verschil | E111: =E110-E109 -> 0.07857142857 | F111: =F110-F109 -> 0.1136011431 | G111: =G110-G109 -> 0.2828317373 | H111: =H110-H109 -> 0.1481187423 | I111: =I110-I109 -> 0.1439808482 | J111: =J110-J109 -> -0.05032855741 | K111: =K110-K109 -> 0.1136363636 | L111: =L110-L109 -> 0.2993029326 | M111: =M110-M109 -> 0.0306122449 | N111: =N110-N109 -> 0.05167657182
B112: Totaal | C112: 2024 | D112: 7010 - 7572 | E112: 3.330671989 | F112: 1.027780227 | G112: 3.027480916 | H112: 1.066667166 | I112: 3.431116059 | J112: 1.011995036 | K112: 2.896861626 | L112: 1.030594269 | M112: 3.569862652 | N112: 1.133538069
B113: Totaal | C113: 2026 | D113: 5796 - 6250 | E113: 3.295310725 | F113: 1.041848662 | G113: 3.036252753 | H113: 1.090938145 | I113: 3.439134809 | J113: 1.029736142 | K113: 2.921325052 | L113: 1.038692699 | M113: 3.52848 | N113: 1.17907223
B114: Totaal | C114: Verschil | E114: =E113-E112 -> -0.03536126406 | F114: =F113-F112 -> 0.01406843499 | G114: =G113-G112 -> 0.008771836807 | H114: 0.02427097982 | I114: 0.00801874985 | J114: 0.01774110568 | K114: 0.02446342551 | L114: 0.008098429993 | M114: -0.04138265188 | N114: 0.04553416118
B115: * Cijfers boven gemiddelde van dat jaar vet gedrukt
B116: **Standaarddeviatie
B117: ***Antwoordcategorieën 1. Helemaal niet mee eens, 2. Niet mee eens, 3. Neutraal, 4. Mee eens, 5. Helemaal mee eens
B119: Uitgesplitst naar functiegroep
B131: Mate waarin respondenten het eens zijn met uitspraken rondom ontwikkeling*** | E131: In het bespreken van mijn werk is de kwaliteit van mijn werk belangrijker dan de kwantiteit. | G131: In mijn werk worden ook andere, innovatievere en creatieve, vormen van output erkend en gewaardeerd, naast bijvoorbeeld publicaties. | I131: De maatschappelijke relevantie van mijn werk wordt gewaardeerd. | K131: De focus ligt in mijn instelling op ontwikkeling (in plaats van beoordeling). | M131: Ik vertrouw er op dat mijn leidinggevende mijn talenten en ambities op waarde kan schatten.
B132: Functiegroep | C132: Jaar | D132: Aantal | E132: Gemiddelde* | F132: sd** | G132: Gemiddelde | H132: sd | I132: Gemiddelde | J132: sd | K132: Gemiddelde | L132: sd | M132: Gemiddelde | N132: sd
B133: Hoogleraar | C133: 2024 | E133: 3.46173913 | F133: 0.9845704871 | G133: 3.306878307 | H133: 0.9903356253 | I133: 3.725834798 | J133: 0.9611908369 | K133: 3.016057092 | L133: 0.9616350345 | M133: 3.683478261 | N133: 1.097820488
B134: Hoogleraar | C134: 2026 | E134: 3.379310345 | F134: 1.016682138 | G134: 3.308247423 | H134: 1.059057948 | I134: 3.703893443 | J134: 0.9940464855 | K134: 3.005192108 | L134: 1.011870317 | M134: 3.596562184 | N134: 1.147973179
B135: Hoogleraar | C135: Verschil | E135: =E134-E133 -> -0.08242878561 | F135: =F134-F133 -> 0.03211165078 | G135: =G134-G133 -> 0.001369115802 | H135: =H134-H133 -> 0.06872232237 | I135: =I134-I133 -> -0.02194135527 | J135: =J134-J133 -> 0.03285564859 | K135: =K134-K133 -> -0.01086498389 | L135: =L134-L133 -> 0.05023528223 | M135: =M134-M133 -> -0.08691607685 | N135: =N134-N133 -> 0.0501526916
B136: Hoogleraar-Medisch specialist | C136: 2024 | E136: 3.475862069 | F136: 0.8586387694 | G136: 3.308219178 | H136: 0.9289598818 | I136: 3.595890411 | J136: 0.9510703018 | K136: 3 | L136: 0.9670841735 | M136: 3.682758621 | N136: 1.032146148
B137: Hoogleraar-Medisch specialist | C137: 2026 | E137: 3.247706422 | F137: 1.098449777 | G137: 3.354545455 | H137: 1.018961187 | I137: 3.630630631 | J137: 1.10311895 | K137: 2.981308411 | L137: 1.045938311 | M137: 3.522522523 | N137: 1.20489039
B138: Hoogleraar-Medisch specialist | C138: Verschil | E138: =E137-E136 -> -0.2281556469 | F138: =F137-F136 -> 0.2398110077 | G138: =G137-G136 -> 0.04632627646 | H138: =H137-H136 -> 0.09000130569 | I138: =I137-I136 -> 0.03474021967 | J138: =J137-J136 -> 0.1520486478 | K138: =K137-K136 -> -0.01869158879 | L138: =L137-L136 -> 0.07885413789 | M138: =M137-M136 -> -0.1602360982 | N138: =N137-N136 -> 0.1727442421
B139: Universitair hoofddocent (UHD) | C139: 2024 | E139: 3.178654292 | F139: 1.028890284 | G139: 2.898023715 | H139: 1.02879625 | I139: 3.344745223 | J139: 1.001880828 | K139: 2.734299517 | L139: 0.9932564081 | M139: 3.451886066 | N139: 1.151050595
B140: Universitair hoofddocent (UHD) | C140: 2026 | E140: 3.185117967 | F140: 1.006895362 | G140: 2.888888889 | H140: 1.063623246 | I140: 3.321528425 | J140: 1.023999645 | K140: 2.736190476 | L140: 0.977304303 | M140: 3.398734177 | N140: 1.22904452
B141: Universitair hoofddocent (UHD) | C141: Verschil | E141: =E140-E139 -> 0.006463674989 | F141: =F140-F139 -> -0.02199492181 | G141: =G140-G139 -> -0.009134826526 | H141: =H140-H139 -> 0.03482699546 | I141: =I140-I139 -> -0.02321679795 | J141: =J140-J139 -> 0.02211881711 | K141: =K140-K139 -> 0.001890959282 | L141: =L140-L139 -> -0.01595210511 | M141: =M140-M139 -> -0.05315188899 | N141: =N140-N139 -> 0.07799392507
B142: Universitair docent (UD) | C142: 2024 | E142: 3.138521782 | F142: 1.051978765 | G142: 2.841463415 | H142: 1.0538468 | I142: 3.284090909 | J142: 1.018625004 | K142: 2.70104712 | L142: 1.04139013 | M142: 3.452692868 | N142: 1.172632412
B143: Universitair docent (UD) | C143: 2026 | E143: 3.108658744 | F143: 1.060763609 | G143: 2.837631887 | H143: 1.08846903 | I143: 3.259763314 | J143: 1.056420194 | K143: 2.731325301 | L143: 1.031210097 | M143: 3.417877095 | N143: 1.222444273
B144: Universitair docent (UD) | C144: Verschil | E144: =E143-E142 -> -0.02986303806 | F144: =F143-F142 -> 0.008784844069 | G144: =G143-G142 -> -0.003831527178 | H144: =H143-H142 -> 0.03462222942 | I144: =I143-I142 -> -0.02432759548 | J144: =J143-J142 -> 0.03779518992 | K144: =K143-K142 -> 0.03027818079 | L144: =L143-L142 -> -0.01018003289 | M144: =M143-M142 -> -0.03481577257 | N144: =N143-N142 -> 0.04981186127
B145: Onderzoeker (inclusief postdoc) | C145: 2024 | E145: 3.447400242 | F145: 0.9819570261 | G145: 3.079800499 | H145: 1.065221849 | I145: 3.438596491 | J145: 0.978111275 | K145: 2.936141304 | L145: 1.014184194 | M145: 3.64939759 | N145: 1.095541297
B146: Onderzoeker (inclusief postdoc) | C146: 2026 | E146: 3.487288136 | F146: 0.9842361416 | G146: 3.204379562 | H146: 1.081061627 | I146: 3.566906475 | J146: 0.9815582278 | K146: 3.029275809 | L146: 1.03819329 | M146: 3.667130919 | N146: 1.110017961
B147: Onderzoeker (inclusief postdoc) | C147: Verschil | E147: =E146-E145 -> 0.03988789376 | F147: =F146-F145 -> 0.002279115526 | G147: =G146-G145 -> 0.1245790633 | H147: =H146-H145 -> 0.0158397779 | I147: =I146-I145 -> 0.1283099836 | J147: =J146-J145 -> 0.003446952813 | K147: =K146-K145 -> 0.09313450459 | L147: =L146-L145 -> 0.024009096 | M147: =M146-M145 -> 0.01773332886 | N147: =N146-N145 -> 0.01447666371
B148: Docent (inclusief wetenschappelijk docent) | C148: 2024 | E148: 3.202578269 | F148: 1.014394908 | G148: 2.969135802 | H148: 1.136586531 | I148: 3.141434263 | J148: 1.078697899 | K148: 2.883040936 | L148: 1.052324859 | M148: 3.39965096 | N148: 1.17482325
B149: Docent (inclusief wetenschappelijk docent) | C149: 2026 | E149: 3.076109937 | F149: 0.9970932779 | G149: 3.007407407 | H149: 1.13121526 | I149: 3.155555556 | J149: 1.058543681 | K149: 2.838202247 | L149: 1.057311057 | M149: 3.385542169 | N149: 1.200248049
B150: Docent (inclusief wetenschappelijk docent) | C150: Verschil | E150: =E149-E148 -> -0.1264683323 | F150: =F149-F148 -> -0.01730163055 | G150: =G149-G148 -> 0.03827160494 | H150: =H149-H148 -> -0.005371270803 | I150: =I149-I148 -> 0.01412129261 | J150: =J149-J148 -> -0.0201542178 | K150: =K149-K148 -> -0.04483868848 | L150: =L149-L148 -> 0.004986197375 | M150: =M149-M148 -> -0.01410879119 | N150: =N149-N148 -> 0.0254247994
B151: Promovendus | C151: 2024 | E151: 3.649881983 | F151: 1.002829651 | G151: 3.158390411 | H151: 1.122221514 | I151: 3.616894198 | J151: 0.9625726518 | K151: 3.285971223 | L151: 1.030175306 | M151: 3.861441013 | N151: 1.028420302
B152: Promovendus | C152: 2026 | E152: 3.70890411 | F152: 0.9987252149 | G152: 3.115763547 | H152: 1.063413661 | I152: 3.699147381 | J152: 0.9003315129 | K152: 3.395378691 | L152: 1.000143539 | M152: 3.842224745 | N152: 1.023068712
B153: Promovendus | C153: Verschil | E153: =E152-E151 -> 0.0590221269 | F153: =F152-F151 -> -0.004104436127 | G153: =G152-G151 -> -0.04262686416 | H153: =H152-H151 -> -0.05880785257 | I153: =I152-I151 -> 0.08225318329 | J153: =J152-J151 -> -0.06224113893 | K153: =K152-K151 -> 0.1094074676 | L153: =L152-L151 -> -0.03003176711 | M153: =M152-M151 -> -0.01921626885 | N153: =N152-N151 -> -0.005351589802
B154: Medisch specialist, zonder een van bovenstaande academische functies | C154: 2024 | E154: 3.139240506 | F154: 0.8982210839 | G154: 2.875536481 | H154: 0.9590552057 | I154: 3.224137931 | J154: 0.9942362632 | K154: 2.762331839 | L154: 0.9309580153 | M154: 3.261410788 | N154: 1.115293534
B155: Medisch specialist, zonder een van bovenstaande academische functies | C155: 2026 | E155: 3.035294118 | F155: 0.9784308029 | G155: 3.054878049 | H155: 1.081086983 | I155: 3.194117647 | J155: 1.016415903 | K155: 2.87804878 | L155: 0.9642727499 | M155: 3.314917127 | N155: 1.166785051
B156: Medisch specialist, zonder een van bovenstaande academische functies | C156: Verschil | E156: =E155-E154 -> -0.1039463887 | F156: =F155-F154 -> 0.08020971895 | G156: =G155-G154 -> 0.1793415681 | H156: =H155-H154 -> 0.1220317772 | I156: =I155-I154 -> -0.03002028398 | J156: =J155-J154 -> 0.02217963976 | K156: =K155-K154 -> 0.1157169419 | L156: =L155-L154 -> 0.03331473459 | M156: =M155-M154 -> 0.05350633869 | N156: =N155-N154 -> 0.05149151608
B157: Anders, namelijk... | C157: 2024 | E157: 3.521126761 | F157: 0.9389835679 | G157: 3.384615385 | H157: 1.041217852 | I157: 3.454545455 | J157: 0.9795103672 | K157: 2.985294118 | L157: 0.9382843514 | M157: 3.402777778 | N157: 1.158674841
B158: Anders, namelijk... | C158: 2026 | E158: 3.320754717 | F158: 1.033544776 | G158: 3.14 | H158: 1.160752747 | I158: 3.517857143 | J158: 1.008889064 | K158: 3.076923077 | L158: 1.006764451 | M158: 3.315789474 | N158: 1.212404558
B159: Anders, namelijk... | C159: Verschil | E159: =E158-E157 -> -0.2003720436 | F159: =F158-F157 -> 0.0945612081 | G159: =G158-G157 -> -0.2446153846 | H159: =H158-H157 -> 0.1195348946 | I159: =I158-I157 -> 0.06331168831 | J159: =J158-J157 -> 0.02937869651 | K159: =K158-K157 -> 0.09162895928 | L159: =L158-L157 -> 0.06848009998 | M159: =M158-M157 -> -0.08698830409 | N159: =N158-N157 -> 0.05372971718
B160: Totaal | C160: 2024 | D160: 7065 - 7634 | E160: 3.328496042 | F160: 1.02868509 | G160: 3.025044723 | H160: 1.067076149 | I160: 3.430858405 | J160: 1.011791083 | K160: 2.897239915 | L160: 1.031181206 | M160: 3.570212209 | N160: 1.134298263
B161: Totaal | C161: 2026 | D161: 5869 - 6331 | E161: 3.291800128 | F161: 1.042761843 | G161: 3.032430625 | H161: 1.091814819 | I161: 3.437106918 | J161: 1.031582118 | K161: 2.91804396 | L161: 1.03891388 | M161: 3.525193492 | N161: 1.18032392
B162: Totaal | C162: Verschil | E162: =E161-E160 -> -0.03669591409 | F162: =F161-F160 -> 0.01407675306 | G162: =G161-G160 -> 0.00738590249 | H162: =H161-H160 -> 0.02473866946 | I162: =I161-I160 -> 0.006248513602 | J162: =J161-J160 -> 0.0197910354 | K162: =K161-K160 -> 0.02080404471 | L162: =L161-L160 -> 0.007732673474 | M162: =M161-M160 -> -0.0450187162 | N162: =N161-N160 -> 0.04602565648
B163: * Cijfers boven gemiddelde van dat jaar vet gedrukt
B164: **Standaarddeviatie
B165: ***Antwoordcategorieën 1. Helemaal niet mee eens, 2. Niet mee eens, 3. Neutraal, 4. Mee eens, 5. Helemaal mee eens
B167: Uitgesplitst naar instellingscategorie
B177: Mate waarin respondenten het eens zijn met uitspraken rondom ontwikkeling*** | E177: In het bespreken van mijn werk is de kwaliteit van mijn werk belangrijker dan de kwantiteit. | G177: In mijn werk worden ook andere, innovatievere en creatieve, vormen van output erkend en gewaardeerd, naast bijvoorbeeld publicaties. | I177: De maatschappelijke relevantie van mijn werk wordt gewaardeerd. | K177: De focus ligt in mijn instelling op ontwikkeling (in plaats van beoordeling). | M177: Ik vertrouw er op dat mijn leidinggevende mijn talenten en ambities op waarde kan schatten.
B178: Instellingscategorie | C178: Jaar | D178: Aantal | E178: Gemiddelde* | F178: sd** | G178: Gemiddelde | H178: sd | I178: Gemiddelde | J178: sd | K178: Gemiddelde | L178: sd | M178: Gemiddelde | N178: sd
B179: Umc's | C179: 2024 | E179: 3.340854537 | F179: 0.986944868 | G179: 3.107001972 | H179: 1.030798679 | I179: 3.472181192 | J179: 0.9669866447 | K179: 2.892116183 | L179: 0.9828736254 | M179: 3.579376499 | N179: 1.108792549
B180: Umc's | C180: 2026 | E180: 3.329559748 | F180: 1.005119273 | G180: 3.155339806 | H180: 1.059352148 | I180: 3.538314176 | J180: 0.9839612026 | K180: 2.982597055 | L180: 0.9880557686 | M180: 3.591584158 | N180: 1.126776697
B181: Umc's | C181: Verschil | E181: =E180-E179 -> -0.0112947883 | F181: =F180-F179 -> 0.01817440484 | G181: =G180-G179 -> 0.04833783344 | H181: =H180-H179 -> 0.02855346911 | I181: =I180-I179 -> 0.06613298471 | J181: =J180-J179 -> 0.01697455785 | K181: =K180-K179 -> 0.09048087231 | L181: =L180-L179 -> 0.005182143189 | M181: =M180-M179 -> 0.01220765961 | N181: =N180-N179 -> 0.0179841479
B182: Brede universiteiten | C182: 2024 | E182: 3.278856526 | F182: 1.045454966 | G182: 2.962178944 | H182: 1.083072878 | I182: 3.375566893 | J182: 1.050115614 | K182: 2.830020167 | L182: 1.037858566 | M182: 3.528563801 | N182: 1.151703176
B183: Brede universiteiten | C183: 2026 | E183: 3.231742017 | F183: 1.051358734 | G183: 2.970375247 | H183: 1.102177593 | I183: 3.385494936 | J183: 1.054265531 | K183: 2.841561041 | L183: 1.05310154 | M183: 3.464485981 | N183: 1.204858168
B184: Brede universiteiten | C184: Verschil | E184: =E183-E182 -> -0.04711450936 | F184: =F183-F182 -> 0.00590376762 | G184: =G183-G182 -> 0.008196302476 | H184: =H183-H182 -> 0.01910471468 | I184: =I183-I182 -> 0.009928042871 | J184: =J183-J182 -> 0.004149916422 | K184: =K183-K182 -> 0.01154087359 | L184: =L183-L182 -> 0.01524297434 | M184: =M183-M182 -> -0.06407782008 | N184: =N183-N182 -> 0.05315499124
B185: NWO- en KNAW-instituten | C185: 2024 | E185: 3.696335079 | F185: 0.8777586125 | G185: 3.371584699 | H185: 0.9628604375 | I185: 3.647398844 | J185: 0.9568945942 | K185: 3.139664804 | L185: 1.031820633 | M185: 3.761904762 | N185: 1.092249568
B186: NWO- en KNAW-instituten | C186: 2026 | E186: 3.542253521 | F186: 1.002634265 | G186: 3.275362319 | H186: 1.080525905 | I186: 3.594890511 | J186: 0.9684261745 | K186: 3.245283019 | L186: 0.9982116657 | M186: 3.752650177 | N186: 1.105571821
B187: NWO- en KNAW-instituten | C187: Verschil | E187: =E186-E185 -> -0.1540815574 | F187: =F186-F185 -> 0.1248756523 | G187: =G186-G185 -> -0.09622238061 | H187: =H186-H185 -> 0.1176654677 | I187: =I186-I185 -> -0.05250833298 | J187: =J186-J185 -> 0.01153158025 | K187: =K186-K185 -> 0.1056182144 | L187: =L186-L185 -> -0.03360896779 | M187: =M186-M185 -> -0.009254585226 | N187: =N186-N185 -> 0.01332225292
B188: Levensbeschouwelijke universiteiten | C188: 2024 | E188: 3.484848485 | F188: 0.8813001627 | G188: 3.403225806 | H188: 1.1082356 | I188: 3.884057971 | J188: 1.022342061 | K188: 3.276923077 | L188: 1.02328656 | M188: 3.710144928 | N188: 1.086026883
B189: Levensbeschouwelijke universiteiten | C189: 2026 | E189: 3.65 | F189: 0.6621642836 | G189: 3.325 | H189: 0.9442810316 | I189: 3.928571429 | J189: 0.6005224206 | K189: 3.342105263 | L189: 0.9663616857 | M189: 3.954545455 | N189: 0.6453607412
B190: Levensbeschouwelijke universiteiten | C190: Verschil | E190: =E189-E188 -> 0.1651515152 | F190: =F189-F188 -> -0.2191358791 | G190: =G189-G188 -> -0.07822580645 | H190: =H189-H188 -> -0.1639545683 | I190: =I189-I188 -> 0.04451345756 | J190: =J189-J188 -> -0.4218196409 | K190: =K189-K188 -> 0.06518218623 | L190: =L189-L188 -> -0.05692487469 | M190: =M189-M188 -> 0.244400527 | N190: =N189-N188 -> -0.4406661418
B191: Technische universiteiten | C191: 2024 | E191: 3.380355966 | F191: 1.050045422 | G191: 3.009059233 | H191: 1.072959849 | I191: 3.467505241 | J191: 0.9717114142 | K191: 3.016323634 | L191: 1.060199567 | M191: 3.620509471 | N191: 1.130248397
B192: Technische universiteiten | C192: 2026 | E192: 3.330380868 | F192: 1.082487915 | G192: 2.968481375 | H192: 1.089652305 | I192: 3.378531073 | J192: 1.047338761 | K192: 2.933717579 | L192: 1.064472835 | M192: 3.518485915 | N192: 1.209948408
B193: Technische universiteiten | C193: Verschil | E193: =E192-E191 -> -0.0499750977 | F193: =F192-F191 -> 0.03244249288 | G193: =G192-G191 -> -0.04057785809 | H193: =H192-H191 -> 0.0166924561 | I193: =I192-I191 -> -0.08897416764 | J193: =J192-J191 -> 0.07562734718 | K193: =K192-K191 -> -0.08260605453 | L193: =L192-L191 -> 0.004273267656 | M193: =M192-M191 -> -0.1020235554 | N193: =N192-N191 -> 0.07970001087
B194: Totaal | C194: 2024 | D194: 7052 - 7620 | E194: 3.328618638 | F194: 1.027713165 | G194: 3.02606537 | H194: 1.067518789 | I194: 3.432245575 | J194: 1.011946367 | K194: 2.89619966 | L194: 1.03093673 | M194: 3.568372703 | N194: 1.134559996
B195: Totaal | C195: 2026 | D195: 5836 - 6289 | E195: 3.291653239 | F195: 1.04392704 | G195: 3.03464514 | H195: 1.091203693 | I195: 3.437468776 | J195: 1.032110178 | K195: 2.915695682 | L195: 1.040443702 | M195: 3.523294641 | N195: 1.181308342
B196: Totaal | C196: Verschil | E196: =E195-E194 -> -0.03696539967 | F196: =F195-F194 -> 0.01621387448 | G196: =G195-G194 -> 0.008579769296 | H196: =H195-H194 -> 0.02368490448 | I196: =I195-I194 -> 0.005223200799 | J196: =J195-J194 -> 0.02016381153 | K196: =K195-K194 -> 0.0194960223 | L196: =L195-L194 -> 0.009506972054 | M196: =M195-M194 -> -0.04507806197 | N196: =N195-N194 -> 0.04674834578
B197: * Cijfers boven gemiddelde van dat jaar vet gedrukt
B198: **Standaarddeviatie
B199: ***Antwoordcategorieën 1. Helemaal niet mee eens, 2. Niet mee eens, 3. Neutraal, 4. Mee eens, 5. Helemaal mee eens
B201: Uitgesplitst naar leidinggevenderol
B211: Mate waarin respondenten het eens zijn met uitspraken rondom ontwikkeling*** | E211: In het bespreken van mijn werk is de kwaliteit van mijn werk belangrijker dan de kwantiteit. | G211: In mijn werk worden ook andere, innovatievere en creatieve, vormen van output erkend en gewaardeerd, naast bijvoorbeeld publicaties. | I211: De maatschappelijke relevantie van mijn werk wordt gewaardeerd. | K211: De focus ligt in mijn instelling op ontwikkeling (in plaats van beoordeling). | M211: Ik vertrouw er op dat mijn leidinggevende mijn talenten en ambities op waarde kan schatten.
B212: Leidinggevende rol | C212: Jaar | D212: Aantal | E212: Gemiddelde* | F212: sd** | G212: Gemiddelde | H212: sd | I212: Gemiddelde | J212: sd | K212: Gemiddelde | L212: sd | M212: Gemiddelde | N212: sd
B213: Ja | C213: 2024 | E213: 3.312433298 | F213: 1.020884221 | G213: 3.069748359 | H213: 1.033132933 | I213: 3.47978959 | J213: 0.9900536422 | K213: 2.873153053 | L213: 0.9982255085 | M213: 3.592868547 | N213: 1.116466258
B214: Ja | C214: 2026 | E214: 3.261000603 | F214: 1.020142849 | G214: 3.053411547 | H214: 1.075552317 | I214: 3.462395543 | J214: 1.022226832 | K214: 2.877403089 | L214: 1.008368171 | M214: 3.517417417 | N214: 1.18459748
B215: Ja | C215: Verschil | E215: =E214-E213 -> -0.05143269499 | F215: =F214-F213 -> -0.0007413724049 | G215: =G214-G213 -> -0.01633681209 | H215: =H214-H213 -> 0.04241938375 | I215: =I214-I213 -> -0.01739404708 | J215: =J214-J213 -> 0.03217318987 | K215: =K214-K213 -> 0.004250035869 | L215: =L214-L213 -> 0.01014266265 | M215: =M214-M213 -> -0.07545112968 | N215: =N214-N213 -> 0.06813122146
B216: Nee | C216: 2024 | E216: 3.342320261 | F216: 1.037659635 | G216: 2.980352499 | H216: 1.103942484 | I216: 3.382116159 | J216: 1.032568249 | K216: 2.929235382 | L216: 1.062997588 | M216: 3.546580506 | N216: 1.154674287
B217: Nee | C217: 2026 | E217: 3.322364003 | F217: 1.066881749 | G217: 3.005017921 | H217: 1.108642949 | I217: 3.402379286 | J217: 1.041199569 | K217: 2.956965718 | L217: 1.076247137 | M217: 3.526384792 | N217: 1.180806341
B218: Nee | C218: Verschil | E218: =E217-E216 -> -0.01995625875 | F218: =F217-F216 -> 0.02922211395 | G218: =G217-G216 -> 0.02466542187 | H218: =H217-H216 -> 0.004700465138 | I218: =I217-I216 -> 0.0202631275 | J218: =J217-J216 -> 0.008631319902 | K218: =K217-K216 -> 0.02773033614 | L218: =L217-L216 -> 0.0132495491 | M218: =M217-M216 -> -0.02019571432 | N218: =N217-N216 -> 0.02613205338
B219: Totaal | C219: 2024 | D219: 6922 - 7472 | E219: 3.32722372 | F219: 1.029259291 | G219: 3.026275116 | H219: 1.069013098 | I219: 3.431875882 | J219: 1.012239671 | K219: 2.90017336 | L219: 1.030247626 | M219: 3.569860814 | N219: 1.13577829
B220: Totaal | C220: 2026 | D220: 5915 - 6381 | E220: 3.290025413 | F220: 1.042878463 | G220: 3.031016752 | H220: 1.091166184 | I220: 3.434225653 | J220: 1.031525682 | K220: 2.914285714 | L220: 1.041053067 | M220: 3.521705062 | N220: 1.182702119
B221: Totaal | C221: Verschil | E221: =E220-E219 -> -0.03719830672 | F221: =F220-F219 -> 0.0136191718 | G221: =G220-G219 -> 0.004741636444 | H221: =H220-H219 -> 0.0221530857 | I221: =I220-I219 -> 0.002349771293 | J221: =J220-J219 -> 0.01928601114 | K221: =K220-K219 -> 0.01411235399 | L221: =L220-L219 -> 0.01080544066 | M221: =M220-M219 -> -0.0481557518 | N221: =N220-N219 -> 0.04692382888
B222: * Cijfers boven gemiddelde van dat jaar vet gedrukt
B223: **Standaarddeviatie
B224: ***Antwoordcategorieën 1. Helemaal niet mee eens, 2. Niet mee eens, 3. Neutraal, 4. Mee eens, 5. Helemaal mee eens

Sheet H3.3_1
B5: H 3.3.1 Aspecten die belangrijk zijn voor een loopbaanstap
B7: Uitkomsten op het gebied van aspecten die belangrijk zijn voor een loopbaanstap
B14: Belangrijkheid van het aspect: | E14: Onderwijs | F14: Onderzoek | G14: Leiderschap | H14: Impact | I14: Patiëntenzorg | J14: Team spirit | K14: Open science | L14: Open education | M14: Anders
B15: Situatie | C15: Jaar | D15: Aantal | E15: Gemiddelde*** | F15: Gemiddelde | G15: Gemiddelde | H15: Gemiddelde | I15: Gemiddelde | J15: Gemiddelde | K15: Gemiddelde | L15: Gemiddelde | M15: Gemiddeld
B16: Huidig* | C16: 2024 | E16: 3.518379896 | F16: 4.572819366 | G16: 3.69213057 | H16: 3.69840838 | I16: 2.764384442 | J16: 3.010048176 | K16: 2.943294461 | L16: 2.533378061 | M16: 4.366666667
B17: Huidig* | C17: 2026 | E17: 3.528772897 | F17: 4.53973827 | G17: 3.727885564 | H17: 3.672661277 | I17: 2.784100081 | J17: 2.996306866 | K17: 2.930918132 | L17: 2.468284724 | M17: 4.357142857
B18: Huidig* | C18: Verschil | E18: =E17-E16 -> 0.01039300101 | F18: -0.03308109584 | G18: 0.03575499373 | H18: -0.0257471028 | I18: 0.01971563841 | J18: =J17-J16 -> -0.01374131032 | K18: =K17-K16 -> -0.01237632887 | L18: =L17-L16 -> -0.06509333741 | M18: =M17-M16 -> -0.009523809524
B19: Gewenst** | C19: 2024 | E19: 4.149346362 | F19: 4.398185881 | G19: 3.966790156 | H19: 3.920772304 | I19: 3.272839506 | J19: 4.070581968 | K19: 3.663272423 | L19: 3.40655892 | M19: 3.830645161
B20: Gewenst** | C20: 2026 | E20: 4.176872912 | F20: 4.41568752 | G20: 4.027746771 | H20: 3.954479885 | I20: 3.261849262 | J20: 4.057769889 | K20: 3.641916976 | L20: 3.395304809 | M20: 3.80952381
B21: Gewenst** | C21: Verschil | E21: =E20-E19 -> 0.02752655028 | F21: =F20-F19 -> 0.01750163842 | G21: =G20-G19 -> 0.06095661472 | H21: =H20-H19 -> 0.033707581 | I21: =I20-I19 -> -0.01099024432 | J21: =J20-J19 -> -0.01281207965 | K21: =K20-K19 -> -0.02135544689 | L21: =L20-L19 -> -0.01125411166 | M21: =M20-M19 -> -0.02112135177
B23: * Hoe belangrijk zijnactiviteiten op dit domein om een loopbaanstap te kunnen maken?
B24: **Hoe belangrijk zou je willen dat deze activiteiten zijn om een loopbaanstap te kunnen maken?
B25: ***1. Helemaal niet mee eens - 5. Helemaal mee eens
B27: Uitgesplitst per aspect
B29: Onderwijs
B34: Belangrijkheid onderwijs
B35: Situatie | C35: Jaar | D35: Aantal | E35: Helemaal niet belangrijk | F35: Niet belangrijk | G35: Neutraal | H35: Belangrijk | I35: Heel belangrijk
B36: Huidig | C36: 2024 | D36: 7481 | E36: 0.04518112552 | F36: 0.1396872076 | G36: 0.2299157867 | H36: 0.4220024061 | I36: 0.1632134741
B37: Huidig | C37: 2026 | D37: 6169 | E37: 0.05268276868 | F37: 0.1324363754 | G37: 0.2232128384 | H37: 0.4167612255 | I37: 0.174906792
B38: Huidig | C38: Verschil | D38: =D37-D36 -> -1312 | E38: =E37-E36 -> 0.007501643164 | F38: =F37-F36 -> -0.007250832167 | G38: =G37-G36 -> -0.006702948274 | H38: =H37-H36 -> -0.005241180613 | I38: =I37-I36 -> 0.01169331789
B39: Gewenst | C39: 2024 | D39: 7573 | E39: 0.005017826489 | F39: 0.02350455566 | G39: 0.1023372508 | H39: 0.5553941635 | I39: 0.3137462036
B40: Gewenst | C40: 2026 | D40: 6287 | E40: 0.005248926356 | F40: 0.01876888818 | G40: 0.101956418 | H40: 0.5419118817 | I40: 0.3321138858
B41: Gewenst | C41: Verschil | D41: =D40-D39 -> -1286 | E41: =E40-E39 -> 0.0002310998671 | F41: =F40-F39 -> -0.004735667476 | G41: =G40-G39 -> -0.0003808327539 | H41: =H40-H39 -> -0.01348228181 | I41: =I40-I39 -> 0.01836768218
B44: Onderzoek
B49: Belangrijkheid onderzoek
B50: Situatie | C50: Jaar | D50: Aantal | E50: Helemaal niet belangrijk | F50: Niet belangrijk | G50: Neutraal | H50: Belangrijk | I50: Heel belangrijk
B51: Huidig | C51: 2024 | D51: 7601 | E51: 0.0093408762 | F51: 0.01697145112 | G51: 0.03946849099 | H51: 0.259965794 | I51: 0.6742533877
B52: Huidig | C52: 2026 | D52: 6266 | E52: 0.01404404724 | F52: 0.01931056495 | G52: 0.04181295883 | H52: 0.2625279285 | I52: 0.6623045005
B53: Huidig | C53: Verschil | D53: =D52-D51 -> -1335 | E53: =E52-E51 -> 0.004703171039 | F53: =F52-F51 -> 0.002339113829 | G53: =G52-G51 -> 0.002344467837 | H53: =H52-H51 -> 0.002562134529 | I53: =I52-I51 -> -0.01194888723
B54: Gewenst | C54: 2024 | D54: 7607 | E54: 0.001840410149 | F54: 0.006967266991 | G54: 0.03746549231 | H54: 0.4986196924 | I54: 0.4551071382
B55: Gewenst | C55: 2026 | D55: 6298 | E55: 0.002064147348 | F55: 0.004763416958 | G55: 0.03604318831 | H55: 0.4896792633 | I55: 0.4674499841
B56: Gewenst | C56: Verschil | D56: =D55-D54 -> -1309 | E56: =E55-E54 -> 0.0002237371998 | F56: =F55-F54 -> -0.002203850033 | G56: =G55-G54 -> -0.001422303996 | H56: =H55-H54 -> -0.00894042913 | I56: =I55-I54 -> 0.01234284596
B59: Leiderschap
B64: Belangrijkheid leiderschap
B65: Situatie | C65: Jaar | D65: Aantal | E65: Helemaal niet belangrijk | F65: Niet belangrijk | G65: Neutraal | H65: Belangrijk | I65: Heel belangrijk
B66: Huidig | C66: 2024 | D66: 7383 | E66: 0.02532845727 | F66: 0.09007178654 | G66: 0.2408235135 | H66: 0.4546932141 | I66: 0.1890830286
B67: Huidig | C67: 2026 | D67: 6082 | E67: 0.03206182177 | F67: 0.0838539954 | G67: 0.2224597172 | H67: 0.4473857284 | I67: 0.2142387373
B68: Huidig | C68: Verschil | D68: =D67-D66 -> -1301 | E68: =E67-E66 -> 0.006733364502 | F68: =F67-F66 -> -0.00621779114 | G68: =G67-G66 -> -0.01836379628 | H68: =H67-H66 -> -0.007307485762 | I68: =I67-I66 -> 0.02515570868
B69: Gewenst | C69: 2024 | D69: 7558 | E69: 0.008864779042 | F69: 0.0351944959 | G69: 0.182323366 | H69: 0.5275205081 | I69: 0.246096851
B70: Gewenst | C70: 2026 | D70: 6271 | E70: 0.008929995216 | F70: 0.02966034125 | G70: 0.1596236645 | H70: 0.5283048956 | I70: 0.2734811035
B71: Gewenst | C71: Verschil | D71: =D70-D69 -> -1287 | E71: =E70-E69 -> 6.5216174e-05 | F71: =F70-F69 -> -0.005534154645 | G71: =G70-G69 -> -0.02269970148 | H71: =H70-H69 -> 0.00078438748 | I71: =I70-I69 -> 0.02738425247
B74: Impact
B79: Belangrijkheid impact
B80: Situatie | C80: Jaar | D80: Aantal | E80: Helemaal niet belangrijk | F80: Niet belangrijk | G80: Neutraal | H80: Belangrijk | I80: Heel belangrijk
B81: Huidig | C81: 2024 | D81: 7351 | E81: 0.02611889539 | F81: 0.08420623044 | G81: 0.2498979731 | H81: 0.4447014012 | I81: 0.1950754999
B82: Huidig | C82: 2026 | D82: 6061 | E82: 0.03134796238 | F82: 0.08661936974 | G82: 0.2542484738 | H82: 0.4335918165 | I82: 0.1941923775
B83: Huidig | C83: Verschil | D83: =D82-D81 -> -1290 | E83: =E82-E81 -> 0.005229066994 | F83: =F82-F81 -> 0.002413139296 | G83: =G82-G81 -> 0.004350500784 | H83: =H82-H81 -> -0.01110958464 | I83: =I82-I81 -> -0.0008831224365
B84: Gewenst | C84: 2024 | D84: 7510 | E84: 0.01011984021 | F84: 0.03688415446 | G84: 0.2017310253 | H84: 0.5246338216 | I84: 0.2266311585
B85: Gewenst | C85: 2026 | D85: 6239 | E85: 0.009296361596 | F85: 0.03750601058 | G85: 0.1934604905 | H85: 0.5088956564 | I85: 0.250841481
B86: Gewenst | C86: Verschil | D86: =D85-D84 -> -1271 | E86: =E85-E84 -> -0.0008234786166 | F86: =F85-F84 -> 0.0006218561179 | G86: =G85-G84 -> -0.008270534836 | H86: =H85-H84 -> -0.01573816522 | I86: =I85-I84 -> 0.02421032255
B89: Patiëntenzorg
B94: Belangrijkheid patiëntenzorg
B95: Situatie | C95: Jaar | D95: Aantal | E95: Helemaal niet belangrijk | F95: Niet belangrijk | G95: Neutraal | H95: Belangrijk | I95: Heel belangrijk
B96: Huidig | C96: 2024 | D96: 3111 | E96: 0.261 | F96: 0.182 | G96: 0.22 | H96: 0.206 | I96: 0.131
B97: Huidig | C97: 2026 | D97: 2478 | E97: 0.2667473769 | F97: 0.1739305892 | G97: 0.2078288943 | H97: 0.2114608555 | I97: 0.1400322841
B98: Huidig | C98: Verschil | D98: =D97-D96 -> -633 | E98: =E97-E96 -> 0.005747376917 | F98: =F97-F96 -> -0.008069410815 | G98: =G97-G96 -> -0.01217110573 | H98: =H97-H96 -> 0.005460855529 | I98: =I97-I96 -> 0.0090322841
B99: Gewenst | C99: 2024 | D99: 3240 | E99: 0.1824074074 | F99: 0.07716049383 | G99: 0.212962963 | H99: 0.3401234568 | I99: 0.187345679
B100: Gewenst | C100: 2026 | D100: 2574 | E100: 0.1814296814 | F100: 0.0843045843 | G100: 0.2167832168 | H100: 0.325951826 | I100: 0.1915306915
B101: Gewenst | C101: Verschil | D101: =D100-D99 -> -666 | E101: =E100-E99 -> -0.0009777259777 | F101: =F100-F99 -> 0.007144090477 | G101: =G100-G99 -> 0.00382025382 | H101: =H100-H99 -> -0.01417163084 | I101: =I100-I99 -> 0.004185012518
B104: Team spirit
B109: Belangrijkheid team spirit
B110: Situatie | C110: Jaar | D110: Aantal | E110: Helemaal niet belangrijk | F110: Niet belangrijk | G110: Neutraal | H110: Belangrijk | I110: Heel belangrijk
B111: Huidig | C111: 2024 | D111: 7265 | E111: 0.09896765313 | F111: 0.2286304198 | G111: 0.3095664143 | H111: 0.2890571232 | I111: 0.07377838954
B112: Huidig | C112: 2026 | D112: 5957 | E112: 0.10693302 | F112: 0.2195736109 | G112: 0.3152593587 | H112: 0.2867215041 | I112: 0.0715125063
B113: Huidig | C113: Verschil | D113: =D112-D111 -> -1308 | E113: =E112-E111 -> 0.007965366845 | F113: =F112-F111 -> -0.009056808943 | G113: =G112-G111 -> 0.005692944422 | H113: =H112-H111 -> -0.002335619081 | I113: =I112-I111 -> -0.002265883244
B114: Gewenst | C114: 2024 | D114: 7509 | E114: 0.008656279132 | F114: 0.02197363164 | G114: 0.14582501 | H114: 0.5372220003 | I114: 0.286323079
B115: Gewenst | C115: 2026 | D115: 6197 | E115: 0.009359367436 | F115: 0.02194610295 | G115: 0.1571728256 | H115: 0.5246086816 | I115: 0.2869130224
B116: Gewenst | C116: Verschil | D116: =D115-D114 -> -1312 | E116: =E115-E114 -> 0.0007030883041 | F116: =F115-F114 -> -2.752868899e-05 | G116: =G115-G114 -> 0.01134781557 | H116: =H115-H114 -> -0.01261331865 | I116: =I115-I114 -> 0.0005899434583
B119: Open science
B124: Belangrijkheid open science
B125: Situatie | C125: Jaar | D125: Aantal | E125: Helemaal niet belangrijk | F125: Niet belangrijk | G125: Neutraal | H125: Belangrijk | I125: Heel belangrijk
B126: Huidig | C126: 2024 | D126: 6860 | E126: 0.093 | F126: 0.238 | G126: 0.364 | H126: 0.244 | I126: 0.062
B127: Huidig | C127: 2026 | D127: 5631 | E127: 0.1024684781 | F127: 0.2329959155 | G127: 0.3590836441 | H127: 0.2420529213 | I127: 0.06339904102
B128: Huidig | C128: Verschil | D128: =D127-D126 -> -1229 | E128: =E127-E126 -> 0.009468478068 | F128: =F127-F126 -> -0.005004084532 | G128: =G127-G126 -> -0.004916355887 | H128: =H127-H126 -> -0.001947078672 | I128: =I127-I126 -> 0.001399041023
B129: Gewenst | C129: 2024 | D129: 7169 | E129: 0.02887431999 | F129: 0.06709443437 | G129: 0.2913934998 | H129: 0.4371599944 | I129: 0.1754777514
B130: Gewenst | C130: 2026 | D130: 5926 | E130: 0.02986837665 | F130: 0.06648666892 | G130: 0.2988525143 | H130: 0.4414444819 | I130: 0.1633479582
B131: Gewenst | C131: Verschil | D131: =D130-D129 -> -1243 | E131: =E130-E129 -> 0.0009940566565 | F131: =F130-F129 -> -0.0006077654536 | G131: =G130-G129 -> 0.007459014553 | H131: =H130-H129 -> 0.004284487524 | I131: =I130-I129 -> -0.01212979328
B134: Open education
B139: Belangrijkheid open education
B140: Situatie | C140: Jaar | D140: Aantal | E140: Helemaal niet belangrijk | F140: Niet belangrijk | G140: Neutraal | H140: Belangrijk | I140: Heel belangrijk
B141: Huidig | C141: 2024 | D141: 5962 | E141: 0.1826568266 | F141: 0.3042603153 | G141: 0.3433411607 | H141: 0.1365313653 | I141: 0.0332103321
B142: Huidig | C142: 2026 | D142: 4903 | E142: 0.2066081991 | F142: 0.3026718336 | G142: 0.3367326127 | H142: 0.123801754 | I142: 0.03018560065
B143: Huidig | C143: Verschil | D143: =D142-D141 -> -1059 | E143: =E142-E141 -> 0.02395137249 | F143: =F142-F141 -> -0.001588481759 | G143: =G142-G141 -> -0.006608547998 | H143: =H142-H141 -> -0.01272961129 | I143: =I142-I141 -> -0.003024731451
B144: Gewenst | C144: 2024 | D144: 6373 | E144: 0.04801506355 | F144: 0.09571630315 | G144: 0.3792562373 | H144: 0.3557194414 | I144: 0.1212929547
B145: Gewenst | C145: 2026 | D145: 5282 | E145: 0.04600530102 | F145: 0.09522907989 | G145: 0.3892464975 | H145: 0.3564937524 | I145: 0.1130253692
B146: Gewenst | C146: Verschil | D146: =D145-D144 -> -1091 | E146: =E145-E144 -> -0.002009762527 | F146: =F145-F144 -> -0.00048722326 | G146: =G145-G144 -> 0.009990260288 | H146: =H145-H144 -> 0.0007743109731 | I146: =I145-I144 -> -0.008267585474
B149: Uitgesplitst naar leidinggevende rol per domein
B157: Belangrijkheid van het aspect: | E157: Onderwijs | G157: Onderzoek | I157: Leiderschap | K157: Impact | M157: Patiëntenzorg | O157: Team spirit | Q157: Open science | S157: Open education
B158: Leidinggevende rol | C158: Jaar | D158: Aantal | E158: Huidig* | F158: Gewenst** | G158: Huidig | H158: Gewenst | I158: Huidig | J158: Gewenst | K158: Huidig | L158: Gewenst | M158: Huidig | N158: Gewenst | O158: Huidig | P158: Gewenst | Q158: Huidig | R158: Gewenst | S158: Huidig | T158: Gewenst
B159: Ja | C159: 2024 | E159: 3.56207736 | F159: 4.140803039 | G159: 4.594862189 | H159: 4.436422414 | I159: 3.89832794 | J159: 4.111950364 | K159: 3.744553377 | L159: 3.923516603 | M159: 2.821088435 | N159: 3.278364116 | O159: 3.039623164 | P159: 4.085199345 | Q159: 2.893215001 | R159: 3.574146614 | S159: 2.47502417 | T159: 3.286338116
B160: Ja | C160: 2026 | E160: 3.595259799 | F160: 4.1699485 | G160: 4.550934298 | H160: 4.450090744 | I160: 3.908129344 | J160: 4.170347958 | K160: 3.725855746 | L160: 3.953091684 | M160: 2.785992218 | N160: 3.219512195 | O160: 2.995649472 | P160: 4.076828895 | Q160: 2.870280736 | R160: 3.549842271 | S160: 2.422366992 | T160: 3.273584906
B161: Ja | C161: Verschil | E161: =E160-E159 -> 0.03318243943 | F161: =F160-F159 -> 0.02914546193 | G161: =G160-G159 -> -0.04392789115 | H161: =H160-H159 -> 0.01366833031 | I161: =I160-I159 -> 0.009801404623 | J161: =J160-J159 -> 0.05839759346 | K161: =K160-K159 -> -0.01869763119 | L161: =L160-L159 -> 0.02957508128 | M161: =M160-M159 -> -0.03509621748 | N161: =N160-N159 -> -0.05885192097 | O161: =O160-O159 -> -0.04397369259 | P161: =P160-P159 -> -0.00837044961 | Q161: =Q160-Q159 -> -0.02293426571 | R161: =R160-R159 -> -0.02430434314 | S161: =S160-S159 -> -0.05265717776 | T161: =T160-T159 -> -0.01275321037
B162: Nee | C162: 2024 | E162: 3.46922216 | F162: 4.15613079 | G162: 4.557655437 | H162: 4.362969005 | I162: 3.468587896 | J162: 3.819455894 | K162: 3.643453237 | L162: 3.918367347 | M162: 2.725176169 | N162: 3.276969697 | O162: 2.975708502 | P162: 4.055005501 | Q162: 2.995910664 | R162: 3.758691809 | S162: 2.600742115 | T162: 3.535941157
B163: Nee | C163: 2026 | E163: 3.451916376 | F163: 4.185023506 | G163: 4.527891156 | H163: 4.378351206 | I163: 3.514647378 | J163: 3.869506423 | K163: 3.610352265 | L163: 3.957598372 | M163: 2.781696054 | N163: 3.307142857 | O163: 2.997437775 | P163: 4.037290455 | Q163: 3.004752475 | R163: 3.747180793 | S163: 2.528363807 | T163: 3.539162868
B164: Nee | C164: Verschil | E164: =E163-E162 -> -0.01730578374 | F164: =F163-F162 -> 0.02889271552 | G164: =G163-G162 -> -0.0297642804 | H164: =H163-H162 -> 0.01538220154 | I164: =I163-I162 -> 0.04605948168 | J164: =J163-J162 -> 0.05005052878 | K164: =K163-K162 -> -0.03310097285 | L164: =L163-L162 -> 0.03923102484 | M164: =M163-M162 -> 0.05651988461 | N164: =N163-N162 -> 0.03017316017 | O164: =O163-O162 -> 0.0217292725 | P164: =P163-P162 -> -0.01771504554 | Q164: =Q163-Q162 -> 0.008841811517 | R164: =R163-R162 -> -0.01151101606 | S164: =S163-S162 -> -0.07237830818 | T164: =T163-T162 -> 0.003221710996
B165: Totaal | C165: 2024 | D165: 3166 - 7390 | E165: 3.516435153 | F165: 4.148450245 | G165: 4.576475365 | H165: 4.399864682 | I165: 3.690582335 | J165: 3.967056902 | K165: 3.69539667 | L165: 3.920958904 | M165: 2.771692511 | N165: 3.277637397 | O165: 3.008348663 | P165: 4.070156207 | Q165: 2.942146283 | R165: 3.664035591 | S165: 2.533459814 | T165: 3.406809747
B166: Totaal | C166: 2026 | D166: 2476 - 6290 | E166: 3.528485635 | F166: 4.177098264 | G166: 4.540108661 | H166: 4.416057234 | I166: 3.72900889 | J166: 4.028261217 | K166: 3.672778328 | L166: 3.955223881 | M166: 2.783925687 | N166: 3.26244168 | O166: 2.996470588 | P166: 4.05815832 | Q166: 2.930654339 | R166: 3.641493496 | S166: 2.468545752 | T166: 3.39507109
B167: Totaal | C167: Verschil | E167: =E166-E165 -> 0.0120504821 | F167: =F166-F165 -> 0.02864801936 | G167: =G166-G165 -> -0.03636670454 | H167: =H166-H165 -> 0.0161925517 | I167: =I166-I165 -> 0.03842655544 | J167: =J166-J165 -> 0.06120431495 | K167: =K166-K165 -> -0.02261834155 | L167: =L166-L165 -> 0.03426497649 | M167: =M166-M165 -> 0.01223317587 | N167: =N166-N165 -> -0.01519571772 | O167: =O166-O165 -> -0.01187807456 | P167: =P166-P165 -> -0.01199788731 | Q167: =Q166-Q165 -> -0.01149194442 | R167: =R166-R165 -> -0.02254209575 | S167: =S166-S165 -> -0.06491406209 | T167: =T166-T165 -> -0.0117386566
B168: * Hoe belangrijk zijnactiviteiten op dit domein om een loopbaanstap te kunnen maken? Antwoordcategorieën: 1. Helemaal niet mee eens - 5. Helemaal mee eens
B169: **Hoe belangrijk zou je willen dat deze activiteiten zijn om een loopbaanstap te kunnen maken? Antwoordcategorieën: 1. Helemaal niet mee eens - 5. Helemaal mee eens
B172: Uitgesplitst naar functiegroep per domein
B183: Belangrijkheid van het aspect: | E183: Onderwijs | G183: Onderzoek | I183: Leiderschap | K183: Impact | M183: Patiëntenzorg | O183: Team spirit | Q183: Open science | S183: Open education
B184: Functiegroep | C184: Jaar | D184: Aantal | E184: Huidig* | F184: Gewenst** | G184: Huidig | H184: Gewenst | I184: Huidig | J184: Gewenst | K184: Huidig | L184: Gewenst | M184: Huidig | N184: Gewenst | O184: Huidig | P184: Gewenst | Q184: Huidig | R184: Gewenst | S184: Huidig | T184: Gewenst
B185: Hoogleraar | C185: 2024 | E185: 3.665486726 | F185: 4.20609319 | G185: 4.573684211 | H185: 4.497330961 | I185: 3.998244074 | J185: 4.170535714 | K185: 3.711879433 | L185: 3.910971223 | M185: 2.608695652 | N185: 2.958333333 | O185: 3.219227314 | P185: 4.108715184 | Q185: 2.947031963 | R185: 3.377981651 | S185: 2.457112971 | T185: 3.077559462
B186: Hoogleraar | C186: 2026 | E186: 3.758333333 | F186: 4.258872651 | G186: 4.506707946 | H186: 4.5192108 | I186: 3.972164948 | J186: 4.210799585 | K186: 3.708203531 | L186: 3.952133195 | M186: 2.608843537 | N186: 2.871473354 | O186: 3.21845175 | P186: 4.080168776 | Q186: 2.935064935 | R186: 3.398047722 | S186: 2.494423792 | T186: 3.11750306
B187: Hoogleraar | C187: Verschil | E187: =E186-E185 -> 0.09284660767 | F187: 0.05277946139 | G187: -0.06697626419 | H187: 0.02187983873 | I187: -0.0260791253 | J187: 0.04026387035 | K187: -0.003675901991 | L187: 0.04116197157 | M187: 0.0001478852411 | N187: -0.0868599791 | O187: -0.000775563832 | P187: -0.02854640782 | Q187: -0.01196702841 | R187: 0.02006607097 | S187: 0.03731082111 | T187: 0.03994359772
B188: Hoogleraar-Medisch specialist | C188: 2024 | E188: 3.447552448 | F188: 3.827338129 | G188: 4.455172414 | H188: 4.274647887 | I188: 3.861111111 | J188: 4.113475177 | K188: 3.943262411 | L188: 4.157142857 | M188: 3.566433566 | N188: 4.092857143 | O188: 3.411347518 | P188: 4.108695652 | Q188: 3.094890511 | R188: 3.467153285 | S188: 2.803278689 | T188: 3.292682927
B189: Hoogleraar-Medisch specialist | C189: 2026 | E189: 3.428571429 | F189: 3.844036697 | G189: 4.458715596 | H189: 4.339449541 | I189: 3.935779817 | J189: 4.345454545 | K189: 3.916666667 | L189: 4.263636364 | M189: 3.851851852 | N189: 4.309090909 | O189: 3.52293578 | P189: 4.281818182 | Q189: 3.091743119 | R189: 3.425925926 | S189: 2.823529412 | T189: 3.240384615
B190: Hoogleraar-Medisch specialist | C190: Verschil | E190: =E189-E188 -> -0.01898101898 | F190: 0.01669856775 | G190: 0.003543182537 | H190: 0.06480165396 | I190: 0.0746687054 | J190: 0.2319793681 | K190: -0.02659574468 | L190: 0.1064935065 | M190: 0.2854182854 | N190: 0.2162337662 | O190: 0.1115882621 | P190: 0.1731225296 | Q190: -0.003147391683 | R190: -0.04122735875 | S190: 0.02025072324 | T190: -0.05229831144
B191: Universitair hoofddocent (UHD) | C191: 2024 | E191: 3.505818464 | F191: 4.19379845 | G191: 4.580370943 | H191: 4.405112316 | I191: 3.848909657 | J191: 4.069045772 | K191: 3.639498433 | L191: 3.880877743 | M191: 2.583743842 | N191: 3.056206089 | O191: 2.8808 | P191: 4.018067557 | Q191: 2.750623441 | R191: 3.451327434 | S191: 2.376635514 | T191: 3.166519043
B192: Universitair hoofddocent (UHD) | C192: 2026 | E192: 3.528880866 | F192: 4.216216216 | G192: 4.562443845 | H192: 4.438628159 | I192: 3.899819495 | J192: 4.092876465 | K192: 3.639194139 | L192: 3.902173913 | M192: 2.680965147 | N192: 3.164921466 | O192: 2.861163227 | P192: 4.002770083 | Q192: 2.733203505 | R192: 3.488764045 | S192: 2.282078473 | T192: 3.201225741
B193: Universitair hoofddocent (UHD) | C193: Verschil | E193: =E192-E191 -> 0.0230624025 | F193: 0.0224177666 | G193: -0.01792709735 | H193: 0.03351584281 | I193: 0.05090983726 | J193: 0.02383069337 | K193: -0.0003042934077 | L193: 0.0212961701 | M193: 0.09722130509 | N193: 0.108715377 | O193: -0.01963677298 | P193: -0.01529747385 | Q193: -0.01741993604 | R193: 0.03743661132 | S193: -0.09455704106 | T193: 0.03470669715
B194: Universitair docent (UD) | C194: 2024 | E194: 3.571636012 | F194: 4.243583535 | G194: 4.578743961 | H194: 4.396418199 | I194: 3.75655616 | J194: 3.864233577 | K194: 3.659416708 | L194: 3.8359375 | M194: 2.494047619 | N194: 2.974576271 | O194: 2.816658202 | P194: 3.988692232 | Q194: 2.767255217 | R194: 3.634221311 | S194: 2.337132573 | T194: 3.379211879
B195: Universitair docent (UD) | C195: 2026 | E195: 3.574789916 | F195: 4.234269663 | G195: 4.497481813 | H195: 4.387422796 | I195: 3.783180778 | J195: 3.936049802 | K195: 3.584250145 | L195: 3.868225898 | M195: 2.470070423 | N195: 2.99826087 | O195: 2.820939917 | P195: 3.983963345 | Q195: 2.739786298 | R195: 3.597728631 | S195: 2.319971871 | T195: 3.366844208
B196: Universitair docent (UD) | C196: Verschil | E196: =E195-E194 -> 0.00315390435 | F196: -0.009313872188 | G196: -0.08126214826 | H196: -0.008995403237 | I196: 0.02662461772 | J196: 0.07181622528 | K196: -0.0751665631 | L196: 0.03228839846 | M196: -0.02397719651 | N196: 0.02368459838 | O196: 0.004281714583 | P196: -0.004728887267 | Q196: -0.02746891877 | R196: -0.03649268027 | S196: -0.01716070288 | T196: -0.0123676712
B197: Onderzoeker (inclusief postdoc) | C197: 2024 | E197: 3.447916667 | F197: 3.837531486 | G197: 4.60653753 | H197: 4.5 | I197: 3.54522293 | J197: 3.990123457 | K197: 3.896286812 | L197: 4.074074074 | M197: 2.871853547 | N197: 3.246606335 | O197: 3.095419847 | P197: 4.158088235 | Q197: 3.141927083 | R197: 3.899117276 | S197: 2.666121113 | T197: 3.56402439
B198: Onderzoeker (inclusief postdoc) | C198: 2026 | E198: 3.430981595 | F198: 3.89941691 | G198: 4.616361072 | H198: 4.50631136 | I198: 3.633082707 | J198: 4.078683834 | K198: 3.911373708 | L198: 4.119318182 | M198: 2.887905605 | N198: 3.248587571 | O198: 3.139221557 | P198: 4.158798283 | Q198: 3.239757208 | R198: 3.91436865 | S198: 2.718199609 | T198: 3.616462347
B199: Onderzoeker (inclusief postdoc) | C199: Verschil | E199: =E198-E197 -> -0.01693507157 | F199: 0.06188542347 | G199: 0.009823541666 | H199: 0.006311360449 | I199: 0.08785977683 | J199: 0.08856037726 | K199: 0.01508689575 | L199: 0.04524410774 | M199: 0.01605205781 | N199: 0.00198123578 | O199: 0.04380170956 | P199: 0.0007100479677 | Q199: 0.09783012456 | R199: 0.01525137405 | S199: 0.05207849568 | T199: 0.05243795652
B200: Docent (inclusief wetenschappelijk docent) | C200: 2024 | E200: 3.429590018 | F200: 4.514084507 | G200: 4.373076923 | H200: 3.998134328 | I200: 3.418467583 | J200: 3.755064457 | K200: 3.416494845 | L200: 3.838041431 | M200: 2.41011236 | N200: 3.347826087 | O200: 2.929292929 | P200: 4.059479554 | Q200: 2.873626374 | R200: 3.679633867 | S200: 2.648 | T200: 3.704918033
B201: Docent (inclusief wetenschappelijk docent) | C201: 2026 | E201: 3.313432836 | F201: 4.527162978 | G201: 4.340857788 | H201: 4.077087794 | I201: 3.321759259 | J201: 3.823651452 | K201: 3.347826087 | L201: 3.880085653 | M201: 2.515151515 | N201: 3.17816092 | O201: 2.806682578 | P201: 4.044303797 | Q201: 2.711598746 | R201: 3.560526316 | S201: 2.370030581 | T201: 3.611702128
B202: Docent (inclusief wetenschappelijk docent) | C202: Verschil | E202: =E201-E200 -> -0.116157182 | F202: 0.01307847082 | G202: -0.03221913527 | H202: 0.07895346607 | I202: -0.09670832424 | J202: 0.06858699556 | K202: -0.0686687584 | L202: 0.04204422184 | M202: 0.1050391556 | N202: -0.1696651674 | O202: -0.1226103517 | P202: -0.01517575643 | Q202: -0.1620276275 | R202: -0.1191075515 | S202: -0.277969419 | T202: -0.09321590513
B203: Promovendus | C203: 2024 | E203: 3.449744463 | F203: 3.995176849 | G203: 4.687047466 | H203: 4.507557677 | I203: 3.310043668 | J203: 3.884397736 | K203: 3.772260274 | L203: 3.992712551 | M203: 2.867394696 | N203: 3.313497823 | O203: 3.194468453 | P203: 4.123577236 | Q203: 3.31372549 | R203: 4.065326633 | S203: 2.933940774 | T203: 3.788235294
B204: Promovendus | C204: 2026 | E204: 3.413580247 | F204: 4.030057803 | G204: 4.738823529 | H204: 4.533256881 | I204: 3.345454545 | J204: 3.91831972 | K204: 3.789276808 | L204: 4.033997655 | M204: 2.860576923 | N204: 3.309954751 | O204: 3.171319797 | P204: 4.098823529 | Q204: 3.34073107 | R204: 4.034564958 | S204: 2.772495756 | T204: 3.753889675
B205: Promovendus | C205: Verschil | E205: =E204-E203 -> -0.03616421646 | F205: 0.03488095459 | G205: 0.0517760636 | H205: 0.02569920373 | I205: 0.03541087733 | J205: 0.03392198349 | K205: 0.01701653401 | L205: 0.04128510473 | M205: -0.006817772711 | N205: -0.003543071801 | O205: -0.02314865594 | P205: -0.02475370636 | Q205: 0.0270055803 | R205: -0.03076167488 | S205: -0.161445019 | T205: -0.03434561944
B206: Medisch specialist, zonder een van bovenstaande academische functies | C206: 2024 | E206: 3.270386266 | F206: 4.025423729 | G206: 4.377118644 | H206: 4.033755274 | I206: 3.642241379 | J206: 4.063829787 | K206: 3.648888889 | L206: 4.064377682 | M206: 3.282700422 | N206: 4.316455696 | O206: 2.948497854 | P206: 4.260504202 | Q206: 2.87434555 | R206: 3.595121951 | S206: 2.72972973 | T206: 3.577889447
B207: Medisch specialist, zonder een van bovenstaande academische functies | C207: 2026 | E207: 3.38372093 | F207: 3.971428571 | G207: 4.304597701 | H207: 3.994252874 | I207: 3.630952381 | J207: 4.148571429 | K207: 3.596385542 | L207: 4.086206897 | M207: 3.517045455 | N207: 4.335227273 | O207: 3.145348837 | P207: 4.268571429 | Q207: 3.037878788 | R207: 3.6 | S207: 2.819672131 | T207: 3.517985612
B208: Medisch specialist, zonder een van bovenstaande academische functies | C208: Verschil | E208: =E207-E206 -> 0.1133346641 | F208: -0.05399515738 | G208: -0.07252094292 | H208: -0.0395024007 | I208: -0.01128899836 | J208: 0.08474164134 | K208: -0.05250334672 | L208: 0.02182921415 | M208: 0.2343450326 | N208: 0.01877157652 | O208: 0.1968509831 | P208: 0.008067226891 | Q208: 0.1635332381 | R208: 0.00487804878 | S208: 0.08994240142 | T208: -0.05990383573
B209: Anders, namelijk... | C209: 2024 | E209: 3.475409836 | F209: 4.046153846 | G209: 4.376811594 | H209: 4.183098592 | I209: 3.7 | J209: 4.136986301 | K209: 3.695652174 | L209: 4.112676056 | M209: 3.606060606 | N209: 3.857142857 | O209: 3.455882353 | P209: 4.297297297 | Q209: 3.142857143 | R209: 3.791044776 | S209: 2.927272727 | T209: 3.403508772
B210: Anders, namelijk... | C210: 2026 | E210: 3.4 | F210: 4.04 | G210: 4.41509434 | H210: 4.301886792 | I210: 3.703703704 | J210: 4.269230769 | K210: 3.851851852 | L210: 4.166666667 | M210: 2.884615385 | N210: 3.653846154 | O210: 3.090909091 | P210: 4.254545455 | Q210: 3.28 | R210: 3.836734694 | S210: 2.756756757 | T210: 3.452380952
B211: Anders, namelijk... | C211: Verschil | E211: =E210-E209 -> -0.07540983607 | F211: -0.006153846154 | G211: 0.03828274542 | H211: 0.1187882009 | I211: 0.003703703704 | J211: 0.1322444679 | K211: 0.1561996779 | L211: 0.05399061033 | M211: -0.7214452214 | N211: -0.2032967033 | O211: -0.364973262 | P211: -0.04275184275 | Q211: 0.1371428571 | R211: 0.04568991776 | S211: -0.1705159705 | T211: 0.04887218045
B212: Totaal | C212: 2024 | D212: 3092 - 7550 | E212: 3.519057239 | F212: 4.149660769 | G212: 4.574439878 | H212: 4.398807947 | I212: 3.692318188 | J212: 3.967746235 | K212: 3.696820175 | L212: 3.922612661 | M212: 2.766494179 | N212: 3.271570453 | O212: 3.010537992 | P212: 4.071505232 | Q212: 2.944216089 | R212: 3.664793481 | S212: 2.533198175 | T212: 3.407015326
B213: Totaal | C213: 2026 | D213: 2465 - 6240 | E213: 3.529209622 | F213: 4.177207063 | G213: 4.539229902 | H213: 4.415064103 | I213: 3.727257636 | J213: 4.027518507 | K213: 3.670831251 | L213: 3.955501618 | M213: 2.784584178 | N213: 3.263096169 | O213: 2.998474835 | P213: 4.058469055 | Q213: 2.929711314 | R213: 3.642601737 | S213: 2.468106996 | T213: 3.396219209
B214: Totaal | C214: Verschil | E214: =E213-E212 -> 0.01015238294 | F214: =F213-F212 -> 0.02754629368 | G214: =G213-G212 -> -0.03520997631 | H214: 0.01625615554 | I214: 0.0349394481 | J214: 0.05977227176 | K214: -0.0259889244 | L214: 0.03288895718 | M214: 0.01808999997 | N214: -0.008474284253 | O214: -0.01206315746 | P214: -0.01303617672 | Q214: -0.01450477493 | R214: -0.02219174455 | S214: -0.06509117948 | T214: -0.0107961168
B215: * Hoe belangrijk zijnactiviteiten op dit domein om een loopbaanstap te kunnen maken? Antwoordcategorieën: 1. Helemaal niet mee eens - 5. Helemaal mee eens
B216: **Hoe belangrijk zou je willen dat deze activiteiten zijn om een loopbaanstap te kunnen maken? Antwoordcategorieën: 1. Helemaal niet mee eens - 5. Helemaal mee eens
B219: Uitgesplitst naar vakgebied per domein
B231: Belangrijkheid van het aspect: | E231: Onderwijs | G231: Onderzoek | I231: Leiderschap | K231: Impact | M231: Patiëntenzorg | O231: Team spirit | Q231: Open science | S231: Open education
B232: Vakgebied | C232: Jaar | D232: Aantal | E232: Huidig* | F232: Gewenst** | G232: Huidig | H232: Gewenst | I232: Huidig | J232: Gewenst | K232: Huidig | L232: Gewenst | M232: Huidig | N232: Gewenst | O232: Huidig | P232: Gewenst | Q232: Huidig | R232: Gewenst | S232: Huidig | T232: Gewenst
B233: Landbouw / toegepaste levenswetenschappen | C233: 2024 | E233: 3.686440678 | F233: 4.177966102 | G233: 4.521008403 | H233: 4.355371901 | I233: 3.704347826 | J233: 3.924369748 | K233: 3.726495726 | L233: 4 | M233: 2.275 | N233: 2.785714286 | O233: 3.035714286 | P233: 4.041322314 | Q233: 3 | R233: 3.752136752 | S233: 2.653061224 | T233: 3.476635514
B234: Landbouw / toegepaste levenswetenschappen | C234: 2026 | E234: 3.831168831 | F234: 4.076923077 | G234: 4.602564103 | H234: 4.538461538 | I234: 3.891891892 | J234: 4.233766234 | K234: 3.987341772 | L234: 4.025974026 | M234: 2.148148148 | N234: 2.75 | O234: 3.116883117 | P234: 4.230769231 | Q234: 3.130434783 | R234: 3.824324324 | S234: 2.639344262 | T234: 3.611940299
B235: Landbouw / toegepaste levenswetenschappen | C235: Verschil | E235: =E234-E233 -> 0.1447281532 | F235: -0.1010430248 | G235: 0.0815556992 | H235: 0.1830896376 | I235: 0.1875440658 | J235: 0.3093964859 | K235: 0.2608460457 | L235: 0.02597402597 | M235: -0.1268518519 | N235: -0.03571428571 | O235: 0.08116883117 | P235: 0.1894469167 | Q235: 0.1304347826 | R235: 0.07218757219 | S235: -0.01371696219 | T235: 0.1353047845
B236: Natuur- en levenswetenschappen | C236: 2024 | E236: 3.514385965 | F236: 4.07969508 | G236: 4.633608815 | H236: 4.505858029 | I236: 3.68220339 | J236: 4.042302358 | K236: 3.817923186 | L236: 3.799581006 | M236: 2.410462777 | N236: 2.620493359 | O236: 2.938040346 | P236: 4.042016807 | Q236: 2.995581738 | R236: 3.695035461 | S236: 2.502120441 | T236: 3.384615385
B237: Natuur- en levenswetenschappen | C237: 2026 | E237: 3.520699172 | F237: 4.118874773 | G237: 4.605239386 | H237: 4.482416592 | I237: 3.757129715 | J237: 4.075949367 | K237: 3.770308123 | L237: 3.844686649 | M237: 2.519662921 | N237: 2.783197832 | O237: 2.969639469 | P237: 4.045955882 | Q237: 2.948026949 | R237: 3.634011091 | S237: 2.479869423 | T237: 3.358627859
B238: Natuur- en levenswetenschappen | C238: Verschil | E238: =E237-E236 -> 0.006313207121 | F238: 0.03917969344 | G238: -0.0283694297 | H238: -0.02344143742 | I238: 0.07492632498 | J238: 0.03364700925 | K238: -0.04761506309 | L238: 0.04510564291 | M238: 0.1092001447 | N238: 0.1627044733 | O238: 0.03159912287 | P238: 0.00393907563 | Q238: -0.04755478886 | R238: -0.06102437042 | S238: -0.02225101777 | T238: -0.02598752599
B239: Techniek | C239: 2024 | E239: 3.572815534 | F239: 4.121147715 | G239: 4.567510549 | H239: 4.428721174 | I239: 3.788565264 | J239: 3.935721812 | K239: 3.829347826 | L239: 3.969083156 | M239: 2.444444444 | N239: 2.920529801 | O239: 3.038084875 | P239: 4.033119658 | Q239: 2.98656215 | R239: 3.707505519 | S239: 2.657317073 | T239: 3.458823529
B240: Techniek | C240: 2026 | E240: 3.470430108 | F240: 4.167108753 | G240: 4.540397351 | H240: 4.423076923 | I240: 3.767663043 | J240: 4.046296296 | K240: 3.782903664 | L240: 3.957219251 | M240: 2.248780488 | N240: 2.66509434 | O240: 2.832635983 | P240: 4.00269179 | Q240: 2.85572843 | R240: 3.602777778 | S240: 2.50462963 | T240: 3.41089838
B241: Techniek | C241: Verschil | E241: =E240-E239 -> -0.1023854265 | F241: 0.04596103812 | G241: -0.02711319753 | H241: -0.005644250927 | I241: -0.02090222082 | J241: 0.1105744839 | K241: -0.04644416259 | L241: -0.01186390431 | M241: -0.1956639566 | N241: -0.2554354617 | O241: -0.2054488916 | P241: -0.03042786808 | Q241: -0.1308337201 | R241: -0.104727741 | S241: -0.1526874435 | T241: -0.04792514944
B242: Gezondheid | C242: 2024 | E242: 3.434479055 | F242: 3.992588671 | G242: 4.513357779 | H242: 4.335260116 | I242: 3.677993528 | J242: 4.079599367 | K242: 3.816304348 | L242: 4.085185185 | M242: 3.331121433 | N242: 3.863137508 | O242: 3.106142241 | P242: 4.212025316 | Q242: 3.052752294 | R242: 3.723451327 | S242: 2.715447154 | T242: 3.509386733
B243: Gezondheid | C243: 2026 | E243: 3.478173271 | F243: 4 | G243: 4.540929928 | H243: 4.345727332 | I243: 3.725067385 | J243: 4.12198304 | K243: 3.839430894 | L243: 4.145394737 | M243: 3.377998346 | N243: 3.795983936 | O243: 3.144016227 | P243: 4.188481675 | Q243: 3.107066381 | R243: 3.729281768 | S243: 2.6875 | T243: 3.487381703
B244: Gezondheid | C244: Verschil | E244: =E243-E242 -> 0.04369421587 | F244: 0.007411328745 | G244: 0.02757214902 | H244: 0.01046721642 | I244: 0.04707385794 | J244: 0.04238367237 | K244: 0.02312654648 | L244: 0.06020955166 | M244: 0.04687691243 | N244: -0.06715357233 | O244: 0.0378739858 | P244: -0.02354364106 | Q244: 0.05431408758 | R244: 0.005830440522 | S244: -0.02794715447 | T244: -0.02200502995
B245: Economie | C245: 2024 | E245: 3.522580645 | F245: 4.285714286 | G245: 4.653763441 | H245: 4.480349345 | I245: 3.4 | J245: 3.783369803 | K245: 3.284140969 | L245: 3.824175824 | M245: 1.594202899 | N245: 2.166666667 | O245: 2.842342342 | P245: 3.777282851 | Q245: 2.491315136 | R245: 3.233100233 | S245: 2.14600551 | T245: 2.910485934
B246: Economie | C246: 2026 | E246: 3.546448087 | F246: 4.310626703 | G246: 4.668478261 | H246: 4.494535519 | I246: 3.508287293 | J246: 3.876373626 | K246: 3.407821229 | L246: 3.85326087 | M246: 1.5625 | N246: 2.036363636 | O246: 2.835777126 | P246: 3.831908832 | Q246: 2.482084691 | R246: 3.32326284 | S246: 2.076388889 | T246: 3.016339869
B247: Economie | C247: Verschil | E247: =E246-E245 -> 0.02386744227 | F247: 0.02491241728 | G247: 0.01471482001 | H247: 0.01418617415 | I247: 0.1082872928 | J247: 0.09300382331 | K247: 0.1236802599 | L247: 0.02908504539 | M247: -0.03170289855 | N247: -0.1303030303 | O247: -0.006565216243 | P247: 0.05462598113 | Q247: -0.009230445923 | R247: 0.09016260678 | S247: -0.06961662075 | T247: 0.1058539358
B248: Recht | C248: 2024 | E248: 3.518181818 | F248: 4.351351351 | G248: 4.604863222 | H248: 4.346385542 | I248: 3.611801242 | J248: 3.881097561 | K248: 3.520376176 | L248: 3.676829268 | M248: 1.705882353 | N248: 2.218181818 | O248: 3.061488673 | P248: 4.092879257 | Q248: 2.613899614 | R248: 3.418181818 | S248: 2.376569038 | T248: 3.233201581
B249: Recht | C249: 2026 | E249: 3.570945946 | F249: 4.348837209 | G249: 4.430976431 | H249: 4.431438127 | I249: 3.635087719 | J249: 4.06 | K249: 3.355871886 | L249: 3.797979798 | M249: 1.842105263 | N249: 2.555555556 | O249: 3.010676157 | P249: 4.088737201 | Q249: 2.612334802 | R249: 3.457692308 | S249: 2.299539171 | T249: 3.301652893
B250: Recht | C250: Verschil | E250: =E249-E248 -> 0.05276412776 | F250: -0.002514142049 | G250: -0.1738867909 | H250: 0.08505258492 | I250: 0.02328647706 | J250: 0.178902439 | K250: -0.1645042894 | L250: 0.1211505297 | M250: 0.1362229102 | N250: 0.3373737374 | O250: -0.05081251656 | P250: -0.004142055601 | Q250: -0.001564812138 | R250: 0.03951048951 | S250: -0.07702986715 | T250: 0.06845131153
B251: Gedrag en maatschappij | C251: 2024 | E251: 3.57729649 | F251: 4.24408284 | G251: 4.619188192 | H251: 4.371111111 | I251: 3.714067278 | J251: 3.900967982 | K251: 3.593181818 | L251: 3.951164538 | M251: 2.025882353 | N251: 2.82247191 | O251: 3.020092736 | P251: 4.076290202 | Q251: 2.963444354 | R251: 3.722092116 | S251: 2.377952756 | T251: 3.414272475
B252: Gedrag en maatschappij | C252: 2026 | E252: 3.601612903 | F252: 4.28976378 | G252: 4.563145353 | H252: 4.395899054 | I252: 3.737582781 | J252: 3.964940239 | K252: 3.539983512 | L252: 3.970494418 | M252: 2.0575 | N252: 2.841232227 | O252: 3.042785235 | P252: 4.04643715 | Q252: 2.965578111 | R252: 3.724770642 | S252: 2.329140461 | T252: 3.414821944
B253: Gedrag en maatschappij | C253: Verschil | E253: =E252-E251 -> 0.02431641331 | F253: 0.04568093929 | G253: -0.05604283843 | H253: 0.02478794252 | I253: 0.02351550317 | J253: 0.06397225691 | K253: -0.05319830623 | L253: 0.01932987992 | M253: 0.03161764706 | N253: 0.01876031738 | O253: 0.0226924992 | P253: -0.02985305222 | Q253: 0.002133757026 | R253: 0.002678526667 | S253: -0.04881229469 | T253: 0.0005494696637
B254: Taal en cultuur | C254: 2024 | E254: 3.449760766 | F254: 4.32037325 | G254: 4.492088608 | H254: 4.411490683 | I254: 3.766721044 | J254: 3.837025316 | K254: 3.467661692 | L254: 3.703349282 | M254: 1.77173913 | N254: 2.494736842 | O254: 2.883680556 | P254: 3.952076677 | Q254: 2.823863636 | R254: 3.584482759 | S254: 2.504273504 | T254: 3.409090909
B255: Taal en cultuur | C255: 2026 | E255: 3.431906615 | F255: 4.32183908 | G255: 4.304263566 | H255: 4.438931298 | I255: 3.756487026 | J255: 3.835589942 | K255: 3.382293763 | L255: 3.681017613 | M255: 1.711111111 | N255: 2.68627451 | O255: 2.805907173 | P255: 3.918972332 | Q255: 2.76091954 | R255: 3.521551724 | S255: 2.330729167 | T255: 3.334963325
B256: Taal en cultuur | C256: Verschil | E256: =E255-E254 -> -0.01785415076 | F256: 0.001465830071 | G256: -0.1878250417 | H256: 0.02744061448 | I256: -0.0102340181 | J256: -0.001435374483 | K256: -0.08536792897 | L256: -0.02233166977 | M256: -0.06062801932 | N256: 0.1915376677 | O256: -0.07777338256 | P256: -0.0331043453 | Q256: -0.06294409613 | R256: -0.06293103448 | S256: -0.1735443376 | T256: -0.07412758391
B257: Onderwijs (als wetenschapsgebied) | C257: 2024 | E257: 3.727272727 | F257: 4.428571429 | G257: 4.467336683 | H257: 4.226600985 | I257: 3.803191489 | J257: 3.9408867 | K257: 3.687830688 | L257: 4.059701493 | M257: 2.527027027 | N257: 2.890243902 | O257: 3.156756757 | P257: 4.099009901 | Q257: 3.023952096 | R257: 3.820652174 | S257: 2.642384106 | T257: 3.662650602
B258: Onderwijs (als wetenschapsgebied) | C258: 2026 | E258: 3.715083799 | F258: 4.344262295 | G258: 4.580110497 | H258: 4.338797814 | I258: 3.801169591 | J258: 3.956284153 | K258: 3.776470588 | L258: 4.084745763 | M258: 2.576271186 | N258: 3.049180328 | O258: 3.071428571 | P258: 4.100558659 | Q258: 3.105263158 | R258: 3.716763006 | S258: 2.766129032 | T258: 3.620915033
B259: Onderwijs (als wetenschapsgebied) | C259: Verschil | E259: =E258-E257 -> -0.01218892839 | F259: -0.08430913349 | G259: 0.1127738138 | H259: 0.112196829 | I259: -0.002021898718 | J259: 0.0153974535 | K259: 0.0886399004 | L259: 0.02504427017 | M259: 0.04924415941 | N259: 0.1589364254 | O259: -0.08532818533 | P259: 0.001548758228 | Q259: 0.08131106209 | R259: -0.1038891681 | S259: 0.1237449263 | T259: -0.04173556973
B260: Anders, namelijk… | C260: 2024 | E260: 3.695652174 | F260: 4.194029851 | G260: 4.507246377 | H260: 4.338235294 | I260: 3.808823529 | J260: 3.895522388 | K260: 3.857142857 | L260: 4.088235294 | M260: 2.59375 | N260: 2.939393939 | O260: 3 | P260: 4.161764706 | Q260: 2.888888889 | R260: 3.784615385 | S260: 2.65 | T260: 3.557377049
B261: Anders, namelijk… | C261: 2026 | E261: 3.75 | F261: 4.224489796 | G261: 4.355555556 | H261: 4.38 | I261: 3.886363636 | J261: 3.86 | K261: 3.844444444 | L261: 3.82 | M261: 2.5 | N261: 4 | O261: 2.976744186 | P261: 4 | Q261: 2.775 | R261: 3.448979592 | S261: 2.5 | T261: 3.266666667
B262: Anders, namelijk… | C262: Verschil | E262: =E261-E260 -> 0.05434782609 | F262: 0.03045994517 | G262: -0.1516908213 | H262: 0.04176470588 | I262: 0.07754010695 | J262: -0.03552238806 | K262: -0.0126984127 | L262: -0.2682352941 | M262: -0.09375 | N262: 1.060606061 | O262: -0.02325581395 | P262: -0.1617647059 | Q262: -0.1138888889 | R262: -0.3356357928 | S262: -0.15 | T262: -0.2907103825
B263: Totaal | C263: 2024 | D263: 3075 - 7484 | E263: 3.518342391 | F263: 4.150449604 | G263: 4.572555838 | H263: 4.400053447 | I263: 3.691439582 | J263: 3.966249832 | K263: 3.697552206 | L263: 3.92232747 | M263: 2.765528455 | N263: 3.269519051 | O263: 3.012167832 | P263: 4.07189277 | Q263: 2.944921528 | R263: 3.665910702 | S263: 2.536626917 | T263: 3.408482143
B264: Totaal | C264: 2026 | D264: 2438 - 6164 | E264: 3.528495693 | F264: 4.177503251 | G264: 4.540029349 | H264: 4.413530175 | I264: 3.729334677 | J264: 4.024914509 | K264: 3.67150329 | L264: 3.952810093 | M264: 2.784659557 | N264: 3.266062278 | O264: 2.997768623 | P264: 4.059366755 | Q264: 2.931034483 | R264: 3.64137931 | S264: 2.469056053 | T264: 3.393810445
B265: Totaal | C265: Verschil | E265: =E264-E263 -> 0.01015330121 | F265: =F264-F263 -> 0.0270536469 | G265: =G264-G263 -> -0.03252648848 | H265: 0.01347672786 | I265: 0.03789509581 | J265: 0.05866467712 | K265: -0.02604891575 | L265: 0.03048262384 | M265: 0.01913110173 | N265: -0.003456772312 | O265: -0.01439920876 | P265: -0.01252601549 | Q265: -0.01388704522 | R265: -0.02453139129 | S265: -0.06757086318 | T265: -0.01467169798
B266: * Hoe belangrijk zijnactiviteiten op dit domein om een loopbaanstap te kunnen maken? Antwoordcategorieën: 1. Helemaal niet mee eens - 5. Helemaal mee eens
B267: **Hoe belangrijk zou je willen dat deze activiteiten zijn om een loopbaanstap te kunnen maken? Antwoordcategorieën: 1. Helemaal niet mee eens - 5. Helemaal mee eens

Sheet H3.3_2
B5: H 3.3_2 Focus op kwaliteit en ontwikkeling
B7: Focus op kwaliteit en ontwikkeling
B18: Het is mij – over het geheel genomen – duidelijk welke criteria mijn instelling per domein gebruikt voor de volgende onderdelen:
B19: Onderdeel | C19: Jaar | D19: Aantal | E19: Gemiddelde*
B20: Werving | C20: 2024 | D20: x | E20: x
B21: Werving | C21: 2026 | D21: 5760 | E21: 2.872048611
B22: Werving | C22: Verschil | D22: x | E22: x
B23: Ontwikkeling | C23: 2024 | D23: x | E23: x
B24: Ontwikkeling | C24: 2026 | D24: 5851 | E24: 2.763630149
B25: Ontwikkeling | C25: Verschil | D25: x | E25: x
B26: Benoeming | C26: 2024 | D26: x | E26: x
B27: Benoeming | C27: 2026 | D27: 5712 | E27: 2.667542017
B28: Benoeming | C28: Verschil | D28: x | E28: x
B29: Bevordering | C29: 2024 | D29: x | E29: x
B30: Bevordering | C30: 2026 | D30: 5844 | E30: 2.619609856
B31: Bevordering | C31: Verschil | D31: x | E31: x
B33: * Antwoordcategorieën 1. Helemaal niet mee eens, 2. Niet mee eens, 3. Neutraal, 4. Mee eens, 5. Helemaal mee eens
B44: Het is mij – over het geheel genomen – duidelijk welke criteria mijn instelling per domein gebruikt voor de volgende onderdelen:
B45: Onderdeel | C45: Jaar | D45: Aantal | E45: Helemaal niet mee eens | F45: Niet mee eens | G45: Neutraal | H45: Mee eens | I45: Helemaal mee eens
B46: Werving | C46: 2024 | D46: x | E46: x | F46: x | G46: x | H46: x | I46: x
B47: Werving | C47: 2026 | D47: 5760 | E47: 0.1324652778 | F47: 0.2765625 | G47: 0.2178819444 | H47: 0.3326388889 | I47: 0.04045138889
B48: Werving | C48: Verschil | D48: x | E48: x | F48: x | G48: x | H48: x | I48: x
B49: Ontwikkeling | C49: 2024 | D49: x | E49: x | F49: x | G49: x | H49: x | I49: x
B50: Ontwikkeling | C50: 2026 | D50: 5851 | E50: 0.1295505042 | F50: 0.3079815416 | G50: 0.2614937618 | H50: 0.2712356862 | I50: 0.02973850624
B51: Ontwikkeling | C51: Verschil | D51: x | E51: x | F51: x | G51: x | H51: x | I51: x
B52: Benoeming | C52: 2024 | D52: x | E52: x | F52: x | G52: x | H52: x | I52: x
B53: Benoeming | C53: 2026 | D53: 5712 | E53: 0.1703431373 | F53: 0.3149509804 | G53: 0.2295168067 | H53: 0.2471988796 | I53: 0.03799019608
B54: Benoeming | C54: Verschil | D54: x | E54: x | F54: x | G54: x | H54: x | I54: x
B55: Bevordering | C55: 2024 | D55: x | E55: x | F55: x | G55: x | H55: x | I55: x
B56: Bevordering | C56: 2026 | D56: 5844 | E56: 0.1986652977 | F56: 0.3146817248 | G56: 0.1967830253 | H56: 0.2481177276 | I56: 0.0417522245
B57: Bevordering | C57: Verschil | D57: x | E57: x | F57: x | G57: x | H57: x | I57: x
B60: Uitgesplitst naar vakgebied
B71: Het is mij – over het geheel genomen – duidelijk welke criteria mijn instelling per domein gebruikt voor de volgende onderdelen: *** | E71: Werving | G71: Ontwikkeling | I71: Benoeming | K71: Bevordering
B72: Vakgebied | C72: Jaar | D72: Aantal | E72: Gemiddelde* | F72: sd** | G72: Gemiddelde | H72: sd | I72: Gemiddelde | J72: sd | K72: Gemiddelde | L72: sd
B73: Landbouw / toegepaste levenswetenschappen | C73: 2024 | E73: x | F73: x | G73: x | H73: x | I73: x | J73: x | K73: x | L73: x
B74: Landbouw / toegepaste levenswetenschappen | C74: 2026 | E74: 2.732394366 | F74: 0.999396196 | G74: 2.987012987 | H74: 0.9388333535 | I74: 2.704225352 | J74: 1.005618022 | K74: 2.902777778 | L74: 1.140295517
B75: Landbouw / toegepaste levenswetenschappen | C75: Verschil | E75: x | F75: x | G75: x | H75: x | I75: x | J75: x | K75: x | L75: x
B76: Natuur- en levenswetenschappen | C76: 2024 | E76: x | F76: x | G76: x | H76: x | I76: x | J76: x | K76: x | L76: x
B77: Natuur- en levenswetenschappen | C77: 2026 | E77: 2.99704142 | F77: 1.14625926 | G77: 2.910505837 | H77: 1.093383899 | I77: 2.815895372 | J77: 1.123451761 | K77: 2.772771792 | L77: 1.172931243
B78: Natuur- en levenswetenschappen | C78: Verschil | E78: x | F78: x | G78: x | H78: x | I78: x | J78: x | K78: x | L78: x
B79: Techniek | C79: 2024 | E79: x | F79: x | G79: x | H79: x | I79: x | J79: x | K79: x | L79: x
B80: Techniek | C80: 2026 | E80: 2.976978417 | F80: 1.13474829 | G80: 2.887464387 | H80: 1.103818871 | I80: 2.818862275 | J80: 1.124273769 | K80: 2.753623188 | L80: 1.201182256
B81: Techniek | C81: Verschil | E81: x | F81: x | G81: x | H81: x | I81: x | J81: x | K81: x | L81: x
B82: Gezondheid | C82: 2024 | E82: x | F82: x | G82: x | H82: x | I82: x | J82: x | K82: x | L82: x
B83: Gezondheid | C83: 2026 | E83: 2.704035874 | F83: 1.088732737 | G83: 2.732323232 | H83: 1.046117774 | I83: 2.581446311 | J83: 1.133349051 | K83: 2.57748538 | L83: 1.135896486
B84: Gezondheid | C84: Verschil | E84: x | F84: x | G84: x | H84: x | I84: x | J84: x | K84: x | L84: x
B85: Economie | C85: 2024 | E85: x | F85: x | G85: x | H85: x | I85: x | J85: x | K85: x | L85: x
B86: Economie | C86: 2026 | E86: 3.108504399 | F86: 1.213872434 | G86: 2.852941176 | H86: 1.150409775 | I86: 2.941520468 | J86: 1.238235441 | K86: 2.921126761 | L86: 1.303831326
B87: Economie | C87: Verschil | E87: x | F87: x | G87: x | H87: x | I87: x | J87: x | K87: x | L87: x
B88: Recht | C88: 2024 | E88: x | F88: x | G88: x | H88: x | I88: x | J88: x | K88: x | L88: x
B89: Recht | C89: 2026 | E89: 2.68707483 | F89: 1.13764454 | G89: 2.575342466 | H89: 1.095668551 | I89: 2.438596491 | J89: 1.192959745 | K89: 2.340206186 | L89: 1.188043288
B90: Recht | C90: Verschil | E90: x | F90: x | G90: x | H90: x | I90: x | J90: x | K90: x | L90: x
B91: Gedrag en maatschappij | C91: 2024 | E91: x | F91: x | G91: x | H91: x | I91: x | J91: x | K91: x | L91: x
B92: Gedrag en maatschappij | C92: 2026 | E92: 2.893939394 | F92: 1.11987346 | G92: 2.682274247 | H92: 1.06573259 | I92: 2.573756432 | J92: 1.079324597 | K92: 2.508319468 | L92: 1.152204131
B93: Gedrag en maatschappij | C93: Verschil | E93: x | F93: x | G93: x | H93: x | I93: x | J93: x | K93: x | L93: x
B94: Taal en cultuur | C94: 2024 | E94: x | F94: x | G94: x | H94: x | I94: x | J94: x | K94: x | L94: x
B95: Taal en cultuur | C95: 2026 | E95: 2.822810591 | F95: 1.14605314 | G95: 2.572580645 | H95: 1.03219595 | I95: 2.571138211 | J95: 1.120545185 | K95: 2.40438247 | L95: 1.118623297
B96: Taal en cultuur | C96: Verschil | E96: x | F96: x | G96: x | H96: x | I96: x | J96: x | K96: x | L96: x
B97: Onderwijs (als wetenschapsgebied) | C97: 2024 | E97: x | F97: x | G97: x | H97: x | I97: x | J97: x | K97: x | L97: x
B98: Onderwijs (als wetenschapsgebied) | C98: 2026 | E98: 2.93125 | F98: 1.122227541 | G98: 2.888888889 | H98: 1.021507837 | I98: 2.642857143 | J98: 1.052097634 | K98: 2.680722892 | L98: 1.084542393
B99: Onderwijs (als wetenschapsgebied) | C99: Verschil | E99: x | F99: x | G99: x | H99: x | I99: x | J99: x | K99: x | L99: x
B100: Anders, namelijk… | C100: 2024 | E100: x | F100: x | G100: x | H100: x | I100: x | J100: x | K100: x | L100: x
B101: Anders, namelijk… | C101: 2026 | E101: 2.88372093 | F101: 1.313107951 | G101: 2.644444444 | H101: 1.170771998 | I101: 2.720930233 | J101: 1.333194899 | K101: 2.75 | L101: 1.241248434
B102: Anders, namelijk… | C102: Verschil | E102: x | F102: x | G102: x | H102: x | I102: x | J102: x | K102: x | L102: x
B103: Totaal | C103: 2024 | D103: x | E103: x | F103: x | G103: x | H103: x | I103: x | J103: x | K103: x | L103: x
B104: Totaal | C104: 2026 | D104: 5584 - 5724 | E104: 2.872582076 | F104: 1.135051158 | G104: 2.765373864 | H104: 1.078428674 | I104: 2.668159026 | J104: 1.133415935 | K104: 2.621607424 | L104: 1.175143442
B105: Totaal | C105: Verschil | D105: x | E105: x | F105: x | G105: x | H105: x | I105: x | J105: x | K105: x | L105: x
B106: * Cijfers boven gemiddelde van dat jaar vet gedrukt
B107: **Standaarddeviatie
B108: ***Antwoordcategorieën 1. Helemaal niet mee eens, 2. Niet mee eens, 3. Neutraal, 4. Mee eens, 5. Helemaal mee eens
B110: Uitgesplitst naar functiegroep
B123: Het is mij – over het geheel genomen – duidelijk welke criteria mijn instelling per domein gebruikt voor de volgende onderdelen: *** | E123: Werving | G123: Ontwikkeling | I123: Benoeming | K123: Bevordering
B124: Functiegroep | C124: Jaar | D124: Aantal | E124: Gemiddelde* | F124: sd** | G124: Gemiddelde | H124: sd | I124: Gemiddelde | J124: sd | K124: Gemiddelde | L124: sd
B125: Hoogleraar | C125: 2024 | E125: x | F125: x | G125: x | H125: x | I125: x | J125: x | K125: x | L125: x
B126: Hoogleraar | C126: 2026 | E126: 3.381799163 | F126: 1.069150128 | G126: 3.201680672 | H126: 1.048396357 | I126: 3.351659751 | J126: 1.10120643 | K126: 3.358239509 | L126: 1.119232105
B127: Hoogleraar | C127: Verschil | E127: x | F127: x | G127: x | H127: x | I127: x | J127: x | K127: x | L127: x
B128: Hoogleraar-Medisch specialist | C128: 2024 | E128: x | F128: x | G128: x | H128: x | I128: x | J128: x | K128: x | L128: x
B129: Hoogleraar-Medisch specialist | C129: 2026 | E129: 2.87037037 | F129: 1.103033986 | G129: 2.916666667 | H129: 1.094805065 | I129: 3.037037037 | J129: 1.229891918 | K129: 3.009345794 | L129: 1.201377567
B130: Hoogleraar-Medisch specialist | C130: Verschil | E130: x | F130: x | G130: x | H130: x | I130: x | J130: x | K130: x | L130: x
B131: Universitair hoofddocent (UHD) | C131: 2024 | E131: x | F131: x | G131: x | H131: x | I131: x | J131: x | K131: x | L131: x
B132: Universitair hoofddocent (UHD) | C132: 2026 | E132: 2.904807692 | F132: 1.091385448 | G132: 2.788479698 | H132: 1.048276762 | I132: 2.724105461 | J132: 1.12973807 | K132: 2.66758494 | L132: 1.188047764
B133: Universitair hoofddocent (UHD) | C133: Verschil | E133: x | F133: x | G133: x | H133: x | I133: x | J133: x | K133: x | L133: x
B134: Universitair docent (UD) | C134: 2024 | E134: x | F134: x | G134: x | H134: x | I134: x | J134: x | K134: x | L134: x
B135: Universitair docent (UD) | C135: 2026 | E135: 2.796139928 | F135: 1.130873402 | G135: 2.596917605 | H135: 1.068225425 | I135: 2.47705314 | J135: 1.083556865 | K135: 2.394097222 | L135: 1.156192209
B136: Universitair docent (UD) | C136: Verschil | E136: x | F136: x | G136: x | H136: x | I136: x | J136: x | K136: x | L136: x
B137: Onderzoeker (inclusief postdoc) | C137: 2024 | E137: x | F137: x | G137: x | H137: x | I137: x | J137: x | K137: x | L137: x
B138: Onderzoeker (inclusief postdoc) | C138: 2026 | E138: 2.725203252 | F138: 1.093778192 | G138: 2.719135802 | H138: 1.04229173 | I138: 2.499186992 | J138: 1.023939503 | K138: 2.446774194 | L138: 1.027288059
B139: Onderzoeker (inclusief postdoc) | C139: Verschil | E139: x | F139: x | G139: x | H139: x | I139: x | J139: x | K139: x | L139: x
B140: Docent (inclusief wetenschappelijk docent) | C140: 2024 | E140: x | F140: x | G140: x | H140: x | I140: x | J140: x | K140: x | L140: x
B141: Docent (inclusief wetenschappelijk docent) | C141: 2026 | E141: 2.625287356 | F141: 1.081816444 | G141: 2.5 | H141: 0.9847146396 | I141: 2.363218391 | J141: 1.030202314 | K141: 2.293333333 | L141: 1.033169276
B142: Docent (inclusief wetenschappelijk docent) | C142: Verschil | E142: x | F142: x | G142: x | H142: x | I142: x | J142: x | K142: x | L142: x
B143: Promovendus | C143: 2024 | E143: x | F143: x | G143: x | H143: x | I143: x | J143: x | K143: x | L143: x
B144: Promovendus | C144: 2026 | E144: 2.711621234 | F144: 1.161546153 | G144: 2.804597701 | H144: 1.11072294 | I144: 2.461038961 | J144: 1.056966772 | K144: 2.45631068 | L144: 1.053911744
B145: Promovendus | C145: Verschil | E145: x | F145: x | G145: x | H145: x | I145: x | J145: x | K145: x | L145: x
B146: Medisch specialist, zonder een van bovenstaande academische functies | C146: 2024 | E146: x | F146: x | G146: x | H146: x | I146: x | J146: x | K146: x | L146: x
B147: Medisch specialist, zonder een van bovenstaande academische functies | C147: 2026 | E147: 2.299319728 | F147: 0.9538312506 | G147: 2.368421053 | H147: 0.9468260715 | I147: 2.149350649 | J147: 1.008347302 | K147: 2.106666667 | L147: 0.9351213299
B148: Medisch specialist, zonder een van bovenstaande academische functies | C148: Verschil | E148: x | F148: x | G148: x | H148: x | I148: x | J148: x | K148: x | L148: x
B149: Anders, namelijk... | C149: 2024 | E149: x | F149: x | G149: x | H149: x | I149: x | J149: x | K149: x | L149: x
B150: Anders, namelijk... | C150: 2026 | E150: 2.980769231 | F150: 1.196242231 | G150: 3 | H150: 1.077032961 | I150: 2.78 | J150: 1.015994536 | K150: 2.803921569 | L150: 1.131717418
B151: Anders, namelijk... | C151: Verschil | E151: x | F151: x | G151: x | H151: x | I151: x | J151: x | K151: x | L151: x
B152: Totaal | C152: 2024 | D152: x | E152: x | F152: x | G152: x | H152: x | I152: x | J152: x | K152: x | L152: x
B153: Totaal | C153: 2026 | D153: 5660 - 5799 | E153: 2.873335669 | F153: 1.133418152 | G153: 2.765821693 | H153: 1.078017825 | I153: 2.668727915 | J153: 1.134205662 | K153: 2.620207254 | L153: 1.175249723
B154: Totaal | C154: Verschil | D154: x | E154: x | F154: x | G154: x | H154: x | I154: x | J154: x | K154: x | L154: x
B155: * Cijfers boven gemiddelde van dat jaar vet gedrukt
B156: **Standaarddeviatie
B157: ***Antwoordcategorieën 1. Helemaal niet mee eens, 2. Niet mee eens, 3. Neutraal, 4. Mee eens, 5. Helemaal mee eens
B159: Uitgesplitst naar instellingscategorie
B169: Het is mij – over het geheel genomen – duidelijk welke criteria mijn instelling per domein gebruikt voor de volgende onderdelen: *** | E169: Werving | G169: Ontwikkeling | I169: Benoeming | K169: Bevordering
B170: Instellingscategorie | C170: Jaar | D170: Aantal | E170: Gemiddelde* | F170: sd** | G170: Gemiddelde | H170: sd | I170: Gemiddelde | J170: sd | K170: Gemiddelde | L170: sd
B171: Umc's | C171: 2024 | E171: x | F171: x | G171: x | H171: x | I171: x | J171: x | K171: x | L171: x
B172: Umc's | C172: 2026 | E172: 2.707142857 | F172: 1.095813259 | G172: 2.726768377 | H172: 1.039920305 | I172: 2.558678848 | J172: 1.127850449 | K172: 2.553056922 | L172: 1.115592153
B173: Umc's | C173: Verschil | E173: x | F173: x | G173: x | H173: x | I173: x | J173: x | K173: x | L173: x
B174: Brede universiteiten | C174: 2024 | E174: x | F174: x | G174: x | H174: x | I174: x | J174: x | K174: x | L174: x
B175: Brede universiteiten | C175: 2026 | E175: 2.923828783 | F175: 1.147688948 | G175: 2.735028438 | H175: 1.085091641 | I175: 2.674513818 | J175: 1.146516639 | K175: 2.610264901 | L175: 1.204810083
B176: Brede universiteiten | C176: Verschil | E176: x | F176: x | G176: x | H176: x | I176: x | J176: x | K176: x | L176: x
B177: NWO- en KNAW-instituten | C177: 2024 | E177: x | F177: x | G177: x | H177: x | I177: x | J177: x | K177: x | L177: x
B178: NWO- en KNAW-instituten | C178: 2026 | E178: 3.138461538 | F178: 1.140709297 | G178: 3.038167939 | H178: 1.089163482 | I178: 2.88976378 | J178: 1.129751076 | K178: 2.721568627 | L178: 1.159064537
B179: NWO- en KNAW-instituten | C179: Verschil | E179: x | F179: x | G179: x | H179: x | I179: x | J179: x | K179: x | L179: x
B180: Levensbeschouwelijke universiteiten | C180: 2024 | E180: x | F180: x | G180: x | H180: x | I180: x | J180: x | K180: x | L180: x
B181: Levensbeschouwelijke universiteiten | C181: 2026 | E181: 2.972972973 | F181: 0.9570349607 | G181: 2.694444444 | H181: 0.8886408384 | I181: 2.594594595 | J181: 1.012682342 | K181: 2.710526316 | L181: 1.063088177
B182: Levensbeschouwelijke universiteiten | C182: Verschil | E182: x | F182: x | G182: x | H182: x | I182: x | J182: x | K182: x | L182: x
B183: Technische universiteiten | C183: 2024 | E183: x | F183: x | G183: x | H183: x | I183: x | J183: x | K183: x | L183: x
B184: Technische universiteiten | C184: 2026 | E184: 2.875247525 | F184: 1.125557317 | G184: 2.84057971 | H184: 1.092747169 | I184: 2.756619145 | J184: 1.097133684 | K184: 2.720314033 | L184: 1.167373044
B185: Technische universiteiten | C185: Verschil | E185: x | F185: x | G185: x | H185: x | I185: x | J185: x | K185: x | L185: x
B186: Totaal | C186: 2024 | D186: x | E186: x | F186: x | G186: x | H186: x | I186: x | J186: x | K186: x | L186: x
B187: Totaal | C187: 2026 | D187: 5627 - 5764 | E187: 2.871871695 | F187: 1.1343592 | G187: 2.765440666 | H187: 1.076533065 | I187: 2.668740004 | J187: 1.134293299 | K187: 2.621198957 | L187: 1.174859292
B188: Totaal | C188: Verschil | D188: x | E188: x | F188: x | G188: x | H188: x | I188: x | J188: x | K188: x | L188: x
B189: * Cijfers boven gemiddelde van dat jaar vet gedrukt
B190: **Standaarddeviatie
B191: ***Antwoordcategorieën 1. Helemaal niet mee eens, 2. Niet mee eens, 3. Neutraal, 4. Mee eens, 5. Helemaal mee eens

Sheet H3.4
B5: H 3.4 Balans tussen individu en collectief
B7: Balans individu versus collectief
B24: Mate waarin men het eens is met uitspraken over de balans tussen individu en collectief
B25: Uitspraak | C25: Jaar | D25: Aantal | E25: Gemiddelde*
B26: Ieders bijdrage aan succes wordt in ons team erkend. | C26: 2024 | D26: 7511 | E26: 3.3
B27: Ieders bijdrage aan succes wordt in ons team erkend. | C27: 2026 | D27: 6305 | E27: 3.437430611
B28: Ieders bijdrage aan succes wordt in ons team erkend. | C28: Verschil | D28: =D27-D26 -> -1206 | E28: 0.1374306106
B29: In mijn team is de gezamenlijke prestatie belangrijker dan individuele prestaties. | C29: 2024 | D29: 7403 | E29: 2.78
B30: In mijn team is de gezamenlijke prestatie belangrijker dan individuele prestaties. | C30: 2026 | D30: 6196 | E30: 2.899774048
B31: In mijn team is de gezamenlijke prestatie belangrijker dan individuele prestaties. | C31: Verschil | D31: =D30-D29 -> -1207 | E31: 0.1197740478
B32: Teamdoelstellingen en ieders bijdrage daaraan zijn onderwerp van gesprek in mijn team. | C32: 2024 | D32: 7421 | E32: 2.94
B33: Teamdoelstellingen en ieders bijdrage daaraan zijn onderwerp van gesprek in mijn team. | C33: 2026 | D33: 6218 | E33: 3.051463493
B34: Teamdoelstellingen en ieders bijdrage daaraan zijn onderwerp van gesprek in mijn team. | C34: Verschil | D34: =D33-D32 -> -1203 | E34: 0.1114634931
B35: Met mijn werk draag ik bij aan de doelstellingen van mijn team en de instelling. | C35: 2024 | D35: 7490 | E35: 3.94
B36: Met mijn werk draag ik bij aan de doelstellingen van mijn team en de instelling. | C36: 2026 | D36: 6241 | E36: 4.003525076
B37: Met mijn werk draag ik bij aan de doelstellingen van mijn team en de instelling. | C37: Verschil | D37: =D36-D35 -> -1249 | E37: 0.06352507611
B38: Ik vind het stimulerend om samen te kunnen werken met collega’s die andere vaardigheden hebben dan ik. | C38: 2024 | D38: 7675 | E38: 4.39
B39: Ik vind het stimulerend om samen te kunnen werken met collega’s die andere vaardigheden hebben dan ik. | C39: 2026 | D39: 6357 | E39: 4.375334277
B40: Ik vind het stimulerend om samen te kunnen werken met collega’s die andere vaardigheden hebben dan ik. | C40: Verschil | D40: =D39-D38 -> -1318 | E40: -0.01466572283
B41: In mijn team is het normaal om elkaar feedback te geven. | C41: 2024 | D41: 7616 | E41: 3.38
B42: In mijn team is het normaal om elkaar feedback te geven. | C42: 2026 | D42: 6338 | E42: 3.414799621
B43: In mijn team is het normaal om elkaar feedback te geven. | C43: Verschil | D43: =D42-D41 -> -1278 | E43: 0.03479962133
B44: Ik weet wat mijn team van mij verwacht. | C44: 2024 | D44: x | E44: x
B45: Ik weet wat mijn team van mij verwacht. | C45: 2026 | D45: 6306 | E45: 3.550745322
B46: Ik weet wat mijn team van mij verwacht. | C46: Verschil | D46: x | E46: x
B47: In mijn team is nagedacht over de beste teamsamenstelling om de ambities van het team te realiseren. | C47: 2024 | D47: x | E47: x
B48: In mijn team is nagedacht over de beste teamsamenstelling om de ambities van het team te realiseren. | C48: 2026 | D48: 5963 | E48: 2.82659735
B49: In mijn team is nagedacht over de beste teamsamenstelling om de ambities van het team te realiseren. | C49: Verschil | D49: x | E49: x
B51: *Antwoordcategorieën 1. Helemaal niet mee eens, 2. Niet mee eens, 3. Neutraal, 4. Mee eens, 5. Helemaal mee eens
B68: Mate waarin men het eens is met uitspraken over de balans tussen individu en collectief
B69: Uitspraak | C69: Jaar | D69: Aantal | E69: Helemaal niet mee eens | F69: Niet mee eens | G69: Neutraal | H69: Mee eens | I69: Helemaal mee eens | J69: Niet van toepassing
B70: Ieders bijdrage aan succes wordt in ons team erkend. | C70: 2024 | D70: 7662 | E70: 0.0639062708 | F70: 0.1882572227 | G70: 0.2212754627 | H70: 0.4370922647 | I70: 0.08946877912 | J70: 0.01970764813
B71: Ieders bijdrage aan succes wordt in ons team erkend. | C71: 2026 | D71: 6305 | E71: 0.05503568596 | F71: 0.1638382236 | G71: 0.1908009516 | H71: 0.4693100714 | I71: 0.1210150674 | J71: x
B72: Ieders bijdrage aan succes wordt in ons team erkend. | C72: Verschil | D72: =D71-D70 -> -1357 | E72: -0.008870584839 | F72: =F71-F70 -> -0.02441899911 | G72: =G71-G70 -> -0.03047451103 | H72: =H71-H70 -> 0.03221780669 | I72: =I71-I70 -> 0.03154628828 | J72: x
B73: In mijn team is de gezamenlijke prestatie belangrijker dan individuele prestaties. | C73: 2024 | D73: 7599 | E73: 0.1145481562 | F73: 0.325003377 | G73: 0.2824530596 | H73: 0.2216668918 | I73: 0.05632851547 | J73: 0.02579286748
B74: In mijn team is de gezamenlijke prestatie belangrijker dan individuele prestaties. | C74: 2026 | D74: 6196 | E74: 0.1007101356 | F74: 0.2859909619 | G74: 0.2911555842 | H74: 0.2571013557 | I74: 0.06504196256 | J74: x
B75: In mijn team is de gezamenlijke prestatie belangrijker dan individuele prestaties. | C75: Verschil | D75: =D74-D73 -> -1403 | E75: =E74-E73 -> -0.01383802058 | F75: =F74-F73 -> -0.0390124151 | G75: =G74-G73 -> 0.008702524677 | H75: =H74-H73 -> 0.03543446391 | I75: =I74-I73 -> 0.00871344709 | J75: x
B76: Teamdoelstellingen en ieders bijdrage daaraan zijn onderwerp van gesprek in mijn team. | C76: 2024 | D76: 7659 | E76: 0.1091497103 | F76: 0.2734132866 | G76: 0.2426896645 | H76: 0.3200377308 | I76: 0.05470960787 | J76: 0.03107455281
B77: Teamdoelstellingen en ieders bijdrage daaraan zijn onderwerp van gesprek in mijn team. | C77: 2026 | D77: 6218 | E77: 0.09987134127 | F77: 0.2380186555 | G77: 0.2381794789 | H77: 0.3586362174 | I77: 0.06529430685 | J77: x
B78: Teamdoelstellingen en ieders bijdrage daaraan zijn onderwerp van gesprek in mijn team. | C78: Verschil | D78: =D77-D76 -> -1441 | E78: =E77-E76 -> -0.009278369014 | F78: =F77-F76 -> -0.0353946311 | G78: =G77-G76 -> -0.004510185534 | H78: =H77-H76 -> 0.03859848667 | I78: =I77-I76 -> 0.01058469898 | J78: x
B79: Met mijn werk draag ik bij aan de doelstellingen van mijn team en de instelling. | C79: 2024 | D79: 7642 | E79: 0.01802403204 | F79: 0.03858477971 | G79: 0.1443257677 | H79: 0.5863818425 | I79: 0.2126835781 | J79: 0.01989008113
B80: Met mijn werk draag ik bij aan de doelstellingen van mijn team en de instelling. | C80: 2026 | D80: 6241 | E80: 0.01377984297 | F80: 0.03957699087 | G80: 0.112481974 | H80: 0.5976606313 | I80: 0.2365005608 | J80: x
B81: Met mijn werk draag ik bij aan de doelstellingen van mijn team en de instelling. | C81: Verschil | D81: =D80-D79 -> -1401 | E81: =E80-E79 -> -0.004244189069 | F81: =F80-F79 -> 0.0009922111606 | G81: =G80-G79 -> -0.03184379365 | H81: =H80-H79 -> 0.01127878885 | I81: =I80-I79 -> 0.0238169827 | J81: x
B82: Ik vind het stimulerend om samen te kunnen werken met collega’s die andere vaardigheden hebben dan ik. | C82: 2024 | D82: 7764 | E82: 0.005732899023 | F82: 0.01016286645 | G82: 0.05680781759 | H82: 0.4439087948 | I82: 0.4833876221 | J82: 0.01146316332
B83: Ik vind het stimulerend om samen te kunnen werken met collega’s die andere vaardigheden hebben dan ik. | C83: 2026 | D83: 6357 | E83: 0.006449583137 | F83: 0.01258455246 | G83: 0.05600125846 | H83: 0.449111216 | I83: 0.47585339 | J83: x
B84: Ik vind het stimulerend om samen te kunnen werken met collega’s die andere vaardigheden hebben dan ik. | C84: Verschil | D84: =D83-D82 -> -1407 | E84: =E83-E82 -> 0.0007166841139 | F84: =F83-F82 -> 0.002421686012 | G84: =G83-G82 -> -0.0008065591343 | H84: =H83-H82 -> 0.005202421194 | I84: =I83-I82 -> -0.007534232186 | J84: x
B85: In mijn team is het normaal om elkaar feedback te geven. | C85: 2024 | D85: 7732 | E85: 0.05212710084 | F85: 0.1727941176 | G85: 0.2514443277 | H85: 0.390887605 | I85: 0.1327468487 | J85: 0.01500258665
B86: In mijn team is het normaal om elkaar feedback te geven. | C86: 2026 | D86: 6338 | E86: 0.05175134112 | F86: 0.1631429473 | G86: 0.2428210792 | H86: 0.4031240139 | I86: 0.1391606185 | J86: x
B87: In mijn team is het normaal om elkaar feedback te geven. | C87: Verschil | D87: =D86-D85 -> -1394 | E87: =E86-E85 -> -0.0003757597233 | F87: =F86-F85 -> -0.009651170345 | G87: =G86-G85 -> -0.008623248526 | H87: =H86-H85 -> 0.01223640884 | I87: =I86-I85 -> 0.006413769752 | J87: x
B88: Ik weet wat mijn team van mij verwacht. | C88: 2024 | D88: x | E88: x | F88: x | G88: x | H88: x | I88: x | J88: x
B89: Ik weet wat mijn team van mij verwacht. | C89: 2026 | D89: 6306 | E89: 0.03330161751 | F89: 0.1092610212 | G89: 0.2391373295 | H89: 0.5099904853 | I89: 0.1083095465 | J89: x
B90: Ik weet wat mijn team van mij verwacht. | C90: Verschil | D90: x | E90: x | F90: x | G90: x | H90: x | I90: x | J90: x
B91: In mijn team is nagedacht over de beste teamsamenstelling om de ambities van het team te realiseren. | C91: 2024 | D91: x | E91: x | F91: x | G91: x | H91: x | I91: x | J91: x
B92: In mijn team is nagedacht over de beste teamsamenstelling om de ambities van het team te realiseren. | C92: 2026 | D92: 5963 | E92: 0.1472413215 | F92: 0.2592654704 | G92: 0.2780479624 | H92: 0.2505450277 | I92: 0.06490021801 | J92: x
B93: In mijn team is nagedacht over de beste teamsamenstelling om de ambities van het team te realiseren. | C93: Verschil | D93: x | E93: x | F93: x | G93: x | H93: x | I93: x | J93: x
B96: Uitgesplitst naar functiegroep
B107: Mate waarin men het eens is met uitspraken over de balans tussen individu en collectief*** | E107: Ieders bijdrage aan succes wordt in ons team erkend. | G107: In mijn team is de gezamenlijke prestatie belangrijker dan individuele prestaties. | I107: Teamdoelstellingen en ieders bijdrage daaraan zijn onderwerp van gesprek in mijn team. | K107: Met mijn werk draag ik bij aan de doelstellingen van mijn team en de instelling. | M107: Ik vind het stimulerend om samen te kunnen werken met collega’s die andere vaardigheden hebben dan ik. | O107: In mijn team is het normaal om elkaar feedback te geven. | Q107: Ik weet wat mijn team van mij verwacht. | S107: In mijn team is nagedacht over de beste teamsamenstelling om de ambities van het team te realiseren.
B108: Functiegroep | C108: Jaar | D108: Aantal | E108: Gemiddelde* | F108: sd** | G108: Gemiddelde | H108: sd | I108: Gemiddelde | J108: sd | K108: Gemiddelde | L108: sd | M108: Gemiddelde | N108: sd | O108: Gemiddelde | P108: sd | Q108: Gemiddelde | R108: sd | S108: Gemiddelde | T108: sd
B109: Hoogleraar | C109: 2024 | E109: 3.589877836 | F109: 0.9609141312 | G109: 3.016593886 | H109: 1.045588768 | I109: 3.299737073 | J109: 1.030027219 | K109: 4.216637782 | L109: 0.6943212567 | M109: 4.471145564 | N109: 0.6716445183 | O109: 3.60745234 | P109: 0.9957306565 | Q109: x | R109: x | S109: x | T109: x
B110: Hoogleraar | C110: 2026 | E110: 3.730496454 | F110: 0.9491706943 | G110: 3.130346232 | H110: 1.064349395 | I110: 3.33197556 | J110: 1.048165218 | K110: 4.209775967 | L110: 0.6778768127 | M110: 4.462626263 | N110: 0.6548544491 | O110: 3.632962588 | P110: 0.9897068533 | Q110: 3.805273834 | R110: 0.8263506563 | S110: 3.174406605 | T110: 1.132504941
B111: Hoogleraar | C111: Verschil | E111: =E110-E109 -> 0.1406186179 | F111: =F110-F109 -> -0.01174343697 | G111: =G110-G109 -> 0.1137523457 | H111: =H110-H109 -> 0.01876062781 | I111: =I110-I109 -> 0.03223848734 | J111: =J110-J109 -> 0.01813799903 | K111: =K110-K109 -> -0.006861814216 | L111: =L110-L109 -> -0.01644444396 | M111: =M110-M109 -> -0.008519301543 | N111: =N110-N109 -> -0.01679006916 | O111: =O110-O109 -> 0.02551024879 | P111: =P110-P109 -> -0.006023803159 | Q111: x | R111: x | S111: x | T111: x
B112: Hoogleraar-Medisch specialist | C112: 2024 | E112: 3.80952381 | F112: 0.9460323298 | G112: 3.591836735 | H112: 0.941836606 | I112: 3.627586207 | J112: 0.9642558125 | K112: 4.229166667 | L112: 0.5997522799 | M112: 4.591836735 | N112: 0.5459075897 | O112: 3.772413793 | P112: 0.8639768161 | Q112: x | R112: x | S112: x | T112: x
B113: Hoogleraar-Medisch specialist | C113: 2026 | E113: 3.684684685 | F113: 1.086963928 | G113: 3.396396396 | H113: 1.12232939 | I113: 3.558558559 | J113: 1.101112534 | K113: 4.127272727 | L113: 0.8471115619 | M113: 4.513513514 | N113: 0.6587158977 | O113: 3.684684685 | P113: 0.9907020649 | Q113: 3.855855856 | R113: 0.9424035697 | S113: 3.378378378 | T113: 1.160360869
B114: Hoogleraar-Medisch specialist | C114: Verschil | E114: =E113-E112 -> -0.1248391248 | F114: =F113-F112 -> 0.1409315986 | G114: =G113-G112 -> -0.1954403383 | H114: =H113-H112 -> 0.180492784 | I114: =I113-I112 -> -0.06902764834 | J114: =J113-J112 -> 0.1368567214 | K114: =K113-K112 -> -0.1018939394 | L114: =L113-L112 -> 0.2473592821 | M114: =M113-M112 -> -0.07832322118 | N114: =N113-N112 -> 0.1128083081 | O114: =O113-O112 -> -0.08772910842 | P114: =P113-P112 -> 0.1267252489 | Q114: x | R114: x | S114: x | T114: x
B115: Universitair hoofddocent (UHD) | C115: 2024 | E115: 3.146551724 | F115: 1.069210751 | G115: 2.657165479 | H115: 1.06095995 | I115: 2.84743083 | J115: 1.102196509 | K115: 3.937106918 | L115: 0.8046719176 | M115: 4.35895465 | N115: 0.7111032481 | O115: 3.274131274 | P115: 1.053324537 | Q115: x | R115: x | S115: x | T115: x
B116: Universitair hoofddocent (UHD) | C116: 2026 | E116: 3.333333333 | F116: 1.071721538 | G116: 2.782369146 | H116: 1.086946904 | I116: 2.96969697 | J116: 1.100634844 | K116: 4.00091659 | L116: 0.8388497385 | M116: 4.337262013 | N116: 0.7431102363 | O116: 3.313689937 | P116: 1.044153754 | Q116: 3.50729927 | R116: 0.9460041443 | S116: 2.735266604 | T116: 1.130973715
B117: Universitair hoofddocent (UHD) | C117: Verschil | E117: =E116-E115 -> 0.1867816092 | F117: =F116-F115 -> 0.002510787545 | G117: =G116-G115 -> 0.125203667 | H117: =H116-H115 -> 0.02598695417 | I117: =I116-I115 -> 0.1222661397 | J117: =J116-J115 -> -0.001561665316 | K117: =K116-K115 -> 0.06380967205 | L117: =L116-L115 -> 0.03417782097 | M117: =M116-M115 -> -0.02169263758 | N117: =N116-N115 -> 0.03200698819 | O117: =O116-O115 -> 0.03955866241 | P117: =P116-P115 -> -0.009170782731 | Q117: x | R117: x | S117: x | T117: x
B118: Universitair docent (UD) | C118: 2024 | E118: 3.061011905 | F118: 1.089424811 | G118: 2.578629032 | H118: 1.071271077 | I118: 2.715291751 | J118: 1.093710603 | K118: 3.873197414 | L118: 0.858282834 | M118: 4.33997086 | N118: 0.7244247737 | O118: 3.167647059 | P118: 1.089578955 | Q118: x | R118: x | S118: x | T118: x
B119: Universitair docent (UD) | C119: 2026 | E119: 3.194444444 | F119: 1.096662693 | G119: 2.710388857 | H119: 1.077831748 | I119: 2.864818024 | J119: 1.129317001 | K119: 3.936708861 | L119: 0.8196766899 | M119: 4.32247191 | N119: 0.7379921729 | O119: 3.2003386 | P119: 1.104346885 | Q119: 3.375354912 | R119: 0.973772655 | S119: 2.588340274 | T119: 1.112999879
B120: Universitair docent (UD) | C120: Verschil | E120: =E119-E118 -> 0.1334325397 | F120: =F119-F118 -> 0.007237881299 | G120: =G119-G118 -> 0.1317598244 | H120: =H119-H118 -> 0.006560671274 | I120: =I119-I118 -> 0.1495262738 | J120: =J119-J118 -> 0.03560639757 | K120: =K119-K118 -> 0.06351144654 | L120: =L119-L118 -> -0.03860614409 | M120: =M119-M118 -> -0.01749894953 | N120: =N119-N118 -> 0.01356739914 | O120: =O119-O118 -> 0.03269154163 | P120: =P119-P118 -> 0.01476793041 | Q120: x | R120: x | S120: x | T120: x
B121: Onderzoeker (inclusief postdoc) | C121: 2024 | E121: 3.459096459 | F121: 1.050893049 | G121: 2.924598269 | H121: 1.100405244 | I121: 3.027060271 | J121: 1.13357008 | K121: 3.943349754 | L121: 0.778403064 | M121: 4.498803828 | N121: 0.6238750871 | O121: 3.543030303 | P121: 1.055914011 | Q121: x | R121: x | S121: x | T121: x
B122: Onderzoeker (inclusief postdoc) | C122: 2026 | E122: 3.66620306 | F122: 1.002704375 | G122: 3.098290598 | H122: 1.073755092 | I122: 3.230225989 | J122: 1.050003815 | K122: 4.039215686 | L122: 0.7498498782 | M122: 4.468232044 | N122: 0.6487239704 | O122: 3.585535466 | P122: 1.054562688 | Q122: 3.585872576 | R122: 0.9116109564 | S122: 2.971428571 | T122: 1.123715561
B123: Onderzoeker (inclusief postdoc) | C123: Verschil | E123: =E122-E121 -> 0.2071066007 | F123: =F122-F121 -> -0.04818867321 | G123: =G122-G121 -> 0.1736923288 | H123: =H122-H121 -> -0.02665015174 | I123: =I122-I121 -> 0.2031657181 | J123: =J122-J121 -> -0.08356626494 | K123: =K122-K121 -> 0.09586593258 | L123: =L122-L121 -> -0.02855318582 | M123: =M122-M121 -> -0.03057178355 | N123: =N122-N121 -> 0.02484888328 | O123: =O122-O121 -> 0.04250516289 | P123: =P122-P121 -> -0.001351322562 | Q123: x | R123: x | S123: x | T123: x
B124: Docent (inclusief wetenschappelijk docent) | C124: 2024 | E124: 3.131627057 | F124: 1.118052706 | G124: 2.779439252 | H124: 1.084426557 | I124: 2.773897059 | J124: 1.116747891 | K124: 3.916363636 | L124: 0.8188942824 | M124: 4.316725979 | N124: 0.6906851281 | O124: 3.166368515 | P124: 1.067210654 | Q124: x | R124: x | S124: x | T124: x
B125: Docent (inclusief wetenschappelijk docent) | C125: 2026 | E125: 3.293279022 | F125: 1.098949239 | G125: 2.985386221 | H125: 1.12307269 | I125: 2.858037578 | J125: 1.126280355 | K125: 3.991820041 | L125: 0.7892298593 | M125: 4.289156627 | N125: 0.7402776218 | O125: 3.175050302 | P125: 1.130381951 | Q125: 3.653846154 | R125: 0.9139528 | S125: 2.684901532 | T125: 1.159084844
B126: Docent (inclusief wetenschappelijk docent) | C126: Verschil | E126: =E125-E124 -> 0.1616519657 | F126: =F125-F124 -> -0.01910346686 | G126: =G125-G124 -> 0.205946969 | H126: =H125-H124 -> 0.03864613252 | I126: =I125-I124 -> 0.08414051946 | J126: =J125-J124 -> 0.009532463466 | K126: =K125-K124 -> 0.07545640454 | L126: =L125-L124 -> -0.02966442304 | M126: =M125-M124 -> -0.02756935214 | N126: =N125-N124 -> 0.04959249369 | O126: =O125-O124 -> 0.008681786605 | P126: =P125-P124 -> 0.06317129626 | Q126: x | R126: x | S126: x | T126: x
B127: Promovendus | C127: 2024 | E127: 3.558922559 | F127: 0.9855208814 | G127: 2.839100346 | H127: 1.07553376 | I127: 2.982683983 | J127: 1.133105761 | K127: 3.740050804 | L127: 0.855290414 | M127: 4.363196126 | N127: 0.6883297568 | O127: 3.600651997 | P127: 1.086142687 | Q127: x | R127: x | S127: x | T127: x
B128: Promovendus | C128: 2026 | E128: 3.699642431 | F128: 1.002568237 | G128: 2.908536585 | H128: 1.092845109 | I128: 3.137135922 | J128: 1.158991287 | K128: 3.880579011 | L128: 0.8173668413 | M128: 4.388758782 | N128: 0.6752465438 | O128: 3.747948417 | P128: 1.024814715 | Q128: 3.55450237 | R128: 0.9510516692 | S128: 2.93579235 | T128: 1.193909671
B129: Promovendus | C129: Verschil | E129: =E128-E127 -> 0.1407198725 | F129: =F128-F127 -> 0.01704735574 | G129: =G128-G127 -> 0.06943623935 | H129: =H128-H127 -> 0.01731134862 | I129: =I128-I127 -> 0.1544519396 | J129: =J128-J127 -> 0.02588552598 | K129: =K128-K127 -> 0.1405282065 | L129: =L128-L127 -> -0.03792357275 | M129: =M128-M127 -> 0.02556265629 | N129: =N128-N127 -> -0.01308321303 | O129: =O128-O127 -> 0.1472964206 | P129: =P128-P127 -> -0.06132797251 | Q129: x | R129: x | S129: x | T129: x
B130: Medisch specialist, zonder een van bovenstaande academische functies | C130: 2024 | E130: 2.966804979 | F130: 1.067970115 | G130: 2.68487395 | H130: 1.054157024 | I130: 2.8375 | J130: 1.036292272 | K130: 3.872340426 | L130: 0.745843791 | M130: 4.392561983 | N130: 0.5750937559 | O130: 3.156378601 | P130: 1.052461917 | Q130: x | R130: x | S130: x | T130: x
B131: Medisch specialist, zonder een van bovenstaande academische functies | C131: 2026 | E131: 3.116022099 | F131: 1.044997437 | G131: 2.831460674 | H131: 0.9998412875 | I131: 2.983333333 | J131: 1.059540324 | K131: 3.937142857 | L131: 0.6877774108 | M131: 4.377777778 | N131: 0.6355884579 | O131: 3.212290503 | P131: 0.899228636 | Q131: 3.610169492 | R131: 0.7764345042 | S131: 2.855491329 | T131: 1.015539962
B132: Medisch specialist, zonder een van bovenstaande academische functies | C132: Verschil | E132: =E131-E130 -> 0.1492171202 | F132: =F131-F130 -> -0.02297267744 | G132: =G131-G130 -> 0.1465867246 | H132: =H131-H130 -> -0.05431573615 | I132: =I131-I130 -> 0.1458333333 | J132: =J131-J130 -> 0.02324805176 | K132: =K131-K130 -> 0.06480243161 | L132: =L131-L130 -> -0.05806638016 | M132: =M131-M130 -> -0.01478420569 | N132: =N131-N130 -> 0.06049470195 | O132: =O131-O130 -> 0.05591190197 | P132: =P131-P130 -> -0.1532332813 | Q132: x | R132: x | S132: x | T132: x
B133: Anders, namelijk... | C133: 2024 | E133: 3.662162162 | F133: 0.9690699824 | G133: 3.178082192 | H133: 1.15881244 | I133: 3.48 | J133: 1.082539557 | K133: 4.189189189 | L133: 0.7881950193 | M133: 4.472972973 | N133: 0.8476069937 | O133: 3.72 | P133: 0.938083152 | Q133: x | R133: x | S133: x | T133: x
B134: Anders, namelijk... | C134: 2026 | E134: 3.350877193 | F134: 0.972684578 | G134: 3.054545455 | H134: 0.9313109402 | I134: 3.160714286 | J134: 1.172050041 | K134: 4 | L134: 0.8164965809 | M134: 4.372881356 | N134: 0.7404170559 | O134: 3.431034483 | P134: 0.9931708739 | Q134: 3.448275862 | R134: 1.028922342 | S134: 2.79245283 | T134: 1.062625387
B135: Anders, namelijk... | C135: Verschil | E135: =E134-E133 -> -0.3112849692 | F135: =F134-F133 -> 0.003614595524 | G135: =G134-G133 -> -0.1235367372 | H135: =H134-H133 -> -0.2275014997 | I135: =I134-I133 -> -0.3192857143 | J135: =J134-J133 -> 0.08951048431 | K135: =K134-K133 -> -0.1891891892 | L135: =L134-L133 -> 0.02830156168 | M135: =M134-M133 -> -0.100091617 | N135: =N134-N133 -> -0.1071899377 | O135: =O134-O133 -> -0.2889655172 | P135: =P134-P133 -> 0.05508772193 | Q135: x | R135: x | S135: x | T135: x
B136: Totaal | C136: 2024 | D136: 7337 - 7606 | E136: 3.302924604 | F136: 1.071068881 | G136: 2.783673469 | H136: 1.086417136 | I136: 2.938908499 | J136: 1.1162266 | K136: 3.93717207 | L136: 0.8178955245 | M136: 4.390499934 | N136: 0.692088038 | O136: 3.380801269 | P136: 1.076134581 | Q136: x | R136: x | S136: x | T136: x
B137: Totaal | C137: 2026 | D137: 5910 - 6299 | E137: 3.441331839 | F137: 1.068892379 | G137: 2.90161264 | H137: 1.093433557 | I137: 3.054383117 | J137: 1.119922589 | K137: 4.004043345 | L137: 0.7947680458 | M137: 4.375615177 | N137: 0.7066906234 | O137: 3.415857348 | P137: 1.075478016 | Q137: 3.552728437 | R137: 0.9379667835 | S137: 2.829103215 | T137: 1.152847083
B138: Totaal | C138: Verschil | E138: =E137-E136 -> 0.138407235 | F138: =F137-F136 -> -0.002176501334 | G138: =G137-G136 -> 0.1179391711 | H138: 0.007016420826 | I138: 0.1154746184 | J138: 0.00369598845 | K138: 0.06687127416 | L138: -0.02312747868 | M138: -0.01488475738 | N138: 0.01460258537 | O138: =O137-O136 -> 0.03505607822 | P138: =P137-P136 -> -0.0006565650155 | Q138: x | R138: x | S138: x | T138: x
B139: * Cijfers boven gemiddelde van dat jaar vet gedrukt
B140: **Standaarddeviatie
B141: ***Antwoordcategorieën 1. Helemaal niet mee eens, 2. Niet mee eens, 3. Neutraal, 4. Mee eens, 5. Helemaal mee eens
B143: Uitgesplitst naar vakgebied
B154: Mate waarin men het eens is met uitspraken over de balans tussen individu en collectief*** | E154: Ieders bijdrage aan succes wordt in ons team erkend. | G154: In mijn team is de gezamenlijke prestatie belangrijker dan individuele prestaties. | I154: Teamdoelstellingen en ieders bijdrage daaraan zijn onderwerp van gesprek in mijn team. | K154: Met mijn werk draag ik bij aan de doelstellingen van mijn team en de instelling. | M154: Ik vind het stimulerend om samen te kunnen werken met collega’s die andere vaardigheden hebben dan ik. | O154: In mijn team is het normaal om elkaar feedback te geven. | Q154: Ik weet wat mijn team van mij verwacht. | S154: In mijn team is nagedacht over de beste teamsamenstelling om de ambities van het team te realiseren.
B155: Vakgebied | C155: Jaar | D155: Aantal | E155: Gemiddelde* | F155: sd** | G155: Gemiddelde | H155: sd | I155: Gemiddelde | J155: sd | K155: Gemiddelde | L155: sd | M155: Gemiddelde | N155: sd | O155: Gemiddelde | P155: sd | Q155: Gemiddelde | R155: sd | S155: Gemiddelde | T155: sd
B156: Landbouw / toegepaste levenswetenschappen | C156: 2024 | E156: 3.284552846 | F156: 1.059850942 | G156: 2.825 | H156: 1.05051008 | I156: 2.957983193 | J156: 1.1077153 | K156: 3.991666667 | L156: 0.7275587514 | M156: 4.419354839 | N156: 0.651412152 | O156: 3.414634146 | P156: 0.9660365983 | Q156: x | R156: x | S156: x | T156: x
B157: Landbouw / toegepaste levenswetenschappen | C157: 2026 | E157: 3.358974359 | F157: 1.056511768 | G157: 2.868421053 | H157: 1.037202716 | I157: 3.077922078 | J157: 1.167162932 | K157: 4.133333333 | L157: 0.664410597 | M157: 4.556962025 | N157: 0.5717009134 | O157: 3.358974359 | P157: 1.092766761 | Q157: 3.5 | R157: 0.9636241117 | S157: 3.053333333 | T157: 1.089176894
B158: Landbouw / toegepaste levenswetenschappen | C158: Verschil | E158: =E157-E156 -> 0.07442151345 | F158: =F157-F156 -> -0.003339174081 | G158: =G157-G156 -> 0.04342105263 | H158: =H157-H156 -> -0.01330736438 | I158: =I157-I156 -> 0.1199388846 | J158: =J157-J156 -> 0.05944763178 | K158: =K157-K156 -> 0.1416666667 | L158: =L157-L156 -> -0.06314815434 | M158: =M157-M156 -> 0.1376071866 | N158: =N157-N156 -> -0.07971123855 | O158: =O157-O156 -> -0.05565978737 | P158: =P157-P156 -> 0.1267301628 | Q158: x | R158: x | S158: x | T158: x
B159: Natuur- en levenswetenschappen | C159: 2024 | E159: 3.422268908 | F159: 1.061649709 | G159: 2.861800142 | H159: 1.092868899 | I159: 3.061921708 | J159: 1.118229169 | K159: 3.964739069 | L159: 0.8300279108 | M159: 4.435967302 | N159: 0.6661454642 | O159: 3.507892931 | P159: 1.089459751 | Q159: x | R159: x | S159: x | T159: x
B160: Natuur- en levenswetenschappen | C160: 2026 | E160: 3.627362736 | F160: 1.028305776 | G160: 3.007272727 | H160: 1.086747792 | I160: 3.193961574 | J160: 1.10064922 | K160: 4.06 | L160: 0.7595554468 | M160: 4.465470852 | N160: 0.6641774031 | O160: 3.527777778 | P160: 1.079004228 | Q160: 3.595130748 | R160: 0.9343107394 | S160: 2.86003861 | T160: 1.160003997
B161: Natuur- en levenswetenschappen | C161: Verschil | E161: =E160-E159 -> 0.2050938287 | F161: =F160-F159 -> -0.03334393313 | G161: =G160-G159 -> 0.1454725855 | H161: =H160-H159 -> -0.006121107592 | I161: =I160-I159 -> 0.1320398655 | J161: =J160-J159 -> -0.01757994942 | K161: =K160-K159 -> 0.09526093089 | L161: =L160-L159 -> -0.07047246398 | M161: =M160-M159 -> 0.02950354957 | N161: =N160-N159 -> -0.001968061059 | O161: =O160-O159 -> 0.0198848471 | P161: =P160-P159 -> -0.01045552272 | Q161: x | R161: x | S161: x | T161: x
B162: Techniek | C162: 2024 | E162: 3.354322305 | F162: 1.087204619 | G162: 2.785097192 | H162: 1.10146553 | I162: 2.916936354 | J162: 1.164913673 | K162: 3.950959488 | L162: 0.8467050434 | M162: 4.340980188 | N162: 0.7278385356 | O162: 3.379091869 | P162: 1.099156903 | Q162: x | R162: x | S162: x | T162: x
B163: Techniek | C163: 2026 | E163: 3.398950131 | F163: 1.075787253 | G163: 2.852546917 | H163: 1.106284768 | I163: 3.019973369 | J163: 1.123506653 | K163: 4.013315579 | L163: 0.8261290006 | M163: 4.372214941 | N163: 0.742672832 | O163: 3.345098039 | P163: 1.115627988 | Q163: 3.474240423 | R163: 0.9804623735 | S163: 2.733427362 | T163: 1.158740898
B164: Techniek | C164: Verschil | E164: =E163-E162 -> 0.044627826 | F164: =F163-F162 -> -0.01141736615 | G164: =G163-G162 -> 0.06744972467 | H164: =H163-H162 -> 0.004819237424 | I164: =I163-I162 -> 0.103037015 | J164: =J163-J162 -> -0.04140701991 | K164: =K163-K162 -> 0.06235609095 | L164: =L163-L162 -> -0.02057604285 | M164: =M163-M162 -> 0.03123475333 | N164: =N163-N162 -> 0.01483429642 | O164: =O163-O162 -> -0.03399382984 | P164: =P163-P162 -> 0.01647108535 | Q164: x | R164: x | S164: x | T164: x
B165: Gezondheid | C165: 2024 | E165: 3.396480331 | F165: 1.037439002 | G165: 3.016272966 | H165: 1.068675341 | I165: 3.088296761 | J165: 1.085492858 | K165: 3.95754717 | L165: 0.7432836205 | M165: 4.499484536 | N165: 0.5856278878 | O165: 3.471376998 | P165: 1.0227448 | Q165: x | R165: x | S165: x | T165: x
B166: Gezondheid | C166: 2026 | E166: 3.554983923 | F166: 1.021660166 | G166: 3.124268055 | H166: 1.060434512 | I166: 3.226120858 | J166: 1.071352323 | K166: 4.061118336 | L166: 0.7260623099 | M166: 4.466112532 | N166: 0.6253362316 | O166: 3.552258065 | P166: 1.005879134 | Q166: 3.705541237 | R166: 0.8453736295 | S166: 3.071045576 | T166: 1.121244509
B167: Gezondheid | C167: Verschil | E167: =E166-E165 -> 0.1585035916 | F167: =F166-F165 -> -0.01577883575 | G167: =G166-G165 -> 0.1079950888 | H167: =H166-H165 -> -0.008240828468 | I167: =I166-I165 -> 0.137824097 | J167: =J166-J165 -> -0.01414053483 | K167: =K166-K165 -> 0.1035711657 | L167: =L166-L165 -> -0.01722131061 | M167: =M166-M165 -> -0.03337200411 | N167: =N166-N165 -> 0.0397083438 | O167: =O166-O165 -> 0.08088106606 | P167: =P166-P165 -> -0.01686566635 | Q167: x | R167: x | S167: x | T167: x
B168: Economie | C168: 2024 | E168: 3.157777778 | F168: 1.084203009 | G168: 2.45 | H168: 1.091382689 | I168: 2.560810811 | J168: 1.097255048 | K168: 3.937777778 | L168: 0.8832237189 | M168: 4.225806452 | N168: 0.7730513915 | O168: 3.242424242 | P168: 1.156748083 | Q168: x | R168: x | S168: x | T168: x
B169: Economie | C169: 2026 | E169: 3.225 | F169: 1.127986596 | G169: 2.528248588 | H169: 1.101399463 | I169: 2.673410405 | J169: 1.172258288 | K169: 3.946629213 | L169: 0.8187691811 | M169: 4.179063361 | N169: 0.7346229941 | O169: 3.189041096 | P169: 1.126547976 | Q169: 3.479224377 | R169: 1.000130801 | S169: 2.540935673 | T169: 1.165142435
B170: Economie | C170: Verschil | E170: =E169-E168 -> 0.06722222222 | F170: =F169-F168 -> 0.04378358705 | G170: =G169-G168 -> 0.07824858757 | H170: =H169-H168 -> 0.01001677409 | I170: =I169-I168 -> 0.1125995938 | J170: =J169-J168 -> 0.07500324001 | K170: =K169-K168 -> 0.008851435705 | L170: =L169-L168 -> -0.06445453774 | M170: =M169-M168 -> -0.04674309073 | N170: =N169-N168 -> -0.03842839734 | O170: =O169-O168 -> -0.05338314653 | P170: =P169-P168 -> -0.03020010729 | Q170: x | R170: x | S170: x | T170: x
B171: Recht | C171: 2024 | E171: 3.138461538 | F171: 1.095401768 | G171: 2.608280255 | H171: 1.009251884 | I171: 2.780185759 | J171: 1.065251828 | K171: 3.926605505 | L171: 0.8440308853 | M171: 4.242331288 | N171: 0.731396616 | O171: 3.302114804 | P171: 1.047057232 | Q171: x | R171: x | S171: x | T171: x
B172: Recht | C172: 2026 | E172: 3.190311419 | F172: 1.143418473 | G172: 2.718309859 | H172: 1.098448615 | I172: 2.783505155 | J172: 1.122437042 | K172: 3.879858657 | L172: 0.9338306572 | M172: 4.193877551 | N172: 0.8219451241 | O172: 3.202702703 | P172: 1.116650315 | Q172: 3.4604811 | R172: 0.993592459 | S172: 2.682142857 | T172: 1.165069128
B173: Recht | C173: Verschil | E173: =E172-E171 -> 0.05184988022 | F173: =F172-F171 -> 0.04801670551 | G173: =G172-G171 -> 0.1100296044 | H173: =H172-H171 -> 0.08919673089 | I173: =I172-I171 -> 0.003319396125 | J173: =J172-J171 -> 0.05718521431 | K173: =K172-K171 -> -0.04674684734 | L173: =L172-L171 -> 0.08979977189 | M173: =M172-M171 -> -0.04845373732 | N173: =N172-N171 -> 0.09054850807 | O173: =O172-O171 -> -0.09941210092 | P173: =P172-P171 -> 0.06959308236 | Q173: x | R173: x | S173: x | T173: x
B174: Gedrag en maatschappij | C174: 2024 | E174: 3.191666667 | F174: 1.063028251 | G174: 2.611538462 | H174: 1.05463781 | I174: 2.816858238 | J174: 1.108122936 | K174: 3.89191232 | L174: 0.832192419 | M174: 4.368070953 | N174: 0.7411712431 | O174: 3.307520477 | P174: 1.08642691 | Q174: x | R174: x | S174: x | T174: x
B175: Gedrag en maatschappij | C175: 2026 | E175: 3.328322785 | F175: 1.076910203 | G175: 2.808407437 | H175: 1.091891475 | I175: 2.96797438 | J175: 1.117574847 | K175: 3.944006309 | L175: 0.8059684855 | M175: 4.332034295 | N175: 0.7101632332 | O175: 3.376664056 | P175: 1.073996064 | Q175: 3.468970935 | R175: 0.9627595427 | S175: 2.73438801 | T175: 1.12999623
B176: Gedrag en maatschappij | C176: Verschil | E176: =E175-E174 -> 0.1366561181 | F176: =F175-F174 -> 0.01388195202 | G176: =G175-G174 -> 0.1968689758 | H176: =H175-H174 -> 0.03725366443 | I176: =I175-I174 -> 0.151116142 | J176: =J175-J174 -> 0.009451910854 | K176: =K175-K174 -> 0.05209398866 | L176: =L175-L174 -> -0.0262239335 | M176: =M175-M174 -> -0.03603665881 | N176: =N175-N174 -> -0.03100800981 | O176: =O175-O174 -> 0.06914357984 | P176: =P175-P174 -> -0.01243084538 | Q176: x | R176: x | S176: x | T176: x
B177: Taal en cultuur | C177: 2024 | E177: 3.099348534 | F177: 1.082968957 | G177: 2.523887974 | H177: 0.9962003924 | I177: 2.788429752 | J177: 1.074169176 | K177: 3.854132901 | L177: 0.8612057022 | M177: 4.24691358 | N177: 0.7567254633 | O177: 3.1264 | P177: 1.059915333 | Q177: x | R177: x | S177: x | T177: x
B178: Taal en cultuur | C178: 2026 | E178: 3.316091954 | F178: 1.093379859 | G178: 2.590551181 | H178: 1.009652278 | I178: 2.864970646 | J178: 1.102299712 | K178: 3.89453125 | L178: 0.8982530202 | M178: 4.244318182 | N178: 0.78588467 | O178: 3.188212928 | P178: 1.076473006 | Q178: 3.390384615 | R178: 0.9533956382 | S178: 2.599173554 | T178: 1.109193344
B179: Taal en cultuur | C179: Verschil | E179: =E178-E177 -> 0.2167434198 | F179: =F178-F177 -> 0.01041090219 | G179: =G178-G177 -> 0.06666320746 | H179: =H178-H177 -> 0.013451886 | I179: =I178-I177 -> 0.07654089373 | J179: =J178-J177 -> 0.02813053689 | K179: =K178-K177 -> 0.04039834887 | L179: =L178-L177 -> 0.03704731796 | M179: =M178-M177 -> -0.002595398429 | N179: =N178-N177 -> 0.02915920666 | O179: =O178-O177 -> 0.06181292776 | P179: =P178-P177 -> 0.0165576736 | Q179: x | R179: x | S179: x | T179: x
B180: Onderwijs (als wetenschapsgebied) | C180: 2024 | E180: 3.364102564 | F180: 1.096265258 | G180: 2.775510204 | H180: 1.141574372 | I180: 2.994845361 | J180: 1.098738903 | K180: 4.004975124 | L180: 0.8514547107 | M180: 4.418719212 | N180: 0.6348339886 | O180: 3.386934673 | P180: 1.047377751 | Q180: x | R180: x | S180: x | T180: x
B181: Onderwijs (als wetenschapsgebied) | C181: 2026 | E181: 3.697802198 | F181: 1.003802497 | G181: 3.147727273 | H181: 0.9918499049 | I181: 3.320441989 | J181: 1.104069152 | K181: 4.093406593 | L181: 0.7631429919 | M181: 4.423913043 | N181: 0.6812668311 | O181: 3.598901099 | P181: 1.060906993 | Q181: 3.759562842 | R181: 0.9359157384 | S181: 3.075581395 | T181: 1.213995968
B182: Onderwijs (als wetenschapsgebied) | C182: Verschil | E182: =E181-E180 -> 0.3336996337 | F182: =F181-F180 -> -0.09246276099 | G182: =G181-G180 -> 0.3722170686 | H182: =H181-H180 -> -0.1497244668 | I182: =I181-I180 -> 0.3255966281 | J182: =J181-J180 -> 0.005330248536 | K182: =K181-K180 -> 0.08843146903 | L182: =L181-L180 -> -0.08831171884 | M182: =M181-M180 -> 0.005193831656 | N182: =N181-N180 -> 0.04643284251 | O182: =O181-O180 -> 0.2119664255 | P182: =P181-P180 -> 0.0135292424 | Q182: x | R182: x | S182: x | T182: x
B183: Anders, namelijk… | C183: 2024 | E183: 3.101449275 | F183: 1.152298567 | G183: 2.926470588 | H183: 1.123908113 | I183: 3.074626866 | J183: 1.145656261 | K183: 3.926470588 | L183: 0.9354730062 | M183: 4.470588235 | N183: 0.7425367619 | O183: 3.314285714 | P183: 1.084045792 | Q183: x | R183: x | S183: x | T183: x
B184: Anders, namelijk… | C184: 2026 | E184: 3.260869565 | F184: 1.042108602 | G184: 3.106382979 | H184: 1.165333364 | I184: 3.021276596 | J184: 1.151357643 | K184: 4.191489362 | L184: 0.5372351874 | M184: 4.3125 | N184: 0.8291561976 | O184: 3.5625 | P184: 0.9203664857 | Q184: 3.666666667 | R184: 0.6944562647 | S184: 2.8 | T184: 1.057441165
B185: Anders, namelijk… | C185: Verschil | E185: =E184-E183 -> 0.1594202899 | F185: =F184-F183 -> -0.1101899646 | G185: =G184-G183 -> 0.1799123905 | H185: =H184-H183 -> 0.0414252512 | I185: =I184-I183 -> -0.05335026993 | J185: =J184-J183 -> 0.005701382155 | K185: =K184-K183 -> 0.2650187735 | L185: =L184-L183 -> -0.3982378188 | M185: =M184-M183 -> -0.1580882353 | N185: =N184-N183 -> 0.08661943564 | O185: =O184-O183 -> 0.2482142857 | P185: =P184-P183 -> -0.1636793064 | Q185: x | R185: x | S185: x | T185: x
B186: Totaal | C186: 2024 | D186: 7287 - 7554 | E186: 3.303530367 | F186: 1.071249489 | G186: 2.78152875 | H186: 1.08581765 | I186: 2.937696837 | J186: 1.116265788 | K186: 3.936635007 | L186: 0.8182184397 | M186: 4.390124437 | N186: 0.6924249476 | O186: 3.382470651 | P186: 1.075685341 | Q186: x | R186: x | S186: x | T186: x
B187: Totaal | C187: 2026 | D187: 5836 - 6221 | E187: 3.445290971 | F187: 1.068942052 | G187: 2.904039571 | H187: 1.092230222 | I187: 3.058340181 | J187: 1.118863513 | K187: 4.004581152 | L187: 0.7943376489 | M187: 4.377109789 | N187: 0.7049777577 | O187: 3.416250202 | P187: 1.075753861 | Q187: 3.555897602 | R187: 0.9381898436 | S187: 2.832248115 | T187: 1.152826778
B188: Totaal | C188: Verschil | E188: =E187-E186 -> 0.1417606044 | F188: =F187-F186 -> -0.002307436646 | G188: =G187-G186 -> 0.1225108215 | H188: 0.006412572642 | I188: 0.1206433439 | J188: 0.002597725131 | K188: 0.06794614505 | L188: -0.02388079088 | M188: -0.01301464796 | N188: 0.01255281012 | O188: =O187-O186 -> 0.0337795505 | P188: =P187-P186 -> 6.852022085e-05 | Q188: x | R188: x | S188: x | T188: x
B189: * Cijfers boven gemiddelde van dat jaar vet gedrukt
B190: **Standaarddeviatie
B191: ***Antwoordcategorieën 1. Helemaal niet mee eens, 2. Niet mee eens, 3. Neutraal, 4. Mee eens, 5. Helemaal mee eens
B193: Uitgesplitst naar instellingscategorie
B203: Mate waarin men het eens is met uitspraken over de balans tussen individu en collectief*** | E203: Ieders bijdrage aan succes wordt in ons team erkend. | G203: In mijn team is de gezamenlijke prestatie belangrijker dan individuele prestaties. | I203: Teamdoelstellingen en ieders bijdrage daaraan zijn onderwerp van gesprek in mijn team. | K203: Met mijn werk draag ik bij aan de doelstellingen van mijn team en de instelling. | M203: Ik vind het stimulerend om samen te kunnen werken met collega’s die andere vaardigheden hebben dan ik. | O203: In mijn team is het normaal om elkaar feedback te geven. | Q203: Ik weet wat mijn team van mij verwacht. | S203: In mijn team is nagedacht over de beste teamsamenstelling om de ambities van het team te realiseren.
B204: Instellingscategorie | C204: Jaar | D204: Aantal | E204: Gemiddelde* | F204: sd** | G204: Gemiddelde | H204: sd | I204: Gemiddelde | J204: sd | K204: Gemiddelde | L204: sd | M204: Gemiddelde | N204: sd | O204: Gemiddelde | P204: sd | Q204: Gemiddelde | R204: sd | S204: Gemiddelde | T204: sd
B205: Umc's | C205: 2024 | E205: 3.415229885 | F205: 1.060009603 | G205: 3.031599417 | H205: 1.087814098 | I205: 3.121256039 | J205: 1.088754578 | K205: 3.992225462 | L205: 0.7463655603 | M205: 4.525512637 | N205: 0.5699559185 | O205: 3.521697663 | P205: 1.036376255 | Q205: x | R205: x | S205: x | T205: x
B206: Umc's | C206: 2026 | E206: 3.613538462 | F206: 1.019907195 | G206: 3.156054931 | H206: 1.075241288 | I206: 3.260896638 | J206: 1.070034881 | K206: 4.068578554 | L206: 0.7240871204 | M206: 4.50122549 | N206: 0.6115571731 | O206: 3.601234568 | P206: 1.004744007 | Q206: 3.721776681 | R206: 0.8430988121 | S206: 3.096463023 | T206: 1.125786025
B207: Umc's | C207: Verschil | E207: =E206-E205 -> 0.1983085765 | F207: =F206-F205 -> -0.04010240862 | G207: =G206-G205 -> 0.1244555147 | H207: =H206-H205 -> -0.01257281052 | I207: =I206-I205 -> 0.139640599 | J207: =J206-J205 -> -0.01871969699 | K207: =K206-K205 -> 0.076353092 | L207: =L206-L205 -> -0.02227843988 | M207: =M206-M205 -> -0.0242871469 | N207: =N206-N205 -> 0.04160125463 | O207: =O206-O205 -> 0.07953690457 | P207: =P206-P205 -> -0.0316322484 | Q207: x | R207: x | S207: x | T207: x
B208: Brede universiteiten | C208: 2024 | E208: 3.201548244 | F208: 1.070273016 | G208: 2.638429173 | H208: 1.061378834 | I208: 2.831652661 | J208: 1.11031023 | K208: 3.893981226 | L208: 0.8598710896 | M208: 4.317315436 | N208: 0.7435604599 | O208: 3.299131379 | P208: 1.086580102 | Q208: x | R208: x | S208: x | T208: x
B209: Brede universiteiten | C209: 2026 | E209: 3.344137274 | F209: 1.087158373 | G209: 2.785737335 | H209: 1.091035363 | I209: 2.941972921 | J209: 1.128270462 | K209: 3.958226221 | L209: 0.8298841009 | M209: 4.308103015 | N209: 0.7335484238 | O209: 3.34015748 | P209: 1.090231287 | Q209: 3.48478123 | R209: 0.9669071574 | S209: 2.716397849 | T209: 1.149444847
B210: Brede universiteiten | C210: Verschil | E210: =E209-E208 -> 0.1425890292 | F210: =F209-F208 -> 0.01688535781 | G210: =G209-G208 -> 0.1473081621 | H210: =H209-H208 -> 0.02965652916 | I210: =I209-I208 -> 0.1103202596 | J210: =J209-J208 -> 0.01796023253 | K210: =K209-K208 -> 0.06424499524 | L210: =L209-L208 -> -0.02998698869 | M210: =M209-M208 -> -0.009212421166 | N210: =N209-N208 -> -0.01001203606 | O210: =O209-O208 -> 0.04102610138 | P210: =P209-P208 -> 0.003651185267 | Q210: x | R210: x | S210: x | T210: x
B211: NWO- en KNAW-instituten | C211: 2024 | E211: 3.680851064 | F211: 1.026001699 | G211: 2.923497268 | H211: 1.145773317 | I211: 3.153846154 | J211: 1.165081999 | K211: 4.122340426 | L211: 0.8279417499 | M211: 4.458762887 | N211: 0.675899336 | O211: 3.828125 | P211: 1.071594508 | Q211: x | R211: x | S211: x | T211: x
B212: NWO- en KNAW-instituten | C212: 2026 | E212: 3.68641115 | F212: 1.003101839 | G212: 3.050909091 | H212: 1.048612696 | I212: 3.243727599 | J212: 1.104970007 | K212: 4.064285714 | L212: 0.7686576698 | M212: 4.436619718 | N212: 0.6773966872 | O212: 3.538732394 | P212: 1.077515044 | Q212: 3.676156584 | R212: 0.8974771169 | S212: 2.932330827 | T212: 1.08642039
